{"text_format":"1","workbook":"xlsx","n_sheets":3,"sheets":["ورقة1","ورقة2","ورقة3"],"not_rendered":{"charts":0,"images":0,"macros":1,"external_links":0,"defined_names":0,"comments":0,"pivot_tables":0},"unopened":[],"bounds":{"document_bytes":16777216,"sheet_cells":100000,"rows_first":2000,"rows_last":500,"rows_between":2000,"halvings":0,"cell_chars":16384,"cell_head_chars":4096},"cells_cut":0,"cells_raw":0,"read":"whole","date_system":"1900"}

{"sheet":"ورقة1","index":0,"n_rows":1449,"n_cols":2,"rows_kept":1449,"cut":false,"hidden":false,"merged":[]}
[]
["بطلا ةيلك/دادغب ةعماج",{"$f":"Reversestr(A2)","v":"جامعة بغداد/كلية الطب"}]
["يدنكلا بط ةيلك/دادغب ةعماج",{"$f":"Reversestr(A3)","v":"جامعة بغداد/كلية طب الكندي"}]
["نانسلأا بط ةيلك/دادغب ةعماج","جامعة بغداد/كلية طب األسنان"]
["ةلديصلا ةيلك/دادغب ةعماج","جامعة بغداد/كلية الصيدلة"]
["طفنلا مسق/ةسدنهلا ةيلك/دادغب ةعماج","جامعة بغداد/كلية الهندسة/قسم النفط"]
["ةرامعلا مسق/ةسدنهلا ةيلك/دادغب ةعماج","جامعة بغداد/كلية الهندسة/قسم العمارة"]
["يندملا مسق/ةسدنهلا ةيلك/دادغب ةعماج","جامعة بغداد/كلية الهندسة/قسم المدني"]
["ءابرهكلا مسق/ةسدنهلا ةيلك/دادغب ةعماج","جامعة بغداد/كلية الهندسة/قسم الكهرباء"]
["تلااصتلااو كينورتكللاا مسق/ةسدنهلا ةيلك/دادغب ةعماج","جامعة بغداد/كلية الهندسة/قسم االلكترونيك واالتصاالت"]
["تلااصتلااو كينورتكللاا مسق/ةسدنهلا ةيلك/دادغب ةعماج","جامعة بغداد/كلية الهندسة/قسم االلكترونيك واالتصاالت"]
["بوساحلا مسق/ةسدنهلا ةيلك/دادغب ةعماج","جامعة بغداد/كلية الهندسة/قسم الحاسوب"]
["بوساحلا مسق/ةسدنهلا ةيلك/دادغب ةعماج","جامعة بغداد/كلية الهندسة/قسم الحاسوب"]
["كيناكيملا مسق/ةسدنهلا ةيلك/دادغب ةعماج","جامعة بغداد/كلية الهندسة/قسم الميكانيك"]
["كيناكيملا مسق/ةسدنهلا ةيلك/دادغب ةعماج","جامعة بغداد/كلية الهندسة/قسم الميكانيك"]
["ةيوايميكلا مسق/ةسدنهلا ةيلك/دادغب ةعماج","جامعة بغداد/كلية الهندسة/قسم الكيمياوية"]
["ةيوايميكلا مسق/ةسدنهلا ةيلك/دادغب ةعماج","جامعة بغداد/كلية الهندسة/قسم الكيمياوية"]
["ةحاسملا مسق/ةسدنهلا ةيلك/دادغب ةعماج","جامعة بغداد/كلية الهندسة/قسم المساحة"]
["ةيئاملا دراوملا مسق/ةسدنهلا ةيلك/دادغب ةعماج","جامعة بغداد/كلية الهندسة/قسم الموارد المائية"]
["ةقاطلا مسق/ةسدنهلا ةيلك/دادغب ةعماج","جامعة بغداد/كلية الهندسة/قسم الطاقة"]
["ةقاطلا مسق/ةسدنهلا ةيلك/دادغب ةعماج","جامعة بغداد/كلية الهندسة/قسم الطاقة"]
["ةئيبلا مسق/ةسدنهلا ةيلك/دادغب ةعماج","جامعة بغداد/كلية الهندسة/قسم البيئة"]
["ناريطلا مسق/ةسدنهلا ةيلك/دادغب ةعماج","جامعة بغداد/كلية الهندسة/قسم الطيران"]
["ناريطلا مسق/ةسدنهلا ةيلك/دادغب ةعماج","جامعة بغداد/كلية الهندسة/قسم الطيران"]
["تلااصتلااو تامولعملا مسق/يمزراوخلا-ةسدنهلا ةيلك/دادغب ةعماج","جامعة بغداد/كلية الهندسة-الخوارزمي/قسم المعلومات واالتصاالت"]
["تلااصتلااو تامولعملا مسق/يمزراوخلا-ةسدنهلا ةيلك/دادغب ةعماج","جامعة بغداد/كلية الهندسة-الخوارزمي/قسم المعلومات واالتصاالت"]
["ةيئايحلاا ةيئايميكلا مسق/يمزراوخلا-ةسدنهلا ةيلك/دادغب ةعماج","جامعة بغداد/كلية الهندسة-الخوارزمي/قسم الكيميائية االحيائية"]
["ةيئايحلاا ةيئايميكلا مسق/يمزراوخلا-ةسدنهلا ةيلك/دادغب ةعماج","جامعة بغداد/كلية الهندسة-الخوارزمي/قسم الكيميائية االحيائية"]
["يتايحلا بطلا مسق/يمزراوخلا-ةسدنهلا ةيلك/دادغب ةعماج","جامعة بغداد/كلية الهندسة-الخوارزمي/قسم الطب الحياتي"]
["يتايحلا بطلا مسق/يمزراوخلا-ةسدنهلا ةيلك/دادغب ةعماج","جامعة بغداد/كلية الهندسة-الخوارزمي/قسم الطب الحياتي"]
["سكنورتاكيملا مسق/يمزراوخلا-ةسدنهلا ةيلك/دادغب ةعماج","جامعة بغداد/كلية الهندسة-الخوارزمي/قسم الميكاترونكس"]
["تمتؤملا عينصتلا مسق/يمزراوخلا-ةسدنهلا ةيلك/دادغب ةعماج","جامعة بغداد/كلية الهندسة-الخوارزمي/قسم التصنيع المؤتمت"]
["تمتؤملا عينصتلا مسق/يمزراوخلا-ةسدنهلا ةيلك/دادغب ةعماج","جامعة بغداد/كلية الهندسة-الخوارزمي/قسم التصنيع المؤتمت"]
["مولعلا ةيلك/دادغب ةعماج","جامعة بغداد/كلية العلوم"]
["مولعلا ةيلك/دادغب ةعماج","جامعة بغداد/كلية العلوم"]
["تايضايرلا مسق/مولعلا ةيلك/دادغب ةعماج","جامعة بغداد/كلية العلوم/قسم الرياضيات"]
["تايضايرلا مسق/مولعلا ةيلك/دادغب ةعماج","جامعة بغداد/كلية العلوم/قسم الرياضيات"]
["تانبلل مولعلا ةيلك/دادغب ةعماج","جامعة بغداد/كلية العلوم للبنات"]
["تانبلل مولعلا ةيلك/دادغب ةعماج","جامعة بغداد/كلية العلوم للبنات"]
["تايضايرلا مسق/تانبلل مولعلا ةيلك/دادغب ةعماج","جامعة بغداد/كلية العلوم للبنات/قسم الرياضيات"]
["تايضايرلا مسق/تانبلل مولعلا ةيلك/دادغب ةعماج","جامعة بغداد/كلية العلوم للبنات/قسم الرياضيات"]
["بوساحلا مسق/تانبلل مولعلا ةيلك/دادغب ةعماج","جامعة بغداد/كلية العلوم للبنات/قسم الحاسوب"]
["بوساحلا مسق/تانبلل مولعلا ةيلك/دادغب ةعماج","جامعة بغداد/كلية العلوم للبنات/قسم الحاسوب"]
["نوناقلا ةيلك/دادغب ةعماج","جامعة بغداد/كلية القانون"]
["نوناقلا ةيلك/دادغب ةعماج","جامعة بغداد/كلية القانون"]
["نوناقلا ةيلك/دادغب ةعماج","جامعة بغداد/كلية القانون"]
["ةيسايسلا مولعلا ةيلك/دادغب ةعماج","جامعة بغداد/كلية العلوم السياسية"]
["ةيسايسلا مولعلا ةيلك/دادغب ةعماج","جامعة بغداد/كلية العلوم السياسية"]
["ةيسايسلا مولعلا ةيلك/دادغب ةعماج","جامعة بغداد/كلية العلوم السياسية"]
["ضيرمتلا ةيلك/دادغب ةعماج","جامعة بغداد/كلية التمريض"]
["ضيرمتلا ةيلك/دادغب ةعماج","جامعة بغداد/كلية التمريض"]
["يرطيبلا بطلا ةيلك/دادغب ةعماج","جامعة بغداد/كلية الطب البيطري"]
["تابنلا ةياقو مسق/ةعارزلا ةيلك/دادغب ةعماج","جامعة بغداد/كلية الزراعة/قسم وقاية النبات"]
["تابنلا ةياقو مسق/ةعارزلا ةيلك/دادغب ةعماج","جامعة بغداد/كلية الزراعة/قسم وقاية النبات"]
[null,""]
["ةيلقحلا ليصاحملا مسق/ةعارزلا ةيلك/دادغب ةعماج","جامعة بغداد/كلية الزراعة/قسم المحاصيل الحقلية"]
["ةيلقحلا ليصاحملا مسق/ةعارزلا ةيلك/دادغب ةعماج","جامعة بغداد/كلية الزراعة/قسم المحاصيل الحقلية"]
["ةيئاملا دراوملاو ةبرتلا مسق/ةعارزلا ةيلك/دادغب ةعماج","جامعة بغداد/كلية الزراعة/قسم التربة والموارد المائية"]
["ةيئاملا دراوملاو ةبرتلا مسق/ةعارزلا ةيلك/دادغب ةعماج","جامعة بغداد/كلية الزراعة/قسم التربة والموارد المائية"]
["يعارزلا داصتقلاا مسق/ةعارزلا ةيلك/دادغب ةعماج","جامعة بغداد/كلية الزراعة/قسم االقتصاد الزراعي"]
["يعارزلا داصتقلاا مسق/ةعارزلا ةيلك/دادغب ةعماج","جامعة بغداد/كلية الزراعة/قسم االقتصاد الزراعي"]
["يعارزلا داشرلاا مسق/ةعارزلا ةيلك/دادغب ةعماج","جامعة بغداد/كلية الزراعة/قسم االرشاد الزراعي"]
["يعارزلا داشرلاا مسق/ةعارزلا ةيلك/دادغب ةعماج","جامعة بغداد/كلية الزراعة/قسم االرشاد الزراعي"]
["ةيعارزلا تلالااو نئاكملا مسق/ةعارزلا ةيلك/دادغب ةعماج","جامعة بغداد/كلية الزراعة/قسم المكائن واالالت الزراعية"]
["ةيعارزلا تلالااو نئاكملا مسق/ةعارزلا ةيلك/دادغب ةعماج","جامعة بغداد/كلية الزراعة/قسم المكائن واالالت الزراعية"]
["يناويحلا جاتنلاا مسق/ةعارزلا ةيلك/دادغب ةعماج","جامعة بغداد/كلية الزراعة/قسم االنتاج الحيواني"]
["يناويحلا جاتنلاا مسق/ةعارزلا ةيلك/دادغب ةعماج",{"$f":"Reversestr(A67)","v":"جامعة بغداد/كلية الزراعة/قسم االنتاج الحيواني"}]
["قئادحلا ةسدنهو ةنتسبلا مسق/ةعارزلا ةيلك/دادغب ةعماج","جامعة بغداد/كلية الزراعة/قسم البستنة وهندسة الحدائق"]
["قئادحلا ةسدنهو ةنتسبلا مسق/ةعارزلا ةيلك/دادغب ةعماج","جامعة بغداد/كلية الزراعة/قسم البستنة وهندسة الحدائق"]
["ةيذغلاا مولع مسق/ةعارزلا ةيلك/دادغب ةعماج","جامعة بغداد/كلية الزراعة/قسم علوم االغذية"]
["ةيذغلاا مولع مسق/ةعارزلا ةيلك/دادغب ةعماج","جامعة بغداد/كلية الزراعة/قسم علوم االغذية"]
["رحصتلا ةحفاكم مسق/ةعارزلا ةيلك/دادغب ةعماج","جامعة بغداد/كلية الزراعة/قسم مكافحة التصحر"]
["رحصتلا ةحفاكم مسق/ةعارزلا ةيلك/دادغب ةعماج","جامعة بغداد/كلية الزراعة/قسم مكافحة التصحر"]
["تاغللا ةيلك/دادغب ةعماج","جامعة بغداد/كلية اللغات"]
["تاغللا ةيلك/دادغب ةعماج","جامعة بغداد/كلية اللغات"]
["تاغللا ةيلك/دادغب ةعماج","جامعة بغداد/كلية اللغات"]
["داصتقلااو ةرادلإا ةيلك/دادغب ةعماج","جامعة بغداد/كلية اإلدارة واالقتصاد"]
["داصتقلااو ةرادلإا ةيلك/دادغب ةعماج","جامعة بغداد/كلية اإلدارة واالقتصاد"]
["داصتقلااو ةرادلإا ةيلك/دادغب ةعماج","جامعة بغداد/كلية اإلدارة واالقتصاد"]
["مثيهلا نبا/ةفرصلا مولعلل ةيبرتلا ةيلك/دادغب ةعماج","جامعة بغداد/كلية التربية للعلوم الصرفة/ابن الهيثم"]
["مثيهلا نبا/ةفرصلا مولعلل ةيبرتلا ةيلك/دادغب ةعماج","جامعة بغداد/كلية التربية للعلوم الصرفة/ابن الهيثم"]
["ةيناسنلاا مولعلل دشر نبا ةيبرتلا ةيلك/دادغب ةعماج","جامعة بغداد/كلية التربية ابن رشد للعلوم االنسانية"]
["ةيناسنلاا مولعلل دشر نبا ةيبرتلا ةيلك/دادغب ةعماج","جامعة بغداد/كلية التربية ابن رشد للعلوم االنسانية"]
["ةيناسنلاا مولعلل دشر نبا ةيبرتلا ةيلك/دادغب ةعماج","جامعة بغداد/كلية التربية ابن رشد للعلوم االنسانية"]
["ةيدركلا ةغللا مسق/ةيناسنلاا مولعلل دشر نبا ةيبرتلا ةيلك/دادغب ةعماج","جامعة بغداد/كلية التربية ابن رشد للعلوم االنسانية/قسم اللغة الكردية"]
["ةيدركلا ةغللا مسق/ةيناسنلاا مولعلل دشر نبا ةيبرتلا ةيلك/دادغب ةعماج","جامعة بغداد/كلية التربية ابن رشد للعلوم االنسانية/قسم اللغة الكردية"]
["ةيدركلا ةغللا مسق/ةيناسنلاا مولعلل دشر نبا ةيبرتلا ةيلك/دادغب ةعماج","جامعة بغداد/كلية التربية ابن رشد للعلوم االنسانية/قسم اللغة الكردية"]
["تانبلل ةيبرتلا ةيلك/دادغب ةعماج","جامعة بغداد/كلية التربية للبنات"]
["تانبلل ةيبرتلا ةيلك/دادغب ةعماج","جامعة بغداد/كلية التربية للبنات"]
["تانبلل ةيبرتلا ةيلك/دادغب ةعماج","جامعة بغداد/كلية التربية للبنات"]
["يلزنملا داصتقلاا مسق/تانبلل ةيبرتلا ةيلك/دادغب ةعماج","جامعة بغداد/كلية التربية للبنات/قسم االقتصاد المنزلي"]
["يلزنملا داصتقلاا مسق/تانبلل ةيبرتلا ةيلك/دادغب ةعماج","جامعة بغداد/كلية التربية للبنات/قسم االقتصاد المنزلي"]
["يلزنملا داصتقلاا مسق/تانبلل ةيبرتلا ةيلك/دادغب ةعماج","جامعة بغداد/كلية التربية للبنات/قسم االقتصاد المنزلي"]
["لافطلاا ضاير مسق/تانبلل ةيبرتلا ةيلك/دادغب ةعماج","جامعة بغداد/كلية التربية للبنات/قسم رياض االطفال"]
["لافطلاا ضاير مسق/تانبلل ةيبرتلا ةيلك/دادغب ةعماج","جامعة بغداد/كلية التربية للبنات/قسم رياض االطفال"]
["لافطلاا ضاير مسق/تانبلل ةيبرتلا ةيلك/دادغب ةعماج","جامعة بغداد/كلية التربية للبنات/قسم رياض االطفال"]
["بادلآا ةيلك/دادغب ةعماج","جامعة بغداد/كلية اآلداب"]
["بادلآا ةيلك/دادغب ةعماج","جامعة بغداد/كلية اآلداب"]
["بادلآا ةيلك/دادغب ةعماج","جامعة بغداد/كلية اآلداب"]
["سفنلا ملع مسق/بادلآا ةيلك/دادغب ةعماج","جامعة بغداد/كلية اآلداب/قسم علم النفس"]
["سفنلا ملع مسق/بادلآا ةيلك/دادغب ةعماج","جامعة بغداد/كلية اآلداب/قسم علم النفس"]
["سفنلا ملع مسق/بادلآا ةيلك/دادغب ةعماج","جامعة بغداد/كلية اآلداب/قسم علم النفس"]
["ةفسلفلا مسق/بادلآا ةيلك/دادغب ةعماج","جامعة بغداد/كلية اآلداب/قسم الفلسفة"]
["ةفسلفلا مسق/بادلآا ةيلك/دادغب ةعماج","جامعة بغداد/كلية اآلداب/قسم الفلسفة"]
["ةفسلفلا مسق/بادلآا ةيلك/دادغب ةعماج","جامعة بغداد/كلية اآلداب/قسم الفلسفة"]
["راثلاا مسق/بادلآا ةيلك/دادغب ةعماج","جامعة بغداد/كلية اآلداب/قسم االثار"]
["راثلاا مسق/بادلآا ةيلك/دادغب ةعماج","جامعة بغداد/كلية اآلداب/قسم االثار"]
["راثلاا مسق/بادلآا ةيلك/دادغب ةعماج","جامعة بغداد/كلية اآلداب/قسم االثار"]
[null,""]
["ةيملاسلإا مولعلا ةيلك/دادغب ةعماج","جامعة بغداد/كلية العلوم اإلسالمية"]
["ةيملاسلإا مولعلا ةيلك/دادغب ةعماج","جامعة بغداد/كلية العلوم اإلسالمية"]
["ةيملاسلإا مولعلا ةيلك/دادغب ةعماج","جامعة بغداد/كلية العلوم اإلسالمية"]
["ملاعلأا ةيلك/دادغب ةعماج","جامعة بغداد/كلية األعالم"]
["ملاعلأا ةيلك/دادغب ةعماج","جامعة بغداد/كلية األعالم"]
["ملاعلأا ةيلك/دادغب ةعماج","جامعة بغداد/كلية األعالم"]
["ةليمجلا نونفلا ةيلك/دادغب ةعماج","جامعة بغداد/كلية الفنون الجميلة"]
["ةليمجلا نونفلا ةيلك/دادغب ةعماج","جامعة بغداد/كلية الفنون الجميلة"]
["ةليمجلا نونفلا ةيلك/دادغب ةعماج","جامعة بغداد/كلية الفنون الجميلة"]
["بطلا ةيلك/ةيرصنتسملا ةعماجلا","الجامعة المستنصرية/كلية الطب"]
["نانسلاا بط ةيلك/ةيرصنتسملا ةعماجلا","الجامعة المستنصرية/كلية طب االسنان"]
["ةلديصلا ةيلك/ةيرصنتسملا ةعماجلا","الجامعة المستنصرية/كلية الصيدلة"]
["ةرامعلا مسق/ةسدنهلا ةيلك/ةيرصنتسملا ةعماجلا","الجامعة المستنصرية/كلية الهندسة/قسم العمارة"]
["يندملا مسق/ةسدنهلا ةيلك/ةيرصنتسملا ةعماجلا","الجامعة المستنصرية/كلية الهندسة/قسم المدني"]
["ءابرهكلا مسق/ةسدنهلا ةيلك/ةيرصنتسملا ةعماجلا","الجامعة المستنصرية/كلية الهندسة/قسم الكهرباء"]
["بوساحلا مسق/ةسدنهلا ةيلك/ةيرصنتسملا ةعماجلا","الجامعة المستنصرية/كلية الهندسة/قسم الحاسوب"]
["بوساحلا مسق/ةسدنهلا ةيلك/ةيرصنتسملا ةعماجلا","الجامعة المستنصرية/كلية الهندسة/قسم الحاسوب"]
["كيناكيملا مسق/ةسدنهلا ةيلك/ةيرصنتسملا ةعماجلا","الجامعة المستنصرية/كلية الهندسة/قسم الميكانيك"]
["كيناكيملا مسق/ةسدنهلا ةيلك/ةيرصنتسملا ةعماجلا","الجامعة المستنصرية/كلية الهندسة/قسم الميكانيك"]
["قرطلا مسق/ةسدنهلا ةيلك/ةيرصنتسملا ةعماجلا","الجامعة المستنصرية/كلية الهندسة/قسم الطرق"]
["داوملا مسق/ةسدنهلا ةيلك/ةيرصنتسملا ةعماجلا","الجامعة المستنصرية/كلية الهندسة/قسم المواد"]
["داوملا مسق/ةسدنهلا ةيلك/ةيرصنتسملا ةعماجلا",{"$f":"Reversestr(A131)","v":"الجامعة المستنصرية/كلية الهندسة/قسم المواد"}]
["ةئيبلا مسق/ةسدنهلا ةيلك/ةيرصنتسملا ةعماجلا","الجامعة المستنصرية/كلية الهندسة/قسم البيئة"]
["مولعلا ةيلك/ةيرصنتسملا ةعماجلا","الجامعة المستنصرية/كلية العلوم"]
["مولعلا ةيلك/ةيرصنتسملا ةعماجلا","الجامعة المستنصرية/كلية العلوم"]
["تايضايرلا مسق/مولعلا ةيلك/ةيرصنتسملا ةعماجلا","الجامعة المستنصرية/كلية العلوم/قسم الرياضيات"]
["تايضايرلا مسق/مولعلا ةيلك/ةيرصنتسملا ةعماجلا","الجامعة المستنصرية/كلية العلوم/قسم الرياضيات"]
["نوناقلا ةيلك/ةيرصنتسملا ةعماجلا","الجامعة المستنصرية/كلية القانون"]
["نوناقلا ةيلك/ةيرصنتسملا ةعماجلا","الجامعة المستنصرية/كلية القانون"]
["نوناقلا ةيلك/ةيرصنتسملا ةعماجلا","الجامعة المستنصرية/كلية القانون"]
["ةيسايسلا مولعلا ةيلك/ةيرصنتسملا ةعماجلا","الجامعة المستنصرية/كلية العلوم السياسية"]
["ةيسايسلا مولعلا ةيلك/ةيرصنتسملا ةعماجلا","الجامعة المستنصرية/كلية العلوم السياسية"]
["ةيسايسلا مولعلا ةيلك/ةيرصنتسملا ةعماجلا","الجامعة المستنصرية/كلية العلوم السياسية"]
["داصتقلااو ةرادلإا ةيلك/ةيرصنتسملا ةعماجلا","الجامعة المستنصرية/كلية اإلدارة واالقتصاد"]
["داصتقلااو ةرادلإا ةيلك/ةيرصنتسملا ةعماجلا","الجامعة المستنصرية/كلية اإلدارة واالقتصاد"]
["داصتقلااو ةرادلإا ةيلك/ةيرصنتسملا ةعماجلا","الجامعة المستنصرية/كلية اإلدارة واالقتصاد"]
["ةيبرتلا ةيلك/ةيرصنتسملا ةعماجلا","الجامعة المستنصرية/كلية التربية"]
["ةيبرتلا ةيلك/ةيرصنتسملا ةعماجلا","الجامعة المستنصرية/كلية التربية"]
["ةيبرتلا ةيلك/ةيرصنتسملا ةعماجلا","الجامعة المستنصرية/كلية التربية"]
["بادلآا ةيلك/ةيرصنتسملا ةعماجلا","الجامعة المستنصرية/كلية اآلداب"]
["بادلآا ةيلك/ةيرصنتسملا ةعماجلا","الجامعة المستنصرية/كلية اآلداب"]
["بادلآا ةيلك/ةيرصنتسملا ةعماجلا","الجامعة المستنصرية/كلية اآلداب"]
["سفنلا ملع مسق/بادلآا ةيلك/ةيرصنتسملا ةعماجلا","الجامعة المستنصرية/كلية اآلداب/قسم علم النفس"]
["سفنلا ملع مسق/بادلآا ةيلك/ةيرصنتسملا ةعماجلا","الجامعة المستنصرية/كلية اآلداب/قسم علم النفس"]
["سفنلا ملع مسق/بادلآا ةيلك/ةيرصنتسملا ةعماجلا","الجامعة المستنصرية/كلية اآلداب/قسم علم النفس"]
["ةفسلفلا مسق/بادلآا ةيلك/ةيرصنتسملا ةعماجلا","الجامعة المستنصرية/كلية اآلداب/قسم الفلسفة"]
["ةفسلفلا مسق/بادلآا ةيلك/ةيرصنتسملا ةعماجلا","الجامعة المستنصرية/كلية اآلداب/قسم الفلسفة"]
["ةفسلفلا مسق/بادلآا ةيلك/ةيرصنتسملا ةعماجلا","الجامعة المستنصرية/كلية اآلداب/قسم الفلسفة"]
["ةيساسلأا ةيبرتلا ةيلك/ةيرصنتسملا ةعماجلا","الجامعة المستنصرية/كلية التربية األساسية"]
["ةيساسلأا ةيبرتلا ةيلك/ةيرصنتسملا ةعماجلا","الجامعة المستنصرية/كلية التربية األساسية"]
["ةيساسلأا ةيبرتلا ةيلك/ةيرصنتسملا ةعماجلا","الجامعة المستنصرية/كلية التربية األساسية"]
["ىلولاا فوفصلا ملعم مسق/ةيساسلأا ةيبرتلا ةيلك/ةيرصنتسملا ةعماجلا","الجامعة المستنصرية/كلية التربية األساسية/قسم معلم الصفوف االولى"]
["ىلولاا فوفصلا ملعم مسق/ةيساسلأا ةيبرتلا ةيلك/ةيرصنتسملا ةعماجلا","الجامعة المستنصرية/كلية التربية األساسية/قسم معلم الصفوف االولى"]
[null,""]
["ىلولاا فوفصلا ملعم مسق/ةيساسلأا ةيبرتلا ةيلك/ةيرصنتسملا ةعماجلا","الجامعة المستنصرية/كلية التربية األساسية/قسم معلم الصفوف االولى"]
["ةيحايسلا مولعلا ةيلك/ةيرصنتسملا ةعماجلا","الجامعة المستنصرية/كلية العلوم السياحية"]
["ةيحايسلا مولعلا ةيلك/ةيرصنتسملا ةعماجلا","الجامعة المستنصرية/كلية العلوم السياحية"]
["ةيحايسلا مولعلا ةيلك/ةيرصنتسملا ةعماجلا","الجامعة المستنصرية/كلية العلوم السياحية"]
["بطلا ةيلك/ةرصبلا ةعماج","جامعة البصرة/كلية الطب"]
["ءارهزلا بطلا ةيلك/ةرصبلا ةعماج","جامعة البصرة/كلية الطب الزهراء"]
["نانسلاا بط ةيلك/ةرصبلا ةعماج","جامعة البصرة/كلية طب االسنان"]
["ةلديصلا ةيلك/ةرصبلا ةعماج","جامعة البصرة/كلية الصيدلة"]
["طفنلا مسق/ةسدنهلا ةيلك/ةرصبلا ةعماج","جامعة البصرة/كلية الهندسة/قسم النفط"]
["ةرامعلا مسق/ةسدنهلا ةيلك/ةرصبلا ةعماج","جامعة البصرة/كلية الهندسة/قسم العمارة"]
["يندملا مسق/ةسدنهلا ةيلك/ةرصبلا ةعماج","جامعة البصرة/كلية الهندسة/قسم المدني"]
["ءابرهكلا مسق/ةسدنهلا ةيلك/ةرصبلا ةعماج","جامعة البصرة/كلية الهندسة/قسم الكهرباء"]
["بوساحلا مسق/ةسدنهلا ةيلك/ةرصبلا ةعماج","جامعة البصرة/كلية الهندسة/قسم الحاسوب"]
["بوساحلا مسق/ةسدنهلا ةيلك/ةرصبلا ةعماج","جامعة البصرة/كلية الهندسة/قسم الحاسوب"]
["كيناكيملا مسق/ةسدنهلا ةيلك/ةرصبلا ةعماج","جامعة البصرة/كلية الهندسة/قسم الميكانيك"]
["كيناكيملا مسق/ةسدنهلا ةيلك/ةرصبلا ةعماج","جامعة البصرة/كلية الهندسة/قسم الميكانيك"]
["ةيوايميكلا مسق/ةسدنهلا ةيلك/ةرصبلا ةعماج","جامعة البصرة/كلية الهندسة/قسم الكيمياوية"]
["ةيوايميكلا مسق/ةسدنهلا ةيلك/ةرصبلا ةعماج","جامعة البصرة/كلية الهندسة/قسم الكيمياوية"]
["داوملا مسق/ةسدنهلا ةيلك/ةرصبلا ةعماج","جامعة البصرة/كلية الهندسة/قسم المواد"]
["داوملا مسق/ةسدنهلا ةيلك/ةرصبلا ةعماج","جامعة البصرة/كلية الهندسة/قسم المواد"]
["مولعلا ةيلك/ةرصبلا ةعماج","جامعة البصرة/كلية العلوم"]
["مولعلا ةيلك/ةرصبلا ةعماج","جامعة البصرة/كلية العلوم"]
["تايضايرلا مسق/مولعلا ةيلك/ةرصبلا ةعماج","جامعة البصرة/كلية العلوم/قسم الرياضيات"]
["تايضايرلا مسق/مولعلا ةيلك/ةرصبلا ةعماج","جامعة البصرة/كلية العلوم/قسم الرياضيات"]
["تامولعملا ايجولنكتو بوساحلا مولع ةيلك/ةرصبلا ةعماج","جامعة البصرة/كلية علوم الحاسوب وتكنلوجيا المعلومات"]
["تامولعملا ايجولنكتو بوساحلا مولع ةيلك/ةرصبلا ةعماج","جامعة البصرة/كلية علوم الحاسوب وتكنلوجيا المعلومات"]
["نوناقلا ةيلك/ةرصبلا ةعماج","جامعة البصرة/كلية القانون"]
["نوناقلا ةيلك/ةرصبلا ةعماج","جامعة البصرة/كلية القانون"]
["نوناقلا ةيلك/ةرصبلا ةعماج","جامعة البصرة/كلية القانون"]
["ضيرمتلا ةيلك/ةرصبلا ةعماج","جامعة البصرة/كلية التمريض"]
["ضيرمتلا ةيلك/ةرصبلا ةعماج","جامعة البصرة/كلية التمريض"]
["يرطيبلا بطلا ةيلك/ةرصبلا ةعماج",{"$f":"Reversestr(A195)","v":"جامعة البصرة/كلية الطب البيطري"}]
["تابنلا ةياقو مسق/ةعارزلا ةيلك/ةرصبلا ةعماج","جامعة البصرة/كلية الزراعة/قسم وقاية النبات"]
["تابنلا ةياقو مسق/ةعارزلا ةيلك/ةرصبلا ةعماج","جامعة البصرة/كلية الزراعة/قسم وقاية النبات"]
["ةيلقحلا ليصاحملا مسق/ةعارزلا ةيلك/ةرصبلا ةعماج","جامعة البصرة/كلية الزراعة/قسم المحاصيل الحقلية"]
["ةيلقحلا ليصاحملا مسق/ةعارزلا ةيلك/ةرصبلا ةعماج","جامعة البصرة/كلية الزراعة/قسم المحاصيل الحقلية"]
["ةيئاملا دراوملاو ةبرتلا مسق/ةعارزلا ةيلك/ةرصبلا ةعماج","جامعة البصرة/كلية الزراعة/قسم التربة والموارد المائية"]
["ةيئاملا دراوملاو ةبرتلا مسق/ةعارزلا ةيلك/ةرصبلا ةعماج","جامعة البصرة/كلية الزراعة/قسم التربة والموارد المائية"]
["ةيعارزلا ةننكملا مسق/ةعارزلا ةيلك/ةرصبلا ةعماج","جامعة البصرة/كلية الزراعة/قسم المكننة الزراعية"]
["ةيعارزلا ةننكملا مسق/ةعارزلا ةيلك/ةرصبلا ةعماج","جامعة البصرة/كلية الزراعة/قسم المكننة الزراعية"]
["يناويحلا جاتنلاا مسق/ةعارزلا ةيلك/ةرصبلا ةعماج","جامعة البصرة/كلية الزراعة/قسم االنتاج الحيواني"]
["يناويحلا جاتنلاا مسق/ةعارزلا ةيلك/ةرصبلا ةعماج","جامعة البصرة/كلية الزراعة/قسم االنتاج الحيواني"]
["ليخنلاو ةنتسبلا مسق/ةعارزلا ةيلك/ةرصبلا ةعماج","جامعة البصرة/كلية الزراعة/قسم البستنة والنخيل"]
["ليخنلاو ةنتسبلا مسق/ةعارزلا ةيلك/ةرصبلا ةعماج","جامعة البصرة/كلية الزراعة/قسم البستنة والنخيل"]
["ةيذغلاا مولع مسق/ةعارزلا ةيلك/ةرصبلا ةعماج","جامعة البصرة/كلية الزراعة/قسم علوم االغذية"]
["ةيذغلاا مولع مسق/ةعارزلا ةيلك/ةرصبلا ةعماج","جامعة البصرة/كلية الزراعة/قسم علوم االغذية"]
["ةيرحبلا ةورثلاو كامسلاا مسق/ةعارزلا ةيلك/ةرصبلا ةعماج","جامعة البصرة/كلية الزراعة/قسم االسماك والثروة البحرية"]
["ةيرحبلا ةورثلاو كامسلاا مسق/ةعارزلا ةيلك/ةرصبلا ةعماج","جامعة البصرة/كلية الزراعة/قسم االسماك والثروة البحرية"]
["داصتقلااو ةرادلاا ةيلك/ةرصبلا ةعماج","جامعة البصرة/كلية االدارة واالقتصاد"]
["داصتقلااو ةرادلاا ةيلك/ةرصبلا ةعماج","جامعة البصرة/كلية االدارة واالقتصاد"]
["داصتقلااو ةرادلاا ةيلك/ةرصبلا ةعماج","جامعة البصرة/كلية االدارة واالقتصاد"]
["ةنرقلا/ةيبرتلا ةيلك/ةرصبلا ةعماج","جامعة البصرة/كلية التربية/القرنة"]
["ةنرقلا/ةيبرتلا ةيلك/ةرصبلا ةعماج","جامعة البصرة/كلية التربية/القرنة"]
[null,""]
["ةنرقلا/ةيبرتلا ةيلك/ةرصبلا ةعماج","جامعة البصرة/كلية التربية/القرنة"]
["ةفرصلا مولعلل ةيبرتلا ةيلك/ةرصبلا ةعماج","جامعة البصرة/كلية التربية للعلوم الصرفة"]
["ةفرصلا مولعلل ةيبرتلا ةيلك/ةرصبلا ةعماج","جامعة البصرة/كلية التربية للعلوم الصرفة"]
["ةيناسنلاا مولعلل ةيبرتلا ةيلك/ةرصبلا ةعماج","جامعة البصرة/كلية التربية للعلوم االنسانية"]
["ةيناسنلاا مولعلل ةيبرتلا ةيلك/ةرصبلا ةعماج","جامعة البصرة/كلية التربية للعلوم االنسانية"]
["ةيناسنلاا مولعلل ةيبرتلا ةيلك/ةرصبلا ةعماج","جامعة البصرة/كلية التربية للعلوم االنسانية"]
["تانبلل ةيبرتلا ةيلك/ةرصبلا ةعماج","جامعة البصرة/كلية التربية للبنات"]
["تانبلل ةيبرتلا ةيلك/ةرصبلا ةعماج","جامعة البصرة/كلية التربية للبنات"]
["تانبلل ةيبرتلا ةيلك/ةرصبلا ةعماج","جامعة البصرة/كلية التربية للبنات"]
["بادلآا ةيلك/ةرصبلا ةعماج","جامعة البصرة/كلية اآلداب"]
["بادلآا ةيلك/ةرصبلا ةعماج","جامعة البصرة/كلية اآلداب"]
["بادلآا ةيلك/ةرصبلا ةعماج","جامعة البصرة/كلية اآلداب"]
["ةليمجلا نونفلا ةيلك/ةرصبلا ةعماج","جامعة البصرة/كلية الفنون الجميلة"]
["ةليمجلا نونفلا ةيلك/ةرصبلا ةعماج","جامعة البصرة/كلية الفنون الجميلة"]
["ةليمجلا نونفلا ةيلك/ةرصبلا ةعماج","جامعة البصرة/كلية الفنون الجميلة"]
["راحبلا مولع ةيلك/ةرصبلا ةعماج","جامعة البصرة/كلية علوم البحار"]
["راحبلا مولع ةيلك/ةرصبلا ةعماج","جامعة البصرة/كلية علوم البحار"]
["لصوملا بط ةيلك/لصوملا ةعماج","جامعة الموصل/كلية طب الموصل"]
["نانسلأا بط ةيلك/لصوملا ةعماج","جامعة الموصل/كلية طب األسنان"]
["ةلديصلا ةيلك/لصوملا ةعماج","جامعة الموصل/كلية الصيدلة"]
["نيدعتلا مسق/نيدعتلاو طفنلا ةسدنه/لصوملا ةعماج","جامعة الموصل/هندسة النفط والتعدين/قسم التعدين"]
["ريركتلاو طفنلا مسق/نيدعتلاو طفنلا ةسدنه/لصوملا ةعماج","جامعة الموصل/هندسة النفط والتعدين/قسم النفط والتكرير"]
["ةيطفنلا نماكملا مسق/نيدعتلاو طفنلا ةسدنه/لصوملا ةعماج","جامعة الموصل/هندسة النفط والتعدين/قسم المكامن النفطية"]
["ةرامعلا مسق/ةسدنهلا ةيلك/لصوملا ةعماج","جامعة الموصل/كلية الهندسة/قسم العمارة"]
["يندملا مسق/ةسدنهلا ةيلك/لصوملا ةعماج","جامعة الموصل/كلية الهندسة/قسم المدني"]
["ءابرهكلا مسق/ةسدنهلا ةيلك/لصوملا ةعماج","جامعة الموصل/كلية الهندسة/قسم الكهرباء"]
["بوساحلا مسق/ةسدنهلا ةيلك/لصوملا ةعماج","جامعة الموصل/كلية الهندسة/قسم الحاسوب"]
["بوساحلا مسق/ةسدنهلا ةيلك/لصوملا ةعماج","جامعة الموصل/كلية الهندسة/قسم الحاسوب"]
["كيناكيملا مسق/ةسدنهلا ةيلك/لصوملا ةعماج","جامعة الموصل/كلية الهندسة/قسم الميكانيك"]
["كيناكيملا مسق/ةسدنهلا ةيلك/لصوملا ةعماج","جامعة الموصل/كلية الهندسة/قسم الميكانيك"]
["ةيئاملا دراوملاو دودسلا مسق/ةسدنهلا ةيلك/لصوملا ةعماج","جامعة الموصل/كلية الهندسة/قسم السدود والموارد المائية"]
["سكنورتاكيملا مسق/ةسدنهلا ةيلك/لصوملا ةعماج","جامعة الموصل/كلية الهندسة/قسم الميكاترونكس"]
["ةئيبلا مسق/ةسدنهلا ةيلك/لصوملا ةعماج","جامعة الموصل/كلية الهندسة/قسم البيئة"]
["مولعلا ةيلك/لصوملا ةعماج","جامعة الموصل/كلية العلوم"]
["مولعلا ةيلك/لصوملا ةعماج","جامعة الموصل/كلية العلوم"]
["تايضايرلاو بوساحلا مولع ةيلك/لصوملا ةعماج","جامعة الموصل/كلية علوم الحاسوب والرياضيات"]
["تايضايرلاو بوساحلا مولع ةيلك/لصوملا ةعماج","جامعة الموصل/كلية علوم الحاسوب والرياضيات"]
["اهتاناقتو ةئيبلا مولع ةيلك/لصوملا ةعماج","جامعة الموصل/كلية علوم البيئة وتقاناتها"]
["اهتاناقتو ةئيبلا مولع ةيلك/لصوملا ةعماج","جامعة الموصل/كلية علوم البيئة وتقاناتها"]
["قوقحلا ةيلك/لصوملا ةعماج","جامعة الموصل/كلية الحقوق"]
["قوقحلا ةيلك/لصوملا ةعماج","جامعة الموصل/كلية الحقوق"]
["قوقحلا ةيلك/لصوملا ةعماج",{"$f":"Reversestr(A259)","v":"جامعة الموصل/كلية الحقوق"}]
["ةيسايسلا مولعلا ةيلك/لصوملا ةعماج","جامعة الموصل/كلية العلوم السياسية"]
["ةيسايسلا مولعلا ةيلك/لصوملا ةعماج","جامعة الموصل/كلية العلوم السياسية"]
["ةيسايسلا مولعلا ةيلك/لصوملا ةعماج","جامعة الموصل/كلية العلوم السياسية"]
["ضيرمتلا ةيلك/لصوملا ةعماج","جامعة الموصل/كلية التمريض"]
["ضيرمتلا ةيلك/لصوملا ةعماج","جامعة الموصل/كلية التمريض"]
["يرطيبلا بطلا ةيلك/لصوملا ةعماج","جامعة الموصل/كلية الطب البيطري"]
["تابنلا ةياقو مسق/تاباغلاو ةعارزلا ةيلك/لصوملا ةعماج","جامعة الموصل/كلية الزراعة والغابات/قسم وقاية النبات"]
["تابنلا ةياقو مسق/تاباغلاو ةعارزلا ةيلك/لصوملا ةعماج","جامعة الموصل/كلية الزراعة والغابات/قسم وقاية النبات"]
["ةيلقحلا ليصاحملا مسق/تاباغلاو ةعارزلا ةيلك/لصوملا ةعماج","جامعة الموصل/كلية الزراعة والغابات/قسم المحاصيل الحقلية"]
["ةيلقحلا ليصاحملا مسق/تاباغلاو ةعارزلا ةيلك/لصوملا ةعماج","جامعة الموصل/كلية الزراعة والغابات/قسم المحاصيل الحقلية"]
["ةيئاملا دراوملاو ةبرتلا مسق/تاباغلاو ةعارزلا ةيلك/لصوملا ةعماج","جامعة الموصل/كلية الزراعة والغابات/قسم التربة والموارد المائية"]
[null,""]
["ةيئاملا دراوملاو ةبرتلا مسق/تاباغلاو ةعارزلا ةيلك/لصوملا ةعماج","جامعة الموصل/كلية الزراعة والغابات/قسم التربة والموارد المائية"]
["يعارزلا داصتقلاا مسق/تاباغلاو ةعارزلا ةيلك/لصوملا ةعماج","جامعة الموصل/كلية الزراعة والغابات/قسم االقتصاد الزراعي"]
["يعارزلا داصتقلاا مسق/تاباغلاو ةعارزلا ةيلك/لصوملا ةعماج","جامعة الموصل/كلية الزراعة والغابات/قسم االقتصاد الزراعي"]
["يعارزلا ميلعتلا مسق/تاباغلاو ةعارزلا ةيلك/لصوملا ةعماج","جامعة الموصل/كلية الزراعة والغابات/قسم التعليم الزراعي"]
["يعارزلا ميلعتلا مسق/تاباغلاو ةعارزلا ةيلك/لصوملا ةعماج","جامعة الموصل/كلية الزراعة والغابات/قسم التعليم الزراعي"]
["ةيعارزلا تلالااو نئاكملا مسق/تاباغلاو ةعارزلا ةيلك/لصوملا ةعماج","جامعة الموصل/كلية الزراعة والغابات/قسم المكائن واالالت الزراعية"]
["ةيعارزلا تلالااو نئاكملا مسق/تاباغلاو ةعارزلا ةيلك/لصوملا ةعماج","جامعة الموصل/كلية الزراعة والغابات/قسم المكائن واالالت الزراعية"]
["يناويحلا جاتنلاا مسق/تاباغلاو ةعارزلا ةيلك/لصوملا ةعماج","جامعة الموصل/كلية الزراعة والغابات/قسم االنتاج الحيواني"]
["يناويحلا جاتنلاا مسق/تاباغلاو ةعارزلا ةيلك/لصوملا ةعماج","جامعة الموصل/كلية الزراعة والغابات/قسم االنتاج الحيواني"]
["قئادحلا ةسدنهو ةنتسبلا مسق/تاباغلاو ةعارزلا ةيلك/لصوملا ةعماج","جامعة الموصل/كلية الزراعة والغابات/قسم البستنة وهندسة الحدائق"]
["قئادحلا ةسدنهو ةنتسبلا مسق/تاباغلاو ةعارزلا ةيلك/لصوملا ةعماج","جامعة الموصل/كلية الزراعة والغابات/قسم البستنة وهندسة الحدائق"]
["ةيذغلاا مولع مسق/تاباغلاو ةعارزلا ةيلك/لصوملا ةعماج","جامعة الموصل/كلية الزراعة والغابات/قسم علوم االغذية"]
["ةيذغلاا مولع مسق/تاباغلاو ةعارزلا ةيلك/لصوملا ةعماج","جامعة الموصل/كلية الزراعة والغابات/قسم علوم االغذية"]
["تاباغلا مسق/تاباغلاو ةعارزلا ةيلك/لصوملا ةعماج","جامعة الموصل/كلية الزراعة والغابات/قسم الغابات"]
["تاباغلا مسق/تاباغلاو ةعارزلا ةيلك/لصوملا ةعماج","جامعة الموصل/كلية الزراعة والغابات/قسم الغابات"]
["داصتقلااو ةرادلإا ةيلك/لصوملا ةعماج","جامعة الموصل/كلية اإلدارة واالقتصاد"]
["داصتقلااو ةرادلإا ةيلك/لصوملا ةعماج","جامعة الموصل/كلية اإلدارة واالقتصاد"]
["داصتقلااو ةرادلإا ةيلك/لصوملا ةعماج","جامعة الموصل/كلية اإلدارة واالقتصاد"]
["ةفرصلا مولعلل ةيبرتلا ةيلك/لصوملا ةعماج","جامعة الموصل/كلية التربية للعلوم الصرفة"]
["ةفرصلا مولعلل ةيبرتلا ةيلك/لصوملا ةعماج","جامعة الموصل/كلية التربية للعلوم الصرفة"]
["ةيناسنلاا مولعلل ةيبرتلا ةيلك/لصوملا ةعماج","جامعة الموصل/كلية التربية للعلوم االنسانية"]
["ةيناسنلاا مولعلل ةيبرتلا ةيلك/لصوملا ةعماج","جامعة الموصل/كلية التربية للعلوم االنسانية"]
["ةيناسنلاا مولعلل ةيبرتلا ةيلك/لصوملا ةعماج","جامعة الموصل/كلية التربية للعلوم االنسانية"]
["تانبلل ةيبرتلا ةيلك/لصوملا ةعماج","جامعة الموصل/كلية التربية للبنات"]
["تانبلل ةيبرتلا ةيلك/لصوملا ةعماج","جامعة الموصل/كلية التربية للبنات"]
["تانبلل ةيبرتلا ةيلك/لصوملا ةعماج","جامعة الموصل/كلية التربية للبنات"]
["بادلآا ةيلك/لصوملا ةعماج","جامعة الموصل/كلية اآلداب"]
["بادلآا ةيلك/لصوملا ةعماج","جامعة الموصل/كلية اآلداب"]
["بادلآا ةيلك/لصوملا ةعماج","جامعة الموصل/كلية اآلداب"]
["تامولعملاو تابتكملا مسق/بادلآا ةيلك/لصوملا ةعماج","جامعة الموصل/كلية اآلداب/قسم المكتبات والمعلومات"]
["تامولعملاو تابتكملا مسق/بادلآا ةيلك/لصوملا ةعماج","جامعة الموصل/كلية اآلداب/قسم المكتبات والمعلومات"]
["تامولعملاو تابتكملا مسق/بادلآا ةيلك/لصوملا ةعماج","جامعة الموصل/كلية اآلداب/قسم المكتبات والمعلومات"]
["ةيساسلأا ةيبرتلا ةيلك/لصوملا ةعماج","جامعة الموصل/كلية التربية األساسية"]
["ةيساسلأا ةيبرتلا ةيلك/لصوملا ةعماج","جامعة الموصل/كلية التربية األساسية"]
["ةيساسلأا ةيبرتلا ةيلك/لصوملا ةعماج","جامعة الموصل/كلية التربية األساسية"]
["تانبلل لافطلاا ضاير مسق/ةيساسلأا ةيبرتلا ةيلك/لصوملا ةعماج","جامعة الموصل/كلية التربية األساسية/قسم رياض االطفال للبنات"]
["تانبلل لافطلاا ضاير مسق/ةيساسلأا ةيبرتلا ةيلك/لصوملا ةعماج","جامعة الموصل/كلية التربية األساسية/قسم رياض االطفال للبنات"]
["تانبلل لافطلاا ضاير مسق/ةيساسلأا ةيبرتلا ةيلك/لصوملا ةعماج","جامعة الموصل/كلية التربية األساسية/قسم رياض االطفال للبنات"]
["راثلاا ةيلك/لصوملا ةعماج","جامعة الموصل/كلية االثار"]
["راثلاا ةيلك/لصوملا ةعماج","جامعة الموصل/كلية االثار"]
["راثلاا ةيلك/لصوملا ةعماج","جامعة الموصل/كلية االثار"]
["ةيملاسلإا مولعلا ةيلك/لصوملا ةعماج","جامعة الموصل/كلية العلوم اإلسالمية"]
["ةيملاسلإا مولعلا ةيلك/لصوملا ةعماج","جامعة الموصل/كلية العلوم اإلسالمية"]
["ةيملاسلإا مولعلا ةيلك/لصوملا ةعماج","جامعة الموصل/كلية العلوم اإلسالمية"]
["ةليمجلا نونفلا ةيلك/لصوملا ةعماج","جامعة الموصل/كلية الفنون الجميلة"]
["ةليمجلا نونفلا ةيلك/لصوملا ةعماج","جامعة الموصل/كلية الفنون الجميلة"]
["ةليمجلا نونفلا ةيلك/لصوملا ةعماج","جامعة الموصل/كلية الفنون الجميلة"]
["ءابرهكلا مسق/ةيئابرهكلا ةسدنهلا/ةيجولونكتلا ةعماجلا","الجامعة التكنولوجية/الهندسة الكهربائية/قسم الكهرباء"]
["كينورتكللاا مسق/ةيئابرهكلا ةسدنهلا/ةيجولونكتلا ةعماجلا","الجامعة التكنولوجية/الهندسة الكهربائية/قسم االلكترونيك"]
["تايجماربلا مسق/بوساحلا ةسدنه/ةيجولونكتلا ةعماجلا","الجامعة التكنولوجية/هندسة الحاسوب/قسم البرامجيات"]
["تايجماربلا مسق/بوساحلا ةسدنه/ةيجولونكتلا ةعماجلا","الجامعة التكنولوجية/هندسة الحاسوب/قسم البرامجيات"]
["تامولعملا مسق/بوساحلا ةسدنه/ةيجولونكتلا ةعماجلا",{"$f":"Reversestr(A323)","v":"الجامعة التكنولوجية/هندسة الحاسوب/قسم المعلومات"}]
["تامولعملا مسق/بوساحلا ةسدنه/ةيجولونكتلا ةعماجلا","الجامعة التكنولوجية/هندسة الحاسوب/قسم المعلومات"]
[null,""]
["بوساحلا تاكبش مسق/بوساحلا ةسدنه/ةيجولونكتلا ةعماجلا","الجامعة التكنولوجية/هندسة الحاسوب/قسم شبكات الحاسوب"]
["بوساحلا تاكبش مسق/بوساحلا ةسدنه/ةيجولونكتلا ةعماجلا","الجامعة التكنولوجية/هندسة الحاسوب/قسم شبكات الحاسوب"]
["بوساحلا مسق/مظنلاو ةرطيسلا ةسدنه/ةيجولونكتلا ةعماجلا","الجامعة التكنولوجية/هندسة السيطرة والنظم/قسم الحاسوب"]
["بوساحلا مسق/مظنلاو ةرطيسلا ةسدنه/ةيجولونكتلا ةعماجلا","الجامعة التكنولوجية/هندسة السيطرة والنظم/قسم الحاسوب"]
["ةرطيسلا مسق/مظنلاو ةرطيسلا ةسدنه/ةيجولونكتلا ةعماجلا","الجامعة التكنولوجية/هندسة السيطرة والنظم/قسم السيطرة"]
["ةرطيسلا مسق/مظنلاو ةرطيسلا ةسدنه/ةيجولونكتلا ةعماجلا","الجامعة التكنولوجية/هندسة السيطرة والنظم/قسم السيطرة"]
["سكنورتاكيملا مسق/مظنلاو ةرطيسلا ةسدنه/ةيجولونكتلا ةعماجلا","الجامعة التكنولوجية/هندسة السيطرة والنظم/قسم الميكاترونكس"]
["ةيكلسلالا تلااصتلاا مظن مسق/تلااصتلاا ةسدنه/ةيجولونكتلا ةعماجلا","الجامعة التكنولوجية/هندسة االتصاالت/قسم نظم االتصاالت الالسلكية"]
["ةيكلسلالا تلااصتلاا مظن مسق/تلااصتلاا ةسدنه/ةيجولونكتلا ةعماجلا","الجامعة التكنولوجية/هندسة االتصاالت/قسم نظم االتصاالت الالسلكية"]
["ةيئوضلا تلااصتلاا مظن مسق/تلااصتلاا ةسدنه/ةيجولونكتلا ةعماجلا","الجامعة التكنولوجية/هندسة االتصاالت/قسم نظم االتصاالت الضوئية"]
["ةيئوضلا تلااصتلاا مظن مسق/تلااصتلاا ةسدنه/ةيجولونكتلا ةعماجلا","الجامعة التكنولوجية/هندسة االتصاالت/قسم نظم االتصاالت الضوئية"]
["ماعلا كيناكيملا مسق/ةيكيناكيملا ةسدنهلا/ةيجولونكتلا ةعماجلا","الجامعة التكنولوجية/الهندسة الميكانيكية/قسم الميكانيك العام"]
["ماعلا كيناكيملا مسق/ةيكيناكيملا ةسدنهلا/ةيجولونكتلا ةعماجلا","الجامعة التكنولوجية/الهندسة الميكانيكية/قسم الميكانيك العام"]
["تارئاطلا مسق/ةيكيناكيملا ةسدنهلا/ةيجولونكتلا ةعماجلا","الجامعة التكنولوجية/الهندسة الميكانيكية/قسم الطائرات"]
["تارئاطلا مسق/ةيكيناكيملا ةسدنهلا/ةيجولونكتلا ةعماجلا","الجامعة التكنولوجية/الهندسة الميكانيكية/قسم الطائرات"]
["تارايسلا مسق/ةيكيناكيملا ةسدنهلا/ةيجولونكتلا ةعماجلا","الجامعة التكنولوجية/الهندسة الميكانيكية/قسم السيارات"]
["تارايسلا مسق/ةيكيناكيملا ةسدنهلا/ةيجولونكتلا ةعماجلا","الجامعة التكنولوجية/الهندسة الميكانيكية/قسم السيارات"]
["ةردقلا تاطحم كيناكيم مسق/ةيكيناكيملا ةسدنهلا/ةيجولونكتلا ةعماجلا","الجامعة التكنولوجية/الهندسة الميكانيكية/قسم ميكانيك محطات القدرة"]
["ةردقلا تاطحم كيناكيم مسق/ةيكيناكيملا ةسدنهلا/ةيجولونكتلا ةعماجلا","الجامعة التكنولوجية/الهندسة الميكانيكية/قسم ميكانيك محطات القدرة"]
["ديمجتلاو فييكتلا مسق/ةيكيناكيملا ةسدنهلا/ةيجولونكتلا ةعماجلا","الجامعة التكنولوجية/الهندسة الميكانيكية/قسم التكييف والتجميد"]
["ديمجتلاو فييكتلا مسق/ةيكيناكيملا ةسدنهلا/ةيجولونكتلا ةعماجلا","الجامعة التكنولوجية/الهندسة الميكانيكية/قسم التكييف والتجميد"]
["زاغلاو طفنلا ريركت مسق/ةيئايميكلا ةسدنهلا/ةيجولونكتلا ةعماجلا","الجامعة التكنولوجية/الهندسة الكيميائية/قسم تكرير النفط والغاز"]
["زاغلاو طفنلا ريركت مسق/ةيئايميكلا ةسدنهلا/ةيجولونكتلا ةعماجلا","الجامعة التكنولوجية/الهندسة الكيميائية/قسم تكرير النفط والغاز"]
["يطفنلاو يعانصلا ثولتلا مسق/ةيئايميكلا ةسدنهلا/ةيجولونكتلا ةعماجلا","الجامعة التكنولوجية/الهندسة الكيميائية/قسم التلوث الصناعي والنفطي"]
["يطفنلاو يعانصلا ثولتلا مسق/ةيئايميكلا ةسدنهلا/ةيجولونكتلا ةعماجلا","الجامعة التكنولوجية/الهندسة الكيميائية/قسم التلوث الصناعي والنفطي"]
["ةيوايميكلا تايلمعلا مسق/ةيئايميكلا ةسدنهلا/ةيجولونكتلا ةعماجلا","الجامعة التكنولوجية/الهندسة الكيميائية/قسم العمليات الكيمياوية"]
["ةيوايميكلا تايلمعلا مسق/ةيئايميكلا ةسدنهلا/ةيجولونكتلا ةعماجلا","الجامعة التكنولوجية/الهندسة الكيميائية/قسم العمليات الكيمياوية"]
["نداعملا مسق/نداعملاو جاتنلاا ةسدنه/ةيجولونكتلا ةعماجلا","الجامعة التكنولوجية/هندسة االنتاج والمعادن/قسم المعادن"]
["نداعملا مسق/نداعملاو جاتنلاا ةسدنه/ةيجولونكتلا ةعماجلا","الجامعة التكنولوجية/هندسة االنتاج والمعادن/قسم المعادن"]
["جاتنلإا مسق/نداعملاو جاتنلاا ةسدنه/ةيجولونكتلا ةعماجلا","الجامعة التكنولوجية/هندسة االنتاج والمعادن/قسم اإلنتاج"]
["جاتنلإا مسق/نداعملاو جاتنلاا ةسدنه/ةيجولونكتلا ةعماجلا","الجامعة التكنولوجية/هندسة االنتاج والمعادن/قسم اإلنتاج"]
["ةيعانصلا مسق/نداعملاو جاتنلاا ةسدنه/ةيجولونكتلا ةعماجلا","الجامعة التكنولوجية/هندسة االنتاج والمعادن/قسم الصناعية"]
["ةيعانصلا مسق/نداعملاو جاتنلاا ةسدنه/ةيجولونكتلا ةعماجلا","الجامعة التكنولوجية/هندسة االنتاج والمعادن/قسم الصناعية"]
["بوساحلاب ناعملا عينصتلاو ميمصتلا مسق/نداعملاو جاتنلاا ةسدنه/ةيجولونكتلا ةعماجلا","الجامعة التكنولوجية/هندسة االنتاج والمعادن/قسم التصميم والتصنيع المعان بالحاسوب"]
["بوساحلاب ناعملا عينصتلاو ميمصتلا مسق/نداعملاو جاتنلاا ةسدنه/ةيجولونكتلا ةعماجلا","الجامعة التكنولوجية/هندسة االنتاج والمعادن/قسم التصميم والتصنيع المعان بالحاسوب"]
["ةيعانصلا داوملا مسق/داوملا ةسدنه/ةيجولونكتلا ةعماجلا","الجامعة التكنولوجية/هندسة المواد/قسم المواد الصناعية"]
["ةيعانصلا داوملا مسق/داوملا ةسدنه/ةيجولونكتلا ةعماجلا","الجامعة التكنولوجية/هندسة المواد/قسم المواد الصناعية"]
["ةيوايميكورتبلاو ةيرميلوبلا داوملا مسق/داوملا ةسدنه/ةيجولونكتلا ةعماجلا","الجامعة التكنولوجية/هندسة المواد/قسم المواد البوليمرية والبتروكيمياوية"]
["ةيوايميكورتبلاو ةيرميلوبلا داوملا مسق/داوملا ةسدنه/ةيجولونكتلا ةعماجلا","الجامعة التكنولوجية/هندسة المواد/قسم المواد البوليمرية والبتروكيمياوية"]
["ءانبلا داومو كيماريسلا مسق/داوملا ةسدنه/ةيجولونكتلا ةعماجلا","الجامعة التكنولوجية/هندسة المواد/قسم السيراميك ومواد البناء"]
["ءانبلا داومو كيماريسلا مسق/داوملا ةسدنه/ةيجولونكتلا ةعماجلا","الجامعة التكنولوجية/هندسة المواد/قسم السيراميك ومواد البناء"]
["رزيللا مسق/ةيرصبلا تاينورتكللااو رزيللا ةسدنه/ةيجولونكتلا ةعماجلا","الجامعة التكنولوجية/هندسة الليزر وااللكترونيات البصرية/قسم الليزر"]
["رزيللا مسق/ةيرصبلا تاينورتكللااو رزيللا ةسدنه/ةيجولونكتلا ةعماجلا","الجامعة التكنولوجية/هندسة الليزر وااللكترونيات البصرية/قسم الليزر"]
["ةينورتكللاا تايرصبلا مسق/ةيرصبلا تاينورتكللااو رزيللا ةسدنه/ةيجولونكتلا ةعماجلا","الجامعة التكنولوجية/هندسة الليزر وااللكترونيات البصرية/قسم البصريات االلكترونية"]
["ةينورتكللاا تايرصبلا مسق/ةيرصبلا تاينورتكللااو رزيللا ةسدنه/ةيجولونكتلا ةعماجلا","الجامعة التكنولوجية/هندسة الليزر وااللكترونيات البصرية/قسم البصريات االلكترونية"]
["ةيقيبطتلا مولعلا/ةيجولونكتلا ةعماجلا","الجامعة التكنولوجية/العلوم التطبيقية"]
["ةيقيبطتلا مولعلا/ةيجولونكتلا ةعماجلا","الجامعة التكنولوجية/العلوم التطبيقية"]
["بطلا ةيلك/ةفوكلا ةعماج","جامعة الكوفة/كلية الطب"]
["نانسلاا بط ةيلك/ةفوكلا ةعماج","جامعة الكوفة/كلية طب االسنان"]
["ةلديصلا ةيلك/ةفوكلا ةعماج","جامعة الكوفة/كلية الصيدلة"]
["يندملا مسق/ةسدنهلا ةيلك/ةفوكلا ةعماج","جامعة الكوفة/كلية الهندسة/قسم المدني"]
["ءابرهكلا مسق/ةسدنهلا ةيلك/ةفوكلا ةعماج","جامعة الكوفة/كلية الهندسة/قسم الكهرباء"]
["تلااصتلااو نورتكللاا مسق/ةسدنهلا ةيلك/ةفوكلا ةعماج","جامعة الكوفة/كلية الهندسة/قسم االلكترون واالتصاالت"]
[null,""]
["تلااصتلااو نورتكللاا مسق/ةسدنهلا ةيلك/ةفوكلا ةعماج","جامعة الكوفة/كلية الهندسة/قسم االلكترون واالتصاالت"]
["كيناكيملا مسق/ةسدنهلا ةيلك/ةفوكلا ةعماج","جامعة الكوفة/كلية الهندسة/قسم الميكانيك"]
["كيناكيملا مسق/ةسدنهلا ةيلك/ةفوكلا ةعماج","جامعة الكوفة/كلية الهندسة/قسم الميكانيك"]
["داوملا مسق/ةسدنهلا ةيلك/ةفوكلا ةعماج","جامعة الكوفة/كلية الهندسة/قسم المواد"]
["داوملا مسق/ةسدنهلا ةيلك/ةفوكلا ةعماج","جامعة الكوفة/كلية الهندسة/قسم المواد"]
["ةيئاملا دراوملاو تأشنملا مسق/ةسدنهلا ةيلك/ةفوكلا ةعماج","جامعة الكوفة/كلية الهندسة/قسم المنشأت والموارد المائية"]
["مولعلا ةيلك/ةفوكلا ةعماج","جامعة الكوفة/كلية العلوم"]
["مولعلا ةيلك/ةفوكلا ةعماج",{"$f":"Reversestr(A387)","v":"جامعة الكوفة/كلية العلوم"}]
["تايضايرلاو بوساحلا مولع ةيلك/ةفوكلا ةعماج","جامعة الكوفة/كلية علوم الحاسوب والرياضيات"]
["تايضايرلاو بوساحلا مولع ةيلك/ةفوكلا ةعماج","جامعة الكوفة/كلية علوم الحاسوب والرياضيات"]
["نوناقلا ةيلك/ةفوكلا ةعماج","جامعة الكوفة/كلية القانون"]
["نوناقلا ةيلك/ةفوكلا ةعماج","جامعة الكوفة/كلية القانون"]
["نوناقلا ةيلك/ةفوكلا ةعماج","جامعة الكوفة/كلية القانون"]
["ةيسايسلا مولعلا ةيلك/ةفوكلا ةعماج","جامعة الكوفة/كلية العلوم السياسية"]
["ةيسايسلا مولعلا ةيلك/ةفوكلا ةعماج","جامعة الكوفة/كلية العلوم السياسية"]
["ةيسايسلا مولعلا ةيلك/ةفوكلا ةعماج","جامعة الكوفة/كلية العلوم السياسية"]
["ضيرمتلا ةيلك/ةفوكلا ةعماج","جامعة الكوفة/كلية التمريض"]
["ضيرمتلا ةيلك/ةفوكلا ةعماج","جامعة الكوفة/كلية التمريض"]
["يرطيبلا بطلا ةيلك/ةفوكلا ةعماج","جامعة الكوفة/كلية الطب البيطري"]
["تابنلا ةياقو مسق/ةعارزلا ةيلك/ةفوكلا ةعماج","جامعة الكوفة/كلية الزراعة/قسم وقاية النبات"]
["تابنلا ةياقو مسق/ةعارزلا ةيلك/ةفوكلا ةعماج","جامعة الكوفة/كلية الزراعة/قسم وقاية النبات"]
["هايملاو ةبرتلا مسق/ةعارزلا ةيلك/ةفوكلا ةعماج","جامعة الكوفة/كلية الزراعة/قسم التربة والمياه"]
["هايملاو ةبرتلا مسق/ةعارزلا ةيلك/ةفوكلا ةعماج","جامعة الكوفة/كلية الزراعة/قسم التربة والمياه"]
["يناويحلا جاتنلاا مسق/ةعارزلا ةيلك/ةفوكلا ةعماج","جامعة الكوفة/كلية الزراعة/قسم االنتاج الحيواني"]
["يناويحلا جاتنلاا مسق/ةعارزلا ةيلك/ةفوكلا ةعماج","جامعة الكوفة/كلية الزراعة/قسم االنتاج الحيواني"]
["ةنتسبلا مسق/ةعارزلا ةيلك/ةفوكلا ةعماج","جامعة الكوفة/كلية الزراعة/قسم البستنة"]
["ةنتسبلا مسق/ةعارزلا ةيلك/ةفوكلا ةعماج","جامعة الكوفة/كلية الزراعة/قسم البستنة"]
["ةيذغلاا مولع مسق/ةعارزلا ةيلك/ةفوكلا ةعماج","جامعة الكوفة/كلية الزراعة/قسم علوم االغذية"]
["ةيذغلاا مولع مسق/ةعارزلا ةيلك/ةفوكلا ةعماج","جامعة الكوفة/كلية الزراعة/قسم علوم االغذية"]
["تاغللا ةيلك/ةفوكلا ةعماج","جامعة الكوفة/كلية اللغات"]
["تاغللا ةيلك/ةفوكلا ةعماج","جامعة الكوفة/كلية اللغات"]
["تاغللا ةيلك/ةفوكلا ةعماج","جامعة الكوفة/كلية اللغات"]
["داصتقلااو ةرادلإا ةيلك/ةفوكلا ةعماج","جامعة الكوفة/كلية اإلدارة واالقتصاد"]
["داصتقلااو ةرادلإا ةيلك/ةفوكلا ةعماج","جامعة الكوفة/كلية اإلدارة واالقتصاد"]
["داصتقلااو ةرادلإا ةيلك/ةفوكلا ةعماج","جامعة الكوفة/كلية اإلدارة واالقتصاد"]
["ةيبرتلا ةيلك/ةفوكلا ةعماج","جامعة الكوفة/كلية التربية"]
["ةيبرتلا ةيلك/ةفوكلا ةعماج","جامعة الكوفة/كلية التربية"]
["ةيبرتلا ةيلك/ةفوكلا ةعماج","جامعة الكوفة/كلية التربية"]
["تانبلل ةيبرتلا ةيلك/ةفوكلا ةعماج","جامعة الكوفة/كلية التربية للبنات"]
["تانبلل ةيبرتلا ةيلك/ةفوكلا ةعماج","جامعة الكوفة/كلية التربية للبنات"]
["تانبلل ةيبرتلا ةيلك/ةفوكلا ةعماج","جامعة الكوفة/كلية التربية للبنات"]
["بادلآا ةيلك/ةفوكلا ةعماج","جامعة الكوفة/كلية اآلداب"]
["بادلآا ةيلك/ةفوكلا ةعماج","جامعة الكوفة/كلية اآلداب"]
["بادلآا ةيلك/ةفوكلا ةعماج","جامعة الكوفة/كلية اآلداب"]
["ةفسلفلا مسق/بادلآا ةيلك/ةفوكلا ةعماج","جامعة الكوفة/كلية اآلداب/قسم الفلسفة"]
["ةفسلفلا مسق/بادلآا ةيلك/ةفوكلا ةعماج","جامعة الكوفة/كلية اآلداب/قسم الفلسفة"]
["ةفسلفلا مسق/بادلآا ةيلك/ةفوكلا ةعماج","جامعة الكوفة/كلية اآلداب/قسم الفلسفة"]
["ةيساسلاا ةيبرتلا ةيلك/ةفوكلا ةعماج","جامعة الكوفة/كلية التربية االساسية"]
["ةيساسلاا ةيبرتلا ةيلك/ةفوكلا ةعماج","جامعة الكوفة/كلية التربية االساسية"]
["ةيساسلاا ةيبرتلا ةيلك/ةفوكلا ةعماج","جامعة الكوفة/كلية التربية االساسية"]
["راثلاا ةيلك/ةفوكلا ةعماج","جامعة الكوفة/كلية االثار"]
["راثلاا ةيلك/ةفوكلا ةعماج","جامعة الكوفة/كلية االثار"]
["راثلاا ةيلك/ةفوكلا ةعماج","جامعة الكوفة/كلية االثار"]
[null,""]
["هقفلا ةيلك/ةفوكلا ةعماج","جامعة الكوفة/كلية الفقه"]
["هقفلا ةيلك/ةفوكلا ةعماج","جامعة الكوفة/كلية الفقه"]
["هقفلا ةيلك/ةفوكلا ةعماج","جامعة الكوفة/كلية الفقه"]
["ينارمعلا طيطختلا ةيلك/ةفوكلا ةعماج","جامعة الكوفة/كلية التخطيط العمراني"]
["ينارمعلا طيطختلا ةيلك/ةفوكلا ةعماج","جامعة الكوفة/كلية التخطيط العمراني"]
["بطلا ةيلك/تيركت ةعماج","جامعة تكريت/كلية الطب"]
["نانسلاا بط ةيلك/تيركت ةعماج","جامعة تكريت/كلية طب االسنان"]
["ةلديصلا ةيلك/تيركت ةعماج","جامعة تكريت/كلية الصيدلة"]
["ةيطفنلا تايلمعلا مسق/نداعملاو طفنلا ةسدنه ةيلك/تيركت ةعماج","جامعة تكريت/كلية هندسة النفط والمعادن/قسم العمليات النفطية"]
["ةيطفنلا تاموظنملا ةرطيس مسق/نداعملاو طفنلا ةسدنه ةيلك/تيركت ةعماج","جامعة تكريت/كلية هندسة النفط والمعادن/قسم سيطرة المنظومات النفطية"]
["يندملا مسق/ةسدنهلا ةيلك/تيركت ةعماج","جامعة تكريت/كلية الهندسة/قسم المدني"]
["ءابرهكلا مسق/ةسدنهلا ةيلك/تيركت ةعماج","جامعة تكريت/كلية الهندسة/قسم الكهرباء"]
["كيناكيملا مسق/ةسدنهلا ةيلك/تيركت ةعماج","جامعة تكريت/كلية الهندسة/قسم الميكانيك"]
["كيناكيملا مسق/ةسدنهلا ةيلك/تيركت ةعماج","جامعة تكريت/كلية الهندسة/قسم الميكانيك"]
["يوايميكلا مسق/ةسدنهلا ةيلك/تيركت ةعماج","جامعة تكريت/كلية الهندسة/قسم الكيمياوي"]
["يوايميكلا مسق/ةسدنهلا ةيلك/تيركت ةعماج","جامعة تكريت/كلية الهندسة/قسم الكيمياوي"]
["ةئيبلا مسق/ةسدنهلا ةيلك/تيركت ةعماج","جامعة تكريت/كلية الهندسة/قسم البيئة"]
["مولعلا ةيلك/تيركت ةعماج",{"$f":"Reversestr(A451)","v":"جامعة تكريت/كلية العلوم"}]
["مولعلا ةيلك/تيركت ةعماج","جامعة تكريت/كلية العلوم"]
["تايضايرلا مسق/تايضايرلاو بوساحلا مولع ةيلك/تيركت ةعماج","جامعة تكريت/كلية علوم الحاسوب والرياضيات/قسم الرياضيات"]
["تايضايرلا مسق/تايضايرلاو بوساحلا مولع ةيلك/تيركت ةعماج","جامعة تكريت/كلية علوم الحاسوب والرياضيات/قسم الرياضيات"]
["بوساحلا مسق/تايضايرلاو بوساحلا مولع ةيلك/تيركت ةعماج","جامعة تكريت/كلية علوم الحاسوب والرياضيات/قسم الحاسوب"]
["بوساحلا مسق/تايضايرلاو بوساحلا مولع ةيلك/تيركت ةعماج","جامعة تكريت/كلية علوم الحاسوب والرياضيات/قسم الحاسوب"]
["قوقحلا ةيلك/تيركت ةعماج","جامعة تكريت/كلية الحقوق"]
["قوقحلا ةيلك/تيركت ةعماج","جامعة تكريت/كلية الحقوق"]
["قوقحلا ةيلك/تيركت ةعماج","جامعة تكريت/كلية الحقوق"]
["ةيسايسلا مولعلا ةيلك/تيركت ةعماج","جامعة تكريت/كلية العلوم السياسية"]
["ةيسايسلا مولعلا ةيلك/تيركت ةعماج","جامعة تكريت/كلية العلوم السياسية"]
["ةيسايسلا مولعلا ةيلك/تيركت ةعماج","جامعة تكريت/كلية العلوم السياسية"]
["ضيرمتلا ةيلك/تيركت ةعماج","جامعة تكريت/كلية التمريض"]
["ضيرمتلا ةيلك/تيركت ةعماج","جامعة تكريت/كلية التمريض"]
["يرطيبلا بطلا ةيلك/تيركت ةعماج","جامعة تكريت/كلية الطب البيطري"]
["تابنلا ةياقو مسق/ةعارزلا ةيلك/تيركت ةعماج","جامعة تكريت/كلية الزراعة/قسم وقاية النبات"]
["تابنلا ةياقو مسق/ةعارزلا ةيلك/تيركت ةعماج","جامعة تكريت/كلية الزراعة/قسم وقاية النبات"]
["ةيلقحلا ليصاحملا مسق/ةعارزلا ةيلك/تيركت ةعماج","جامعة تكريت/كلية الزراعة/قسم المحاصيل الحقلية"]
["ةيلقحلا ليصاحملا مسق/ةعارزلا ةيلك/تيركت ةعماج","جامعة تكريت/كلية الزراعة/قسم المحاصيل الحقلية"]
["ةبرتلا مسق/ةعارزلا ةيلك/تيركت ةعماج","جامعة تكريت/كلية الزراعة/قسم التربة"]
["ةبرتلا مسق/ةعارزلا ةيلك/تيركت ةعماج","جامعة تكريت/كلية الزراعة/قسم التربة"]
["يعارزلا داشرلااو داصتقلاا مسق/ةعارزلا ةيلك/تيركت ةعماج","جامعة تكريت/كلية الزراعة/قسم االقتصاد واالرشاد الزراعي"]
["يعارزلا داشرلااو داصتقلاا مسق/ةعارزلا ةيلك/تيركت ةعماج","جامعة تكريت/كلية الزراعة/قسم االقتصاد واالرشاد الزراعي"]
["يناويحلا جاتنلاا مسق/ةعارزلا ةيلك/تيركت ةعماج","جامعة تكريت/كلية الزراعة/قسم االنتاج الحيواني"]
["يناويحلا جاتنلاا مسق/ةعارزلا ةيلك/تيركت ةعماج","جامعة تكريت/كلية الزراعة/قسم االنتاج الحيواني"]
["ةنتسبلا مسق/ةعارزلا ةيلك/تيركت ةعماج","جامعة تكريت/كلية الزراعة/قسم البستنة"]
["ةنتسبلا مسق/ةعارزلا ةيلك/تيركت ةعماج","جامعة تكريت/كلية الزراعة/قسم البستنة"]
["ةيئايحلاا تاناقتلاو ةيذغلاا مولع مسق/ةعارزلا ةيلك/تيركت ةعماج","جامعة تكريت/كلية الزراعة/قسم علوم االغذية والتقانات االحيائية"]
["ةيئايحلاا تاناقتلاو ةيذغلاا مولع مسق/ةعارزلا ةيلك/تيركت ةعماج","جامعة تكريت/كلية الزراعة/قسم علوم االغذية والتقانات االحيائية"]
["داصتقلااو ةرادلإا ةيلك/تيركت ةعماج","جامعة تكريت/كلية اإلدارة واالقتصاد"]
["داصتقلااو ةرادلإا ةيلك/تيركت ةعماج","جامعة تكريت/كلية اإلدارة واالقتصاد"]
["داصتقلااو ةرادلإا ةيلك/تيركت ةعماج","جامعة تكريت/كلية اإلدارة واالقتصاد"]
["وتامروخزوط/ةيبرتلا ةيلك/تيركت ةعماج","جامعة تكريت/كلية التربية/طوزخورماتو"]
["وتامروخزوط/ةيبرتلا ةيلك/تيركت ةعماج","جامعة تكريت/كلية التربية/طوزخورماتو"]
["وتامروخزوط/ةيبرتلا ةيلك/تيركت ةعماج","جامعة تكريت/كلية التربية/طوزخورماتو"]
["ةفرصلا مولعلل ةيبرتلا ةيلك/تيركت ةعماج","جامعة تكريت/كلية التربية للعلوم الصرفة"]
[null,""]
["ةفرصلا مولعلل ةيبرتلا ةيلك/تيركت ةعماج","جامعة تكريت/كلية التربية للعلوم الصرفة"]
["ةيناسنلاا مولعلل ةيبرتلا ةيلك/تيركت ةعماج","جامعة تكريت/كلية التربية للعلوم االنسانية"]
["ةيناسنلاا مولعلل ةيبرتلا ةيلك/تيركت ةعماج","جامعة تكريت/كلية التربية للعلوم االنسانية"]
["ةيناسنلاا مولعلل ةيبرتلا ةيلك/تيركت ةعماج","جامعة تكريت/كلية التربية للعلوم االنسانية"]
["تانبلل ةيبرتلا ةيلك/تيركت ةعماج","جامعة تكريت/كلية التربية للبنات"]
["تانبلل ةيبرتلا ةيلك/تيركت ةعماج","جامعة تكريت/كلية التربية للبنات"]
["تانبلل ةيبرتلا ةيلك/تيركت ةعماج","جامعة تكريت/كلية التربية للبنات"]
["بادلآا ةيلك/تيركت ةعماج","جامعة تكريت/كلية اآلداب"]
["بادلآا ةيلك/تيركت ةعماج","جامعة تكريت/كلية اآلداب"]
["بادلآا ةيلك/تيركت ةعماج","جامعة تكريت/كلية اآلداب"]
["طاقرشلا/ةيساسلاا ةيبرتلا ةيلك/تيركت ةعماج","جامعة تكريت/كلية التربية االساسية/الشرقاط"]
["طاقرشلا/ةيساسلاا ةيبرتلا ةيلك/تيركت ةعماج","جامعة تكريت/كلية التربية االساسية/الشرقاط"]
["طاقرشلا/ةيساسلاا ةيبرتلا ةيلك/تيركت ةعماج","جامعة تكريت/كلية التربية االساسية/الشرقاط"]
["ةيملاسلاا مولعلا ةيلك/تيركت ةعماج","جامعة تكريت/كلية العلوم االسالمية"]
["ةيملاسلاا مولعلا ةيلك/تيركت ةعماج","جامعة تكريت/كلية العلوم االسالمية"]
["ةيملاسلاا مولعلا ةيلك/تيركت ةعماج","جامعة تكريت/كلية العلوم االسالمية"]
["بطلا ةيلك/ةيسداقلا ةعماج","جامعة القادسية/كلية الطب"]
["نانسلاا بط ةيلك/ةيسداقلا ةعماج","جامعة القادسية/كلية طب االسنان"]
["ةلديصلا ةيلك/ةيسداقلا ةعماج","جامعة القادسية/كلية الصيدلة"]
["يندملا مسق/ةسدنهلا ةيلك/ةيسداقلا ةعماج","جامعة القادسية/كلية الهندسة/قسم المدني"]
["كيناكيملا مسق/ةسدنهلا ةيلك/ةيسداقلا ةعماج","جامعة القادسية/كلية الهندسة/قسم الميكانيك"]
["كيناكيملا مسق/ةسدنهلا ةيلك/ةيسداقلا ةعماج","جامعة القادسية/كلية الهندسة/قسم الميكانيك"]
["لقنلاو قرطلا مسق/ةسدنهلا ةيلك/ةيسداقلا ةعماج","جامعة القادسية/كلية الهندسة/قسم الطرق والنقل"]
["يوايميكلا مسق/ةسدنهلا ةيلك/ةيسداقلا ةعماج","جامعة القادسية/كلية الهندسة/قسم الكيمياوي"]
["يوايميكلا مسق/ةسدنهلا ةيلك/ةيسداقلا ةعماج","جامعة القادسية/كلية الهندسة/قسم الكيمياوي"]
["داوملا مسق/ةسدنهلا ةيلك/ةيسداقلا ةعماج","جامعة القادسية/كلية الهندسة/قسم المواد"]
["داوملا مسق/ةسدنهلا ةيلك/ةيسداقلا ةعماج","جامعة القادسية/كلية الهندسة/قسم المواد"]
["مولعلا ةيلك/ةيسداقلا ةعماج",{"$f":"Reversestr(A515)","v":"جامعة القادسية/كلية العلوم"}]
["مولعلا ةيلك/ةيسداقلا ةعماج","جامعة القادسية/كلية العلوم"]
["تامولعملا ايجولونكتو بوساحلا مولع ةيلك/ةيسداقلا ةعماج","جامعة القادسية/كلية علوم الحاسوب وتكنولوجيا المعلومات"]
["تامولعملا ايجولونكتو بوساحلا مولع ةيلك/ةيسداقلا ةعماج","جامعة القادسية/كلية علوم الحاسوب وتكنولوجيا المعلومات"]
["ةيئايحلاا تاناقتلا ةيلك/ةيسداقلا ةعماج","جامعة القادسية/كلية التقانات االحيائية"]
["ةيئايحلاا تاناقتلا ةيلك/ةيسداقلا ةعماج","جامعة القادسية/كلية التقانات االحيائية"]
["نوناقلا ةيلك/ةيسداقلا ةعماج","جامعة القادسية/كلية القانون"]
["نوناقلا ةيلك/ةيسداقلا ةعماج","جامعة القادسية/كلية القانون"]
["نوناقلا ةيلك/ةيسداقلا ةعماج","جامعة القادسية/كلية القانون"]
["ضيرمتلا ةيلك/ةيسداقلا ةعماج","جامعة القادسية/كلية التمريض"]
["ضيرمتلا ةيلك/ةيسداقلا ةعماج","جامعة القادسية/كلية التمريض"]
["يرطيبلا بطلا ةيلك/ةيسداقلا ةعماج","جامعة القادسية/كلية الطب البيطري"]
["ةيئاملا دراوملاو ةبرتلا مسق/ةعارزلا ةيلك/ةيسداقلا ةعماج","جامعة القادسية/كلية الزراعة/قسم التربة والموارد المائية"]
["ةيئاملا دراوملاو ةبرتلا مسق/ةعارزلا ةيلك/ةيسداقلا ةعماج","جامعة القادسية/كلية الزراعة/قسم التربة والموارد المائية"]
["يناويحلا جاتنلاا مسق/ةعارزلا ةيلك/ةيسداقلا ةعماج","جامعة القادسية/كلية الزراعة/قسم االنتاج الحيواني"]
["يناويحلا جاتنلاا مسق/ةعارزلا ةيلك/ةيسداقلا ةعماج","جامعة القادسية/كلية الزراعة/قسم االنتاج الحيواني"]
["قئادحلا ةسدنهو ةنتسبلا مسق/ةعارزلا ةيلك/ةيسداقلا ةعماج","جامعة القادسية/كلية الزراعة/قسم البستنة وهندسة الحدائق"]
["قئادحلا ةسدنهو ةنتسبلا مسق/ةعارزلا ةيلك/ةيسداقلا ةعماج","جامعة القادسية/كلية الزراعة/قسم البستنة وهندسة الحدائق"]
["داصتقلااو ةرادلإا ةيلك/ةيسداقلا ةعماج","جامعة القادسية/كلية اإلدارة واالقتصاد"]
["داصتقلااو ةرادلإا ةيلك/ةيسداقلا ةعماج","جامعة القادسية/كلية اإلدارة واالقتصاد"]
["داصتقلااو ةرادلإا ةيلك/ةيسداقلا ةعماج","جامعة القادسية/كلية اإلدارة واالقتصاد"]
["ةيبرتلا ةيلك/ةيسداقلا ةعماج","جامعة القادسية/كلية التربية"]
["ةيبرتلا ةيلك/ةيسداقلا ةعماج","جامعة القادسية/كلية التربية"]
["ةيبرتلا ةيلك/ةيسداقلا ةعماج","جامعة القادسية/كلية التربية"]
["تانبلل ةيبرتلا ةيلك/ةيسداقلا ةعماج","جامعة القادسية/كلية التربية للبنات"]
["تانبلل ةيبرتلا ةيلك/ةيسداقلا ةعماج","جامعة القادسية/كلية التربية للبنات"]
[null,""]
["تانبلل ةيبرتلا ةيلك/ةيسداقلا ةعماج","جامعة القادسية/كلية التربية للبنات"]
["بادلآا ةيلك/ةيسداقلا ةعماج","جامعة القادسية/كلية اآلداب"]
["بادلآا ةيلك/ةيسداقلا ةعماج","جامعة القادسية/كلية اآلداب"]
["بادلآا ةيلك/ةيسداقلا ةعماج","جامعة القادسية/كلية اآلداب"]
["سفنلا ملع مسق/بادلآا ةيلك/ةيسداقلا ةعماج","جامعة القادسية/كلية اآلداب/قسم علم النفس"]
["سفنلا ملع مسق/بادلآا ةيلك/ةيسداقلا ةعماج","جامعة القادسية/كلية اآلداب/قسم علم النفس"]
["سفنلا ملع مسق/بادلآا ةيلك/ةيسداقلا ةعماج","جامعة القادسية/كلية اآلداب/قسم علم النفس"]
["راثلاا ةيلك/ةيسداقلا ةعماج","جامعة القادسية/كلية االثار"]
["راثلاا ةيلك/ةيسداقلا ةعماج","جامعة القادسية/كلية االثار"]
["راثلاا ةيلك/ةيسداقلا ةعماج","جامعة القادسية/كلية االثار"]
["ةليمجلا نونفلا ةيلك/ةيسداقلا ةعماج","جامعة القادسية/كلية الفنون الجميلة"]
["ةليمجلا نونفلا ةيلك/ةيسداقلا ةعماج","جامعة القادسية/كلية الفنون الجميلة"]
["ةليمجلا نونفلا ةيلك/ةيسداقلا ةعماج","جامعة القادسية/كلية الفنون الجميلة"]
["بطلا ةيلك/رابنلاا ةعماج","جامعة االنبار/كلية الطب"]
["نانسلاا بط ةيلك/رابنلاا ةعماج","جامعة االنبار/كلية طب االسنان"]
["ةلديصلا ةيلك/رابنلاا ةعماج","جامعة االنبار/كلية الصيدلة"]
["يندملا مسق/ةسدنهلا ةيلك/رابنلاا ةعماج","جامعة االنبار/كلية الهندسة/قسم المدني"]
["ةيئابرهكلا مسق/ةسدنهلا ةيلك/رابنلاا ةعماج","جامعة االنبار/كلية الهندسة/قسم الكهربائية"]
["كيناكيملا مسق/ةسدنهلا ةيلك/رابنلاا ةعماج","جامعة االنبار/كلية الهندسة/قسم الميكانيك"]
["كيناكيملا مسق/ةسدنهلا ةيلك/رابنلاا ةعماج","جامعة االنبار/كلية الهندسة/قسم الميكانيك"]
["ةيئايميكورتبلاو ةيئايميكلا مسق/ةسدنهلا ةيلك/رابنلاا ةعماج","جامعة االنبار/كلية الهندسة/قسم الكيميائية والبتروكيميائية"]
["ةيئايميكورتبلاو ةيئايميكلا مسق/ةسدنهلا ةيلك/رابنلاا ةعماج","جامعة االنبار/كلية الهندسة/قسم الكيميائية والبتروكيميائية"]
["هايملا دراومو دودسلا مسق/ةسدنهلا ةيلك/رابنلاا ةعماج","جامعة االنبار/كلية الهندسة/قسم السدود وموارد المياه"]
["مولعلا ةيلك/رابنلاا ةعماج","جامعة االنبار/كلية العلوم"]
["مولعلا ةيلك/رابنلاا ةعماج","جامعة االنبار/كلية العلوم"]
["تامولعملا ايجولونكتو بوساحلا مولع ةيلك/رابنلاا ةعماج","جامعة االنبار/كلية علوم الحاسوب وتكنولوجيا المعلومات"]
["تامولعملا ايجولونكتو بوساحلا مولع ةيلك/رابنلاا ةعماج","جامعة االنبار/كلية علوم الحاسوب وتكنولوجيا المعلومات"]
["تيه/ةيقيبطتلا مولعلا ةيلك/رابنلاا ةعماج","جامعة االنبار/كلية العلوم التطبيقية/هيت"]
["تيه/ةيقيبطتلا مولعلا ةيلك/رابنلاا ةعماج","جامعة االنبار/كلية العلوم التطبيقية/هيت"]
["نوناقلا مسق/ةيسايسلا مولعلاو نوناقلا ةيلك/رابنلاا ةعماج","جامعة االنبار/كلية القانون والعلوم السياسية/قسم القانون"]
["نوناقلا مسق/ةيسايسلا مولعلاو نوناقلا ةيلك/رابنلاا ةعماج","جامعة االنبار/كلية القانون والعلوم السياسية/قسم القانون"]
["نوناقلا مسق/ةيسايسلا مولعلاو نوناقلا ةيلك/رابنلاا ةعماج","جامعة االنبار/كلية القانون والعلوم السياسية/قسم القانون"]
["ةيسايسلا مولعلا مسق/ةيسايسلا مولعلاو نوناقلا ةيلك/رابنلاا ةعماج","جامعة االنبار/كلية القانون والعلوم السياسية/قسم العلوم السياسية"]
["ةيسايسلا مولعلا مسق/ةيسايسلا مولعلاو نوناقلا ةيلك/رابنلاا ةعماج","جامعة االنبار/كلية القانون والعلوم السياسية/قسم العلوم السياسية"]
["ةيسايسلا مولعلا مسق/ةيسايسلا مولعلاو نوناقلا ةيلك/رابنلاا ةعماج","جامعة االنبار/كلية القانون والعلوم السياسية/قسم العلوم السياسية"]
["تابنلا ةياقو مسق/ةعارزلا ةيلك/رابنلاا ةعماج","جامعة االنبار/كلية الزراعة/قسم وقاية النبات"]
["تابنلا ةياقو مسق/ةعارزلا ةيلك/رابنلاا ةعماج","جامعة االنبار/كلية الزراعة/قسم وقاية النبات"]
["ةيلقحلا ليصاحملا مسق/ةعارزلا ةيلك/رابنلاا ةعماج",{"$f":"Reversestr(A579)","v":"جامعة االنبار/كلية الزراعة/قسم المحاصيل الحقلية"}]
["ةيلقحلا ليصاحملا مسق/ةعارزلا ةيلك/رابنلاا ةعماج","جامعة االنبار/كلية الزراعة/قسم المحاصيل الحقلية"]
["ةيئاملا دراوملاو ةبرتلا مسق/ةعارزلا ةيلك/رابنلاا ةعماج","جامعة االنبار/كلية الزراعة/قسم التربة والموارد المائية"]
["ةيئاملا دراوملاو ةبرتلا مسق/ةعارزلا ةيلك/رابنلاا ةعماج","جامعة االنبار/كلية الزراعة/قسم التربة والموارد المائية"]
["يعارزلا داصتقلاا مسق/ةعارزلا ةيلك/رابنلاا ةعماج","جامعة االنبار/كلية الزراعة/قسم االقتصاد الزراعي"]
["يعارزلا داصتقلاا مسق/ةعارزلا ةيلك/رابنلاا ةعماج","جامعة االنبار/كلية الزراعة/قسم االقتصاد الزراعي"]
["يناويحلا جاتنلاا مسق/ةعارزلا ةيلك/رابنلاا ةعماج","جامعة االنبار/كلية الزراعة/قسم االنتاج الحيواني"]
["يناويحلا جاتنلاا مسق/ةعارزلا ةيلك/رابنلاا ةعماج","جامعة االنبار/كلية الزراعة/قسم االنتاج الحيواني"]
["قئادحلا ةسدنهو ةنتسبلا مسق/ةعارزلا ةيلك/رابنلاا ةعماج","جامعة االنبار/كلية الزراعة/قسم البستنة وهندسة الحدائق"]
["قئادحلا ةسدنهو ةنتسبلا مسق/ةعارزلا ةيلك/رابنلاا ةعماج","جامعة االنبار/كلية الزراعة/قسم البستنة وهندسة الحدائق"]
["ةيذغلأا مولع مسق/ةعارزلا ةيلك/رابنلاا ةعماج","جامعة االنبار/كلية الزراعة/قسم علوم األغذية"]
["ةيذغلأا مولع مسق/ةعارزلا ةيلك/رابنلاا ةعماج","جامعة االنبار/كلية الزراعة/قسم علوم األغذية"]
["داصتقلااو ةرادلاا ةيلك/رابنلاا ةعماج","جامعة االنبار/كلية االدارة واالقتصاد"]
["داصتقلااو ةرادلاا ةيلك/رابنلاا ةعماج","جامعة االنبار/كلية االدارة واالقتصاد"]
["داصتقلااو ةرادلاا ةيلك/رابنلاا ةعماج","جامعة االنبار/كلية االدارة واالقتصاد"]
["مئاقلا/ةيبرتلا ةيلك/رابنلاا ةعماج","جامعة االنبار/كلية التربية/القائم"]
[null,""]
["مئاقلا/ةيبرتلا ةيلك/رابنلاا ةعماج","جامعة االنبار/كلية التربية/القائم"]
["مئاقلا/ةيبرتلا ةيلك/رابنلاا ةعماج","جامعة االنبار/كلية التربية/القائم"]
["ةفرصلا مولعلل ةيبرتلا/رابنلاا ةعماج","جامعة االنبار/التربية للعلوم الصرفة"]
["ةفرصلا مولعلل ةيبرتلا/رابنلاا ةعماج","جامعة االنبار/التربية للعلوم الصرفة"]
["ةيناسنلاا مولعلل ةيبرتلا ةيلك/رابنلاا ةعماج","جامعة االنبار/كلية التربية للعلوم االنسانية"]
["ةيناسنلاا مولعلل ةيبرتلا ةيلك/رابنلاا ةعماج","جامعة االنبار/كلية التربية للعلوم االنسانية"]
["ةيناسنلاا مولعلل ةيبرتلا ةيلك/رابنلاا ةعماج","جامعة االنبار/كلية التربية للعلوم االنسانية"]
["ةيسفنلاو ةيوبرتلا مولعلا مسق/ةيناسنلاا مولعلل ةيبرتلا ةيلك/رابنلاا ةعماج","جامعة االنبار/كلية التربية للعلوم االنسانية/قسم العلوم التربوية والنفسية"]
["ةيسفنلاو ةيوبرتلا مولعلا مسق/ةيناسنلاا مولعلل ةيبرتلا ةيلك/رابنلاا ةعماج","جامعة االنبار/كلية التربية للعلوم االنسانية/قسم العلوم التربوية والنفسية"]
["ةيسفنلاو ةيوبرتلا مولعلا مسق/ةيناسنلاا مولعلل ةيبرتلا ةيلك/رابنلاا ةعماج","جامعة االنبار/كلية التربية للعلوم االنسانية/قسم العلوم التربوية والنفسية"]
["تانبلل ةيبرتلا ةيلك/رابنلاا ةعماج","جامعة االنبار/كلية التربية للبنات"]
["تانبلل ةيبرتلا ةيلك/رابنلاا ةعماج","جامعة االنبار/كلية التربية للبنات"]
["تانبلل ةيبرتلا ةيلك/رابنلاا ةعماج","جامعة االنبار/كلية التربية للبنات"]
["بادلآا ةيلك/رابنلاا ةعماج","جامعة االنبار/كلية اآلداب"]
["بادلآا ةيلك/رابنلاا ةعماج","جامعة االنبار/كلية اآلداب"]
["بادلآا ةيلك/رابنلاا ةعماج","جامعة االنبار/كلية اآلداب"]
["ةثيدح/ةيساسلاا ةيبرتلا ةيلك/رابنلاا ةعماج","جامعة االنبار/كلية التربية االساسية/حديثة"]
["ةثيدح/ةيساسلاا ةيبرتلا ةيلك/رابنلاا ةعماج","جامعة االنبار/كلية التربية االساسية/حديثة"]
["ةثيدح/ةيساسلاا ةيبرتلا ةيلك/رابنلاا ةعماج","جامعة االنبار/كلية التربية االساسية/حديثة"]
["ةيملاسلاا مولعلا ةيلك/رابنلاا ةعماج","جامعة االنبار/كلية العلوم االسالمية"]
["ةيملاسلاا مولعلا ةيلك/رابنلاا ةعماج","جامعة االنبار/كلية العلوم االسالمية"]
["ةيملاسلاا مولعلا ةيلك/رابنلاا ةعماج","جامعة االنبار/كلية العلوم االسالمية"]
["بطلا ةيلك/ةيقارعلا ةعماجلا","الجامعة العراقية/كلية الطب"]
["نانسلاا بط ةيلك/ةيقارعلا ةعماجلا","الجامعة العراقية/كلية طب االسنان"]
["ةيئابرهكلا مسق/ةسدنهلا ةيلك/ةيقارعلا ةعماجلا","الجامعة العراقية/كلية الهندسة/قسم الكهربائية"]
["بوساحلا/ةسدنهلا ةيلك/ةيقارعلا ةعماجلا","الجامعة العراقية/كلية الهندسة/الحاسوب"]
["بوساحلا/ةسدنهلا ةيلك/ةيقارعلا ةعماجلا","الجامعة العراقية/كلية الهندسة/الحاسوب"]
["تاكبشلا مسق/ةسدنهلا ةيلك/ةيقارعلا ةعماجلا","الجامعة العراقية/كلية الهندسة/قسم الشبكات"]
["تاكبشلا مسق/ةسدنهلا ةيلك/ةيقارعلا ةعماجلا","الجامعة العراقية/كلية الهندسة/قسم الشبكات"]
["نوناقلا مسق/ةيسايسلا مولعلاو نوناقلا ةيلك/ةيقارعلا ةعماجلا","الجامعة العراقية/كلية القانون والعلوم السياسية/قسم القانون"]
["نوناقلا مسق/ةيسايسلا مولعلاو نوناقلا ةيلك/ةيقارعلا ةعماجلا","الجامعة العراقية/كلية القانون والعلوم السياسية/قسم القانون"]
["نوناقلا مسق/ةيسايسلا مولعلاو نوناقلا ةيلك/ةيقارعلا ةعماجلا","الجامعة العراقية/كلية القانون والعلوم السياسية/قسم القانون"]
["ةيسايسلا مولعلا مسق/ةيسايسلا مولعلاو نوناقلا ةيلك/ةيقارعلا ةعماجلا","الجامعة العراقية/كلية القانون والعلوم السياسية/قسم العلوم السياسية"]
["ةيسايسلا مولعلا مسق/ةيسايسلا مولعلاو نوناقلا ةيلك/ةيقارعلا ةعماجلا","الجامعة العراقية/كلية القانون والعلوم السياسية/قسم العلوم السياسية"]
["ةيسايسلا مولعلا مسق/ةيسايسلا مولعلاو نوناقلا ةيلك/ةيقارعلا ةعماجلا","الجامعة العراقية/كلية القانون والعلوم السياسية/قسم العلوم السياسية"]
["داصتقلااو ةرادلاا ةيلك/ةيقارعلا ةعماجلا","الجامعة العراقية/كلية االدارة واالقتصاد"]
["داصتقلااو ةرادلاا ةيلك/ةيقارعلا ةعماجلا","الجامعة العراقية/كلية االدارة واالقتصاد"]
["داصتقلااو ةرادلاا ةيلك/ةيقارعلا ةعماجلا","الجامعة العراقية/كلية االدارة واالقتصاد"]
["ةيمراطلا/ةيبرتلا ةيلك/ةيقارعلا ةعماجلا","الجامعة العراقية/كلية التربية/الطارمية"]
["ةيمراطلا/ةيبرتلا ةيلك/ةيقارعلا ةعماجلا","الجامعة العراقية/كلية التربية/الطارمية"]
["ةيمراطلا/ةيبرتلا ةيلك/ةيقارعلا ةعماجلا","الجامعة العراقية/كلية التربية/الطارمية"]
["تانبلل ةيبرتلا ةيلك/ةيقارعلا ةعماجلا","الجامعة العراقية/كلية التربية للبنات"]
["تانبلل ةيبرتلا ةيلك/ةيقارعلا ةعماجلا","الجامعة العراقية/كلية التربية للبنات"]
["تانبلل ةيبرتلا ةيلك/ةيقارعلا ةعماجلا","الجامعة العراقية/كلية التربية للبنات"]
["ةصاخلا ةيبرتلاو لافطلاا ضاير مسق/تانبلل ةيبرتلا ةيلك/ةيقارعلا ةعماجلا","الجامعة العراقية/كلية التربية للبنات/قسم رياض االطفال والتربية الخاصة"]
["ةصاخلا ةيبرتلاو لافطلاا ضاير مسق/تانبلل ةيبرتلا ةيلك/ةيقارعلا ةعماجلا","الجامعة العراقية/كلية التربية للبنات/قسم رياض االطفال والتربية الخاصة"]
["ةصاخلا ةيبرتلاو لافطلاا ضاير مسق/تانبلل ةيبرتلا ةيلك/ةيقارعلا ةعماجلا","الجامعة العراقية/كلية التربية للبنات/قسم رياض االطفال والتربية الخاصة"]
["بادلآا ةيلك/ةيقارعلا ةعماجلا",{"$f":"Reversestr(A643)","v":"الجامعة العراقية/كلية اآلداب"}]
["بادلآا ةيلك/ةيقارعلا ةعماجلا","الجامعة العراقية/كلية اآلداب"]
["بادلآا ةيلك/ةيقارعلا ةعماجلا","الجامعة العراقية/كلية اآلداب"]
["ةمجرتلا مسق/بادلآا ةيلك/ةيقارعلا ةعماجلا","الجامعة العراقية/كلية اآلداب/قسم الترجمة"]
["ةمجرتلا مسق/بادلآا ةيلك/ةيقارعلا ةعماجلا","الجامعة العراقية/كلية اآلداب/قسم الترجمة"]
["ةمجرتلا مسق/بادلآا ةيلك/ةيقارعلا ةعماجلا","الجامعة العراقية/كلية اآلداب/قسم الترجمة"]
[null,""]
["ةيملاسلاا مولعلا ةيلك/ةيقارعلا ةعماجلا","الجامعة العراقية/كلية العلوم االسالمية"]
["ةيملاسلاا مولعلا ةيلك/ةيقارعلا ةعماجلا","الجامعة العراقية/كلية العلوم االسالمية"]
["ةيملاسلاا مولعلا ةيلك/ةيقارعلا ةعماجلا","الجامعة العراقية/كلية العلوم االسالمية"]
["ملاعلاا ةيلك/ةيقارعلا ةعماجلا","الجامعة العراقية/كلية االعالم"]
["ملاعلاا ةيلك/ةيقارعلا ةعماجلا","الجامعة العراقية/كلية االعالم"]
["ملاعلاا ةيلك/ةيقارعلا ةعماجلا","الجامعة العراقية/كلية االعالم"]
["بطلا ةيلك/لباب ةعماج","جامعة بابل/كلية الطب"]
["يبارومح بطلا ةيلك/لباب ةعماج","جامعة بابل/كلية الطب حمورابي"]
["نانسلأا بط ةيلك/لباب ةعماج","جامعة بابل/كلية طب األسنان"]
["ةلديصلا ةيلك/لباب ةعماج","جامعة بابل/كلية الصيدلة"]
["ةرامعلا مسق/ةسدنهلا ةيلك/لباب ةعماج","جامعة بابل/كلية الهندسة/قسم العمارة"]
["يندملا مسق/ةسدنهلا ةيلك/لباب ةعماج","جامعة بابل/كلية الهندسة/قسم المدني"]
["ءابرهكلا مسق/ةسدنهلا ةيلك/لباب ةعماج","جامعة بابل/كلية الهندسة/قسم الكهرباء"]
["كيناكيملا مسق/ةسدنهلا ةيلك/لباب ةعماج","جامعة بابل/كلية الهندسة/قسم الميكانيك"]
["كيناكيملا مسق/ةسدنهلا ةيلك/لباب ةعماج","جامعة بابل/كلية الهندسة/قسم الميكانيك"]
["ةيوايميكلا مسق/ةسدنهلا ةيلك/لباب ةعماج","جامعة بابل/كلية الهندسة/قسم الكيمياوية"]
["ةيوايميكلا مسق/ةسدنهلا ةيلك/لباب ةعماج","جامعة بابل/كلية الهندسة/قسم الكيمياوية"]
["يتايحلا بطلا مسق/ةسدنهلا ةيلك/لباب ةعماج","جامعة بابل/كلية الهندسة/قسم الطب الحياتي"]
["يتايحلا بطلا مسق/ةسدنهلا ةيلك/لباب ةعماج","جامعة بابل/كلية الهندسة/قسم الطب الحياتي"]
["ةئيبلا مسق/ةسدنهلا ةيلك/لباب ةعماج","جامعة بابل/كلية الهندسة/قسم البيئة"]
["نداعملا مسق/داوملا ةسدنه ةيلك/لباب ةعماج","جامعة بابل/كلية هندسة المواد/قسم المعادن"]
["نداعملا مسق/داوملا ةسدنه ةيلك/لباب ةعماج","جامعة بابل/كلية هندسة المواد/قسم المعادن"]
["ةيوايميكورتبلا تاعانصلاو تارميلوبلا مسق/داوملا ةسدنه ةيلك/لباب ةعماج","جامعة بابل/كلية هندسة المواد/قسم البوليمرات والصناعات البتروكيمياوية"]
["ةيوايميكورتبلا تاعانصلاو تارميلوبلا مسق/داوملا ةسدنه ةيلك/لباب ةعماج","جامعة بابل/كلية هندسة المواد/قسم البوليمرات والصناعات البتروكيمياوية"]
["ءانبلا داومو كيماريسلا مسق/داوملا ةسدنه ةيلك/لباب ةعماج","جامعة بابل/كلية هندسة المواد/قسم السيراميك ومواد البناء"]
["ءانبلا داومو كيماريسلا مسق/داوملا ةسدنه ةيلك/لباب ةعماج","جامعة بابل/كلية هندسة المواد/قسم السيراميك ومواد البناء"]
["تارايسلا مسق/بيسملا/ةسدنهلا ةيلك/لباب ةعماج","جامعة بابل/كلية الهندسة/المسيب/قسم السيارات"]
["تارايسلا مسق/بيسملا/ةسدنهلا ةيلك/لباب ةعماج","جامعة بابل/كلية الهندسة/المسيب/قسم السيارات"]
["ةقاطلا مسق/بيسملا/ةسدنهلا ةيلك/لباب ةعماج","جامعة بابل/كلية الهندسة/المسيب/قسم الطاقة"]
["ةقاطلا مسق/بيسملا/ةسدنهلا ةيلك/لباب ةعماج","جامعة بابل/كلية الهندسة/المسيب/قسم الطاقة"]
["مولعلا ةيلك/لباب ةعماج","جامعة بابل/كلية العلوم"]
["مولعلا ةيلك/لباب ةعماج","جامعة بابل/كلية العلوم"]
["تانبلل مولعلا ةيلك/لباب ةعماج","جامعة بابل/كلية العلوم للبنات"]
["تانبلل مولعلا ةيلك/لباب ةعماج","جامعة بابل/كلية العلوم للبنات"]
["تامولعملا ايجولونكت ةيلك/لباب ةعماج","جامعة بابل/كلية تكنولوجيا المعلومات"]
["تامولعملا ايجولونكت ةيلك/لباب ةعماج","جامعة بابل/كلية تكنولوجيا المعلومات"]
["نوناقلا ةيلك/لباب ةعماج","جامعة بابل/كلية القانون"]
["نوناقلا ةيلك/لباب ةعماج","جامعة بابل/كلية القانون"]
["نوناقلا ةيلك/لباب ةعماج","جامعة بابل/كلية القانون"]
["ضيرمتلا ةيلك/لباب ةعماج","جامعة بابل/كلية التمريض"]
["ضيرمتلا ةيلك/لباب ةعماج","جامعة بابل/كلية التمريض"]
["داصتقلااو ةرادلاا ةيلك/لباب ةعماج","جامعة بابل/كلية االدارة واالقتصاد"]
["داصتقلااو ةرادلاا ةيلك/لباب ةعماج","جامعة بابل/كلية االدارة واالقتصاد"]
["داصتقلااو ةرادلاا ةيلك/لباب ةعماج","جامعة بابل/كلية االدارة واالقتصاد"]
["ةفرصلا مولعلل ةيبرتلا ةيلك/لباب ةعماج","جامعة بابل/كلية التربية للعلوم الصرفة"]
["ةفرصلا مولعلل ةيبرتلا ةيلك/لباب ةعماج","جامعة بابل/كلية التربية للعلوم الصرفة"]
["ةيناسنلاا مولعلل ةيبرتلا ةيلك/لباب ةعماج","جامعة بابل/كلية التربية للعلوم االنسانية"]
["ةيناسنلاا مولعلل ةيبرتلا ةيلك/لباب ةعماج","جامعة بابل/كلية التربية للعلوم االنسانية"]
["ةيناسنلاا مولعلل ةيبرتلا ةيلك/لباب ةعماج","جامعة بابل/كلية التربية للعلوم االنسانية"]
["بادلآا ةيلك/لباب ةعماج","جامعة بابل/كلية اآلداب"]
["بادلآا ةيلك/لباب ةعماج","جامعة بابل/كلية اآلداب"]
["بادلآا ةيلك/لباب ةعماج","جامعة بابل/كلية اآلداب"]
["راثلاا مسق/بادلآا ةيلك/لباب ةعماج","جامعة بابل/كلية اآلداب/قسم االثار"]
[null,""]
["راثلاا مسق/بادلآا ةيلك/لباب ةعماج","جامعة بابل/كلية اآلداب/قسم االثار"]
["راثلاا مسق/بادلآا ةيلك/لباب ةعماج","جامعة بابل/كلية اآلداب/قسم االثار"]
["ةيساسلأا ةيبرتلا ةيلك/لباب ةعماج","جامعة بابل/كلية التربية األساسية"]
["ةيساسلأا ةيبرتلا ةيلك/لباب ةعماج",{"$f":"Reversestr(A707)","v":"جامعة بابل/كلية التربية األساسية"}]
["ةيساسلأا ةيبرتلا ةيلك/لباب ةعماج","جامعة بابل/كلية التربية األساسية"]
["ىلولأا فوفصلا ملعم مسق/ةيساسلأا ةيبرتلا ةيلك/لباب ةعماج","جامعة بابل/كلية التربية األساسية/قسم معلم الصفوف األولى"]
["ىلولأا فوفصلا ملعم مسق/ةيساسلأا ةيبرتلا ةيلك/لباب ةعماج","جامعة بابل/كلية التربية األساسية/قسم معلم الصفوف األولى"]
["ىلولأا فوفصلا ملعم مسق/ةيساسلأا ةيبرتلا ةيلك/لباب ةعماج","جامعة بابل/كلية التربية األساسية/قسم معلم الصفوف األولى"]
["ةينآرقلا تاساردلا ةيلك/لباب ةعماج","جامعة بابل/كلية الدراسات القرآنية"]
["ةينآرقلا تاساردلا ةيلك/لباب ةعماج","جامعة بابل/كلية الدراسات القرآنية"]
["ةينآرقلا تاساردلا ةيلك/لباب ةعماج","جامعة بابل/كلية الدراسات القرآنية"]
["ةليمجلا نونفلا ةيلك/لباب ةعماج","جامعة بابل/كلية الفنون الجميلة"]
["ةليمجلا نونفلا ةيلك/لباب ةعماج","جامعة بابل/كلية الفنون الجميلة"]
["ةليمجلا نونفلا ةيلك/لباب ةعماج","جامعة بابل/كلية الفنون الجميلة"]
["بطلا ةيلك/نيرهنلا ةعماج","جامعة النهرين/كلية الطب"]
["ةلديصلا ةيلك/نيرهنلا ةعماج","جامعة النهرين/كلية الصيدلة"]
["ةرامعلا مسق/ةسدنهلا ةيلك/نيرهنلا ةعماج","جامعة النهرين/كلية الهندسة/قسم العمارة"]
["يندملا مسق/ةسدنهلا ةيلك/نيرهنلا ةعماج","جامعة النهرين/كلية الهندسة/قسم المدني"]
["ةينورتكللاا مسق/ةسدنهلا ةيلك/نيرهنلا ةعماج","جامعة النهرين/كلية الهندسة/قسم االلكترونية"]
["بوساحلا مسق/ةسدنهلا ةيلك/نيرهنلا ةعماج","جامعة النهرين/كلية الهندسة/قسم الحاسوب"]
["بوساحلا مسق/ةسدنهلا ةيلك/نيرهنلا ةعماج","جامعة النهرين/كلية الهندسة/قسم الحاسوب"]
["كيناكيملا مسق/ةسدنهلا ةيلك/نيرهنلا ةعماج","جامعة النهرين/كلية الهندسة/قسم الميكانيك"]
["كيناكيملا مسق/ةسدنهلا ةيلك/نيرهنلا ةعماج","جامعة النهرين/كلية الهندسة/قسم الميكانيك"]
["يوايميكلا مسق/ةسدنهلا ةيلك/نيرهنلا ةعماج","جامعة النهرين/كلية الهندسة/قسم الكيمياوي"]
["يوايميكلا مسق/ةسدنهلا ةيلك/نيرهنلا ةعماج","جامعة النهرين/كلية الهندسة/قسم الكيمياوي"]
["يتايحلا بطلا مسق/ةسدنهلا ةيلك/نيرهنلا ةعماج","جامعة النهرين/كلية الهندسة/قسم الطب الحياتي"]
["يتايحلا بطلا مسق/ةسدنهلا ةيلك/نيرهنلا ةعماج","جامعة النهرين/كلية الهندسة/قسم الطب الحياتي"]
["رزيللا مسق/ةسدنهلا ةيلك/نيرهنلا ةعماج","جامعة النهرين/كلية الهندسة/قسم الليزر"]
["رزيللا مسق/ةسدنهلا ةيلك/نيرهنلا ةعماج","جامعة النهرين/كلية الهندسة/قسم الليزر"]
["ةيعانصلا دناسملاو فارطلاا مسق/ةسدنهلا ةيلك/نيرهنلا ةعماج","جامعة النهرين/كلية الهندسة/قسم االطراف والمساند الصناعية"]
["ةيعانصلا دناسملاو فارطلاا مسق/ةسدنهلا ةيلك/نيرهنلا ةعماج","جامعة النهرين/كلية الهندسة/قسم االطراف والمساند الصناعية"]
["تلااصتلااو تامولعملا مسق/تامولعملا ةسدنه ةيلك/نيرهنلا ةعماج","جامعة النهرين/كلية هندسة المعلومات/قسم المعلومات واالتصاالت"]
["تلااصتلااو تامولعملا مسق/تامولعملا ةسدنه ةيلك/نيرهنلا ةعماج","جامعة النهرين/كلية هندسة المعلومات/قسم المعلومات واالتصاالت"]
["تاموظنملا مسق/تامولعملا ةسدنه ةيلك/نيرهنلا ةعماج","جامعة النهرين/كلية هندسة المعلومات/قسم المنظومات"]
["تاموظنملا مسق/تامولعملا ةسدنه ةيلك/نيرهنلا ةعماج","جامعة النهرين/كلية هندسة المعلومات/قسم المنظومات"]
["تاكبشلا مسق/تامولعملا ةسدنه ةيلك/نيرهنلا ةعماج","جامعة النهرين/كلية هندسة المعلومات/قسم الشبكات"]
["تاكبشلا مسق/تامولعملا ةسدنه ةيلك/نيرهنلا ةعماج","جامعة النهرين/كلية هندسة المعلومات/قسم الشبكات"]
["مولعلا ةيلك/نيرهنلا ةعماج","جامعة النهرين/كلية العلوم"]
["مولعلا ةيلك/نيرهنلا ةعماج","جامعة النهرين/كلية العلوم"]
["بوساحلا تاقيبطتو تايضايرلا مسق/مولعلا ةيلك/نيرهنلا ةعماج","جامعة النهرين/كلية العلوم/قسم الرياضيات وتطبيقات الحاسوب"]
["بوساحلا تاقيبطتو تايضايرلا مسق/مولعلا ةيلك/نيرهنلا ةعماج","جامعة النهرين/كلية العلوم/قسم الرياضيات وتطبيقات الحاسوب"]
["ةيئايحلاا تاينقتلا ةيلك/نيرهنلا ةعماج","جامعة النهرين/كلية التقنيات االحيائية"]
["ةيئايحلاا تاينقتلا ةيلك/نيرهنلا ةعماج","جامعة النهرين/كلية التقنيات االحيائية"]
["قوقحلا ةيلك/نيرهنلا ةعماج","جامعة النهرين/كلية الحقوق"]
["قوقحلا ةيلك/نيرهنلا ةعماج","جامعة النهرين/كلية الحقوق"]
["قوقحلا ةيلك/نيرهنلا ةعماج","جامعة النهرين/كلية الحقوق"]
["ةيسايسلا مولعلا ةيلك/نيرهنلا ةعماج","جامعة النهرين/كلية العلوم السياسية"]
["ةيسايسلا مولعلا ةيلك/نيرهنلا ةعماج","جامعة النهرين/كلية العلوم السياسية"]
["ةيسايسلا مولعلا ةيلك/نيرهنلا ةعماج","جامعة النهرين/كلية العلوم السياسية"]
["لامعلاا تايداصتقا ةيلك/نيرهنلا ةعماج","جامعة النهرين/كلية اقتصاديات االعمال"]
["لامعلاا تايداصتقا ةيلك/نيرهنلا ةعماج","جامعة النهرين/كلية اقتصاديات االعمال"]
["لامعلاا تايداصتقا ةيلك/نيرهنلا ةعماج","جامعة النهرين/كلية اقتصاديات االعمال"]
["بطلا ةيلك/ىلايد ةعماج","جامعة ديالى/كلية الطب"]
[null,""]
["ةرامعلا مسق/ةسدنهلا ةيلك/ىلايد ةعماج","جامعة ديالى/كلية الهندسة/قسم العمارة"]
["يندملا مسق/ةسدنهلا ةيلك/ىلايد ةعماج","جامعة ديالى/كلية الهندسة/قسم المدني"]
["ةيئابرهكلا نئاكملاو ةردقلا مسق/ةسدنهلا ةيلك/ىلايد ةعماج","جامعة ديالى/كلية الهندسة/قسم القدرة والمكائن الكهربائية"]
["تلااصتلاا مسق/ةسدنهلا ةيلك/ىلايد ةعماج","جامعة ديالى/كلية الهندسة/قسم االتصاالت"]
["تلااصتلاا مسق/ةسدنهلا ةيلك/ىلايد ةعماج","جامعة ديالى/كلية الهندسة/قسم االتصاالت"]
["كينورتكللاا مسق/ةسدنهلا ةيلك/ىلايد ةعماج","جامعة ديالى/كلية الهندسة/قسم االلكترونيك"]
["بوساحلا مسق/ةسدنهلا ةيلك/ىلايد ةعماج","جامعة ديالى/كلية الهندسة/قسم الحاسوب"]
["بوساحلا مسق/ةسدنهلا ةيلك/ىلايد ةعماج","جامعة ديالى/كلية الهندسة/قسم الحاسوب"]
["كيناكيملا مسق/ةسدنهلا ةيلك/ىلايد ةعماج","جامعة ديالى/كلية الهندسة/قسم الميكانيك"]
["كيناكيملا مسق/ةسدنهلا ةيلك/ىلايد ةعماج","جامعة ديالى/كلية الهندسة/قسم الميكانيك"]
["يوايميكلا مسق/ةسدنهلا ةيلك/ىلايد ةعماج","جامعة ديالى/كلية الهندسة/قسم الكيمياوي"]
["يوايميكلا مسق/ةسدنهلا ةيلك/ىلايد ةعماج","جامعة ديالى/كلية الهندسة/قسم الكيمياوي"]
["داوملا مسق/ةسدنهلا ةيلك/ىلايد ةعماج","جامعة ديالى/كلية الهندسة/قسم المواد"]
["داوملا مسق/ةسدنهلا ةيلك/ىلايد ةعماج",{"$f":"Reversestr(A771)","v":"جامعة ديالى/كلية الهندسة/قسم المواد"}]
["مولعلا ةيلك/ىلايد ةعماج","جامعة ديالى/كلية العلوم"]
["مولعلا ةيلك/ىلايد ةعماج","جامعة ديالى/كلية العلوم"]
["نوناقلا مسق/ةيسايسلا مولعلاو نوناقلا ةيلك/ىلايد ةعماج","جامعة ديالى/كلية القانون والعلوم السياسية/قسم القانون"]
["نوناقلا مسق/ةيسايسلا مولعلاو نوناقلا ةيلك/ىلايد ةعماج","جامعة ديالى/كلية القانون والعلوم السياسية/قسم القانون"]
["نوناقلا مسق/ةيسايسلا مولعلاو نوناقلا ةيلك/ىلايد ةعماج","جامعة ديالى/كلية القانون والعلوم السياسية/قسم القانون"]
["ةيسايسلا مولعلا مسق/ةيسايسلا مولعلاو نوناقلا ةيلك/ىلايد ةعماج","جامعة ديالى/كلية القانون والعلوم السياسية/قسم العلوم السياسية"]
["ةيسايسلا مولعلا مسق/ةيسايسلا مولعلاو نوناقلا ةيلك/ىلايد ةعماج","جامعة ديالى/كلية القانون والعلوم السياسية/قسم العلوم السياسية"]
["ةيسايسلا مولعلا مسق/ةيسايسلا مولعلاو نوناقلا ةيلك/ىلايد ةعماج","جامعة ديالى/كلية القانون والعلوم السياسية/قسم العلوم السياسية"]
["يرطيبلا بطلا ةيلك/ىلايد ةعماج","جامعة ديالى/كلية الطب البيطري"]
["ةيلقحلا ليصاحملا مولع مسق/ةعارزلا ةيلك/ىلايد ةعماج","جامعة ديالى/كلية الزراعة/قسم علوم المحاصيل الحقلية"]
["ةيلقحلا ليصاحملا مولع مسق/ةعارزلا ةيلك/ىلايد ةعماج","جامعة ديالى/كلية الزراعة/قسم علوم المحاصيل الحقلية"]
["ةيئاملا دراوملاو ةبرتلا مسق/ةعارزلا ةيلك/ىلايد ةعماج","جامعة ديالى/كلية الزراعة/قسم التربة والموارد المائية"]
["ةيئاملا دراوملاو ةبرتلا مسق/ةعارزلا ةيلك/ىلايد ةعماج","جامعة ديالى/كلية الزراعة/قسم التربة والموارد المائية"]
["يناويحلا جاتنلاا مسق/ةعارزلا ةيلك/ىلايد ةعماج","جامعة ديالى/كلية الزراعة/قسم االنتاج الحيواني"]
["يناويحلا جاتنلاا مسق/ةعارزلا ةيلك/ىلايد ةعماج","جامعة ديالى/كلية الزراعة/قسم االنتاج الحيواني"]
["ةنتسبلا مسق/ةعارزلا ةيلك/ىلايد ةعماج","جامعة ديالى/كلية الزراعة/قسم البستنة"]
["ةنتسبلا مسق/ةعارزلا ةيلك/ىلايد ةعماج","جامعة ديالى/كلية الزراعة/قسم البستنة"]
["داصتقلااو ةرادلاا ةيلك/ىلايد ةعماج","جامعة ديالى/كلية االدارة واالقتصاد"]
["داصتقلااو ةرادلاا ةيلك/ىلايد ةعماج","جامعة ديالى/كلية االدارة واالقتصاد"]
["داصتقلااو ةرادلاا ةيلك/ىلايد ةعماج","جامعة ديالى/كلية االدارة واالقتصاد"]
["ةيدادقملا/دادقملا ةيبرتلا ةيلك/ىلايد ةعماج","جامعة ديالى/كلية التربية المقداد/المقدادية"]
["ةيدادقملا/دادقملا ةيبرتلا ةيلك/ىلايد ةعماج","جامعة ديالى/كلية التربية المقداد/المقدادية"]
["ةيدادقملا/دادقملا ةيبرتلا ةيلك/ىلايد ةعماج","جامعة ديالى/كلية التربية المقداد/المقدادية"]
["ةفرصلا مولعلل ةيبرتلا ةيلك/ىلايد ةعماج","جامعة ديالى/كلية التربية للعلوم الصرفة"]
["ةفرصلا مولعلل ةيبرتلا ةيلك/ىلايد ةعماج","جامعة ديالى/كلية التربية للعلوم الصرفة"]
["ةيناسنلاا مولعلل ةيبرتلا ةيلك/ىلايد ةعماج","جامعة ديالى/كلية التربية للعلوم االنسانية"]
["ةيناسنلاا مولعلل ةيبرتلا ةيلك/ىلايد ةعماج","جامعة ديالى/كلية التربية للعلوم االنسانية"]
["ةيناسنلاا مولعلل ةيبرتلا ةيلك/ىلايد ةعماج","جامعة ديالى/كلية التربية للعلوم االنسانية"]
["ةيساسلأا ةيبرتلا ةيلك/ىلايد ةعماج","جامعة ديالى/كلية التربية األساسية"]
["ةيساسلأا ةيبرتلا ةيلك/ىلايد ةعماج","جامعة ديالى/كلية التربية األساسية"]
["ةيساسلأا ةيبرتلا ةيلك/ىلايد ةعماج","جامعة ديالى/كلية التربية األساسية"]
["ىلولاا فوفصلا ملعم مسق/ةيساسلأا ةيبرتلا ةيلك/ىلايد ةعماج","جامعة ديالى/كلية التربية األساسية/قسم معلم الصفوف االولى"]
["ىلولاا فوفصلا ملعم مسق/ةيساسلأا ةيبرتلا ةيلك/ىلايد ةعماج","جامعة ديالى/كلية التربية األساسية/قسم معلم الصفوف االولى"]
["ىلولاا فوفصلا ملعم مسق/ةيساسلأا ةيبرتلا ةيلك/ىلايد ةعماج","جامعة ديالى/كلية التربية األساسية/قسم معلم الصفوف االولى"]
["ةيملاسلاا مولعلا ةيلك/ىلايد ةعماج","جامعة ديالى/كلية العلوم االسالمية"]
["ةيملاسلاا مولعلا ةيلك/ىلايد ةعماج","جامعة ديالى/كلية العلوم االسالمية"]
["ةيملاسلاا مولعلا ةيلك/ىلايد ةعماج","جامعة ديالى/كلية العلوم االسالمية"]
["ةليمجلا نونفلا ةيلك/ىلايد ةعماج","جامعة ديالى/كلية الفنون الجميلة"]
["ةليمجلا نونفلا ةيلك/ىلايد ةعماج","جامعة ديالى/كلية الفنون الجميلة"]
[null,""]
["ةليمجلا نونفلا ةيلك/ىلايد ةعماج","جامعة ديالى/كلية الفنون الجميلة"]
["بطلا ةيلك/ءلابرك ةعماج","جامعة كربالء/كلية الطب"]
["نانسلاا بط ةيلك/ءلابرك ةعماج","جامعة كربالء/كلية طب االسنان"]
["ةلديصلا ةيلك/ءلابرك ةعماج","جامعة كربالء/كلية الصيدلة"]
["طفنلا مسق/ةسدنهلا ةيلك/ءلابرك ةعماج","جامعة كربالء/كلية الهندسة/قسم النفط"]
["ةرامعلا مسق/ةسدنهلا ةيلك/ءلابرك ةعماج","جامعة كربالء/كلية الهندسة/قسم العمارة"]
["يندملا مسق/ةسدنهلا ةيلك/ءلابرك ةعماج","جامعة كربالء/كلية الهندسة/قسم المدني"]
["كينورتكللااو ءابرهكلا مسق/ةسدنهلا ةيلك/ءلابرك ةعماج","جامعة كربالء/كلية الهندسة/قسم الكهرباء وااللكترونيك"]
["كيناكيملا مسق/ةسدنهلا ةيلك/ءلابرك ةعماج","جامعة كربالء/كلية الهندسة/قسم الميكانيك"]
["كيناكيملا مسق/ةسدنهلا ةيلك/ءلابرك ةعماج","جامعة كربالء/كلية الهندسة/قسم الميكانيك"]
["يتايحلا بطلا مسق/ةسدنهلا ةيلك/ءلابرك ةعماج","جامعة كربالء/كلية الهندسة/قسم الطب الحياتي"]
["يتايحلا بطلا مسق/ةسدنهلا ةيلك/ءلابرك ةعماج","جامعة كربالء/كلية الهندسة/قسم الطب الحياتي"]
["ةيعانصلا دناسملاو فارطلاا مسق/ةسدنهلا ةيلك/ءلابرك ةعماج","جامعة كربالء/كلية الهندسة/قسم االطراف والمساند الصناعية"]
["ةيعانصلا دناسملاو فارطلاا مسق/ةسدنهلا ةيلك/ءلابرك ةعماج","جامعة كربالء/كلية الهندسة/قسم االطراف والمساند الصناعية"]
["مولعلا ةيلك/ءلابرك ةعماج","جامعة كربالء/كلية العلوم"]
["مولعلا ةيلك/ءلابرك ةعماج","جامعة كربالء/كلية العلوم"]
["ةيضرملا تلايلحتلا مسق/ةيقيبطتلا ةيبطلا مولعلا ةيلك/ءلابرك ةعماج","جامعة كربالء/كلية العلوم الطبية التطبيقية/قسم التحليالت المرضية"]
["ةيئيبلا ةحصلا مسق/ةيقيبطتلا ةيبطلا مولعلا ةيلك/ءلابرك ةعماج","جامعة كربالء/كلية العلوم الطبية التطبيقية/قسم الصحة البيئية"]
["ةيئيبلا ةحصلا مسق/ةيقيبطتلا ةيبطلا مولعلا ةيلك/ءلابرك ةعماج","جامعة كربالء/كلية العلوم الطبية التطبيقية/قسم الصحة البيئية"]
["نوناقلا ةيلك/ءلابرك ةعماج","جامعة كربالء/كلية القانون"]
["نوناقلا ةيلك/ءلابرك ةعماج","جامعة كربالء/كلية القانون"]
["نوناقلا ةيلك/ءلابرك ةعماج","جامعة كربالء/كلية القانون"]
["ضيرمتلا ةيلك/ءلابرك ةعماج","جامعة كربالء/كلية التمريض"]
["ضيرمتلا ةيلك/ءلابرك ةعماج",{"$f":"Reversestr(A835)","v":"جامعة كربالء/كلية التمريض"}]
["يرطـيبلا بـطلا ةيلك/ءلابرك ةعماج","جامعة كربالء/كلية الطـب البيـطري"]
["تابنلا ةياقو مسق/ةعارزلا ةيلك/ءلابرك ةعماج","جامعة كربالء/كلية الزراعة/قسم وقاية النبات"]
["تابنلا ةياقو مسق/ةعارزلا ةيلك/ءلابرك ةعماج","جامعة كربالء/كلية الزراعة/قسم وقاية النبات"]
["ةيلقحلا ليصاحملا مسق/ةعارزلا ةيلك/ءلابرك ةعماج","جامعة كربالء/كلية الزراعة/قسم المحاصيل الحقلية"]
["ةيلقحلا ليصاحملا مسق/ةعارزلا ةيلك/ءلابرك ةعماج","جامعة كربالء/كلية الزراعة/قسم المحاصيل الحقلية"]
["يناويحلا جاتنلاا مسق/ةعارزلا ةيلك/ءلابرك ةعماج","جامعة كربالء/كلية الزراعة/قسم االنتاج الحيواني"]
["يناويحلا جاتنلاا مسق/ةعارزلا ةيلك/ءلابرك ةعماج","جامعة كربالء/كلية الزراعة/قسم االنتاج الحيواني"]
["ةنتسبلا مسق/ةعارزلا ةيلك/ءلابرك ةعماج","جامعة كربالء/كلية الزراعة/قسم البستنة"]
["ةنتسبلا مسق/ةعارزلا ةيلك/ءلابرك ةعماج","جامعة كربالء/كلية الزراعة/قسم البستنة"]
["داصتقلااو ةرادلاا ةيلك/ءلابرك ةعماج","جامعة كربالء/كلية االدارة واالقتصاد"]
["داصتقلااو ةرادلاا ةيلك/ءلابرك ةعماج","جامعة كربالء/كلية االدارة واالقتصاد"]
["داصتقلااو ةرادلاا ةيلك/ءلابرك ةعماج","جامعة كربالء/كلية االدارة واالقتصاد"]
["ةفرصلا مولعلل ةيبرتلا ةيلك/ءلابرك ةعماج","جامعة كربالء/كلية التربية للعلوم الصرفة"]
["ةفرصلا مولعلل ةيبرتلا ةيلك/ءلابرك ةعماج","جامعة كربالء/كلية التربية للعلوم الصرفة"]
["ةيناسنلاا مولعلل ةيبرتلا ةيلك/ءلابرك ةعماج","جامعة كربالء/كلية التربية للعلوم االنسانية"]
["ةيناسنلاا مولعلل ةيبرتلا ةيلك/ءلابرك ةعماج","جامعة كربالء/كلية التربية للعلوم االنسانية"]
["ةيناسنلاا مولعلل ةيبرتلا ةيلك/ءلابرك ةعماج","جامعة كربالء/كلية التربية للعلوم االنسانية"]
["ةيحايسلا مولعلا ةيلك/ءلابرك ةعماج","جامعة كربالء/كلية العلوم السياحية"]
["ةيحايسلا مولعلا ةيلك/ءلابرك ةعماج","جامعة كربالء/كلية العلوم السياحية"]
["ةيحايسلا مولعلا ةيلك/ءلابرك ةعماج","جامعة كربالء/كلية العلوم السياحية"]
["ةيملاسلاا مولعلا ةيلك/ءلابرك ةعماج","جامعة كربالء/كلية العلوم االسالمية"]
["ةيملاسلاا مولعلا ةيلك/ءلابرك ةعماج","جامعة كربالء/كلية العلوم االسالمية"]
["ةيملاسلاا مولعلا ةيلك/ءلابرك ةعماج","جامعة كربالء/كلية العلوم االسالمية"]
["بطلا ةيلك/راق يذ ةعماج","جامعة ذي قار/كلية الطب"]
["نانسلاا بط ةيلك/راق يذ ةعماج","جامعة ذي قار/كلية طب االسنان"]
["ةلديصلا ةيلك/راق يذ ةعماج","جامعة ذي قار/كلية الصيدلة"]
["زاغلاو طفنلا مسق/ةسدنهلا ةيلك/راق يذ ةعماج","جامعة ذي قار/كلية الهندسة/قسم النفط والغاز"]
["يندملا مسق/ةسدنهلا ةيلك/راق يذ ةعماج","جامعة ذي قار/كلية الهندسة/قسم المدني"]
["ةينورتكللااو ةيئابرهكلا مسق/ةسدنهلا ةيلك/راق يذ ةعماج","جامعة ذي قار/كلية الهندسة/قسم الكهربائية وااللكترونية"]
[null,""]
["كيناكيملا مسق/ةسدنهلا ةيلك/راق يذ ةعماج","جامعة ذي قار/كلية الهندسة/قسم الميكانيك"]
["كيناكيملا مسق/ةسدنهلا ةيلك/راق يذ ةعماج","جامعة ذي قار/كلية الهندسة/قسم الميكانيك"]
["يتايحلا بطلا مسق/ةسدنهلا ةيلك/راق يذ ةعماج","جامعة ذي قار/كلية الهندسة/قسم الطب الحياتي"]
["يتايحلا بطلا مسق/ةسدنهلا ةيلك/راق يذ ةعماج","جامعة ذي قار/كلية الهندسة/قسم الطب الحياتي"]
["مولعلا ةيلك/راق يذ ةعماج","جامعة ذي قار/كلية العلوم"]
["مولعلا ةيلك/راق يذ ةعماج","جامعة ذي قار/كلية العلوم"]
["تايضايرلاو بوساحلا مولع ةيلك/راق يذ ةعماج","جامعة ذي قار/كلية علوم الحاسوب والرياضيات"]
["تايضايرلاو بوساحلا مولع ةيلك/راق يذ ةعماج","جامعة ذي قار/كلية علوم الحاسوب والرياضيات"]
["نوناقلا ةيلك/راق يذ ةعماج","جامعة ذي قار/كلية القانون"]
["نوناقلا ةيلك/راق يذ ةعماج","جامعة ذي قار/كلية القانون"]
["نوناقلا ةيلك/راق يذ ةعماج","جامعة ذي قار/كلية القانون"]
["ضيرمتلا ةيلك/راق يذ ةعماج","جامعة ذي قار/كلية التمريض"]
["ضيرمتلا ةيلك/راق يذ ةعماج","جامعة ذي قار/كلية التمريض"]
["ةرطشلا/يرطيبلا بطلا ةيلك/راق يذ ةعماج","جامعة ذي قار/كلية الطب البيطري/الشطرة"]
["ةيلقحلا ليصاحملا مسق/راوهلااو ةعارزلا ةيلك/راق يذ ةعماج","جامعة ذي قار/كلية الزراعة واالهوار/قسم المحاصيل الحقلية"]
["ةيلقحلا ليصاحملا مسق/راوهلااو ةعارزلا ةيلك/راق يذ ةعماج","جامعة ذي قار/كلية الزراعة واالهوار/قسم المحاصيل الحقلية"]
["يناويحلا جاتنلاا مسق/راوهلااو ةعارزلا ةيلك/راق يذ ةعماج","جامعة ذي قار/كلية الزراعة واالهوار/قسم االنتاج الحيواني"]
["يناويحلا جاتنلاا مسق/راوهلااو ةعارزلا ةيلك/راق يذ ةعماج","جامعة ذي قار/كلية الزراعة واالهوار/قسم االنتاج الحيواني"]
["يتابنلا جاتنلاا مسق/راوهلااو ةعارزلا ةيلك/راق يذ ةعماج","جامعة ذي قار/كلية الزراعة واالهوار/قسم االنتاج النباتي"]
["يتابنلا جاتنلاا مسق/راوهلااو ةعارزلا ةيلك/راق يذ ةعماج","جامعة ذي قار/كلية الزراعة واالهوار/قسم االنتاج النباتي"]
["داصتقلااو ةرادلاا ةيلك/راق يذ ةعماج","جامعة ذي قار/كلية االدارة واالقتصاد"]
["داصتقلااو ةرادلاا ةيلك/راق يذ ةعماج","جامعة ذي قار/كلية االدارة واالقتصاد"]
["داصتقلااو ةرادلاا ةيلك/راق يذ ةعماج","جامعة ذي قار/كلية االدارة واالقتصاد"]
["ةفرصلا مولعلل ةيبرتلا ةيلك/راق يذ ةعماج","جامعة ذي قار/كلية التربية للعلوم الصرفة"]
["ةفرصلا مولعلل ةيبرتلا ةيلك/راق يذ ةعماج","جامعة ذي قار/كلية التربية للعلوم الصرفة"]
["ةيناسنلاا مولعلل ةيبرتلا ةيلك/راق يذ ةعماج","جامعة ذي قار/كلية التربية للعلوم االنسانية"]
["ةيناسنلاا مولعلل ةيبرتلا ةيلك/راق يذ ةعماج","جامعة ذي قار/كلية التربية للعلوم االنسانية"]
["ةيناسنلاا مولعلل ةيبرتلا ةيلك/راق يذ ةعماج","جامعة ذي قار/كلية التربية للعلوم االنسانية"]
["ةرطشلا/تانبلل ةيبرتلا ةيلك/راق يذ ةعماج","جامعة ذي قار/كلية التربية للبنات/الشطرة"]
["ةرطشلا/تانبلل ةيبرتلا ةيلك/راق يذ ةعماج","جامعة ذي قار/كلية التربية للبنات/الشطرة"]
["ةرطشلا/تانبلل ةيبرتلا ةيلك/راق يذ ةعماج","جامعة ذي قار/كلية التربية للبنات/الشطرة"]
["بادلآا ةيلك/راق يذ ةعماج","جامعة ذي قار/كلية اآلداب"]
["بادلآا ةيلك/راق يذ ةعماج","جامعة ذي قار/كلية اآلداب"]
["بادلآا ةيلك/راق يذ ةعماج",{"$f":"Reversestr(A899)","v":"جامعة ذي قار/كلية اآلداب"}]
["خويشلا قوس/ةيساسلأا ةيبرتلا ةيلك/راق يذ ةعماج","جامعة ذي قار/كلية التربية األساسية/سوق الشيوخ"]
["خويشلا قوس/ةيساسلأا ةيبرتلا ةيلك/راق يذ ةعماج","جامعة ذي قار/كلية التربية األساسية/سوق الشيوخ"]
["خويشلا قوس/ةيساسلأا ةيبرتلا ةيلك/راق يذ ةعماج","جامعة ذي قار/كلية التربية األساسية/سوق الشيوخ"]
["ىلولأا فوفصلا ملعم مسق/خويشلا قوس/ةيساسلأا ةيبرتلا ةيلك/راق يذ ةعماج","جامعة ذي قار/كلية التربية األساسية/سوق الشيوخ/قسم معلم الصفوف األولى"]
["ىلولأا فوفصلا ملعم مسق/خويشلا قوس/ةيساسلأا ةيبرتلا ةيلك/راق يذ ةعماج","جامعة ذي قار/كلية التربية األساسية/سوق الشيوخ/قسم معلم الصفوف األولى"]
["ىلولأا فوفصلا ملعم مسق/خويشلا قوس/ةيساسلأا ةيبرتلا ةيلك/راق يذ ةعماج","جامعة ذي قار/كلية التربية األساسية/سوق الشيوخ/قسم معلم الصفوف األولى"]
["خويشلا قوس/راثلاا ةيلك/راق يذ ةعماج","جامعة ذي قار/كلية االثار/سوق الشيوخ"]
["خويشلا قوس/راثلاا ةيلك/راق يذ ةعماج","جامعة ذي قار/كلية االثار/سوق الشيوخ"]
["خويشلا قوس/راثلاا ةيلك/راق يذ ةعماج","جامعة ذي قار/كلية االثار/سوق الشيوخ"]
["ةيملاسلاا مولعلا ةيلك/راق يذ ةعماج","جامعة ذي قار/كلية العلوم االسالمية"]
["ةيملاسلاا مولعلا ةيلك/راق يذ ةعماج","جامعة ذي قار/كلية العلوم االسالمية"]
["ةيملاسلاا مولعلا ةيلك/راق يذ ةعماج","جامعة ذي قار/كلية العلوم االسالمية"]
["ملاعلاا ةيلك/راق يذ ةعماج","جامعة ذي قار/كلية االعالم"]
["ملاعلاا ةيلك/راق يذ ةعماج","جامعة ذي قار/كلية االعالم"]
["ملاعلاا ةيلك/راق يذ ةعماج","جامعة ذي قار/كلية االعالم"]
["بطلا ةيلك/كوكرك ةعماج","جامعة كركوك/كلية الطب"]
["نانسلاا بط ةيلك/كوكرك ةعماج","جامعة كركوك/كلية طب االسنان"]
["طفنلا مسق/ةسدنهلا ةيلك/كوكرك ةعماج","جامعة كركوك/كلية الهندسة/قسم النفط"]
["يندملا مسق/ةسدنهلا ةيلك/كوكرك ةعماج","جامعة كركوك/كلية الهندسة/قسم المدني"]
[null,""]
["ءابرهكلا مسق/ةسدنهلا ةيلك/كوكرك ةعماج","جامعة كركوك/كلية الهندسة/قسم الكهرباء"]
["كيناكيملا مسق/ةسدنهلا ةيلك/كوكرك ةعماج","جامعة كركوك/كلية الهندسة/قسم الميكانيك"]
["كيناكيملا مسق/ةسدنهلا ةيلك/كوكرك ةعماج","جامعة كركوك/كلية الهندسة/قسم الميكانيك"]
["مولعلا ةيلك/كوكرك ةعماج","جامعة كركوك/كلية العلوم"]
["مولعلا ةيلك/كوكرك ةعماج","جامعة كركوك/كلية العلوم"]
["تامولعملا ايجولونكتو بوساحلا مولع ةيلك/كوكرك ةعماج","جامعة كركوك/كلية علوم الحاسوب وتكنولوجيا المعلومات"]
["تامولعملا ايجولونكتو بوساحلا مولع ةيلك/كوكرك ةعماج","جامعة كركوك/كلية علوم الحاسوب وتكنولوجيا المعلومات"]
["نوناقلا مسق/ةيسايسلا مولعلاو نوناقلا ةيلك/كوكرك ةعماج","جامعة كركوك/كلية القانون والعلوم السياسية/قسم القانون"]
["نوناقلا مسق/ةيسايسلا مولعلاو نوناقلا ةيلك/كوكرك ةعماج","جامعة كركوك/كلية القانون والعلوم السياسية/قسم القانون"]
["نوناقلا مسق/ةيسايسلا مولعلاو نوناقلا ةيلك/كوكرك ةعماج","جامعة كركوك/كلية القانون والعلوم السياسية/قسم القانون"]
["ةيسايسلا مولعلا مسق/ةيسايسلا مولعلاو نوناقلا ةيلك/كوكرك ةعماج","جامعة كركوك/كلية القانون والعلوم السياسية/قسم العلوم السياسية"]
["ةيسايسلا مولعلا مسق/ةيسايسلا مولعلاو نوناقلا ةيلك/كوكرك ةعماج","جامعة كركوك/كلية القانون والعلوم السياسية/قسم العلوم السياسية"]
["ةيسايسلا مولعلا مسق/ةيسايسلا مولعلاو نوناقلا ةيلك/كوكرك ةعماج","جامعة كركوك/كلية القانون والعلوم السياسية/قسم العلوم السياسية"]
["ضيرمتلا ةيلك/كوكرك ةعماج","جامعة كركوك/كلية التمريض"]
["ضيرمتلا ةيلك/كوكرك ةعماج","جامعة كركوك/كلية التمريض"]
["يرطيبلا بطلا ةيلك/كوكرك ةعماج","جامعة كركوك/كلية الطب البيطري"]
["ةيلقحلا ليصاحملا مسق/ةعارزلا ةيلك/كوكرك ةعماج","جامعة كركوك/كلية الزراعة/قسم المحاصيل الحقلية"]
["ةيلقحلا ليصاحملا مسق/ةعارزلا ةيلك/كوكرك ةعماج","جامعة كركوك/كلية الزراعة/قسم المحاصيل الحقلية"]
["هايملاو ةبرتلا مسق/ةعارزلا ةيلك/كوكرك ةعماج","جامعة كركوك/كلية الزراعة/قسم التربة والمياه"]
["هايملاو ةبرتلا مسق/ةعارزلا ةيلك/كوكرك ةعماج","جامعة كركوك/كلية الزراعة/قسم التربة والمياه"]
["يناويحلا جاتنلاا مسق/ةعارزلا ةيلك/كوكرك ةعماج","جامعة كركوك/كلية الزراعة/قسم االنتاج الحيواني"]
["يناويحلا جاتنلاا مسق/ةعارزلا ةيلك/كوكرك ةعماج","جامعة كركوك/كلية الزراعة/قسم االنتاج الحيواني"]
["ةنتسبلا مسق/ةعارزلا ةيلك/كوكرك ةعماج","جامعة كركوك/كلية الزراعة/قسم البستنة"]
["ةنتسبلا مسق/ةعارزلا ةيلك/كوكرك ةعماج","جامعة كركوك/كلية الزراعة/قسم البستنة"]
["تاباغلا مسق/ةعارزلا ةيلك/كوكرك ةعماج","جامعة كركوك/كلية الزراعة/قسم الغابات"]
["تاباغلا مسق/ةعارزلا ةيلك/كوكرك ةعماج","جامعة كركوك/كلية الزراعة/قسم الغابات"]
["ةيعارزلا تادعملاو ةننكملا مسق/ةجيوحلا/ةعارزلا ةيلك/كوكرك ةعماج","جامعة كركوك/كلية الزراعة/الحويجة/قسم المكننة والمعدات الزراعية"]
["ةيعارزلا تادعملاو ةننكملا مسق/ةجيوحلا/ةعارزلا ةيلك/كوكرك ةعماج","جامعة كركوك/كلية الزراعة/الحويجة/قسم المكننة والمعدات الزراعية"]
["ةيبطلاو ةيعانصلا ليصاحملا مسق/ةجيوحلا/ةعارزلا ةيلك/كوكرك ةعماج","جامعة كركوك/كلية الزراعة/الحويجة/قسم المحاصيل الصناعية والطبية"]
["ةيبطلاو ةيعانصلا ليصاحملا مسق/ةجيوحلا/ةعارزلا ةيلك/كوكرك ةعماج","جامعة كركوك/كلية الزراعة/الحويجة/قسم المحاصيل الصناعية والطبية"]
["داصتقلااو ةرادلاا ةيلك/كوكرك ةعماج","جامعة كركوك/كلية االدارة واالقتصاد"]
["داصتقلااو ةرادلاا ةيلك/كوكرك ةعماج","جامعة كركوك/كلية االدارة واالقتصاد"]
["داصتقلااو ةرادلاا ةيلك/كوكرك ةعماج","جامعة كركوك/كلية االدارة واالقتصاد"]
["ةجيوحلا/ةيبرتلا ةيلك/كوكرك ةعماج","جامعة كركوك/كلية التربية/الحويجة"]
["ةجيوحلا/ةيبرتلا ةيلك/كوكرك ةعماج","جامعة كركوك/كلية التربية/الحويجة"]
["ةجيوحلا/ةيبرتلا ةيلك/كوكرك ةعماج","جامعة كركوك/كلية التربية/الحويجة"]
["ةفرصلا مولعلل ةيبرتلا ةيلك/كوكرك ةعماج","جامعة كركوك/كلية التربية للعلوم الصرفة"]
["ةفرصلا مولعلل ةيبرتلا ةيلك/كوكرك ةعماج","جامعة كركوك/كلية التربية للعلوم الصرفة"]
["ةيناسنلاا مولعلل ةيبرتلا ةيلك/كوكرك ةعماج","جامعة كركوك/كلية التربية للعلوم االنسانية"]
["ةيناسنلاا مولعلل ةيبرتلا ةيلك/كوكرك ةعماج","جامعة كركوك/كلية التربية للعلوم االنسانية"]
["ةيناسنلاا مولعلل ةيبرتلا ةيلك/كوكرك ةعماج","جامعة كركوك/كلية التربية للعلوم االنسانية"]
["بادلآا ةيلك/كوكرك ةعماج","جامعة كركوك/كلية اآلداب"]
["بادلآا ةيلك/كوكرك ةعماج","جامعة كركوك/كلية اآلداب"]
["بادلآا ةيلك/كوكرك ةعماج",{"$f":"Reversestr(A963)","v":"جامعة كركوك/كلية اآلداب"}]
["ةيساسلأا ةيبرتلا ةيلك/كوكرك ةعماج","جامعة كركوك/كلية التربية األساسية"]
["ةيساسلأا ةيبرتلا ةيلك/كوكرك ةعماج","جامعة كركوك/كلية التربية األساسية"]
["ةيساسلأا ةيبرتلا ةيلك/كوكرك ةعماج","جامعة كركوك/كلية التربية األساسية"]
["بطلا ةيلك/طساو ةعماج","جامعة واسط/كلية الطب"]
["نانسلاا بط ةيلك/طساو ةعماج","جامعة واسط/كلية طب االسنان"]
["ةرامعلا مسق/ةسدنهلا ةيلك/طساو ةعماج","جامعة واسط/كلية الهندسة/قسم العمارة"]
["يندملا مسق/ةسدنهلا ةيلك/طساو ةعماج","جامعة واسط/كلية الهندسة/قسم المدني"]
["ءابرهكلا مسق/ةسدنهلا ةيلك/طساو ةعماج","جامعة واسط/كلية الهندسة/قسم الكهرباء"]
["كيناكيملا مسق/ةسدنهلا ةيلك/طساو ةعماج","جامعة واسط/كلية الهندسة/قسم الميكانيك"]
[null,""]
["كيناكيملا مسق/ةسدنهلا ةيلك/طساو ةعماج","جامعة واسط/كلية الهندسة/قسم الميكانيك"]
["مولعلا ةيلك/طساو ةعماج","جامعة واسط/كلية العلوم"]
["مولعلا ةيلك/طساو ةعماج","جامعة واسط/كلية العلوم"]
["تامولعملا ايجولونكتو بوساحلا مولع ةيلك/طساو ةعماج","جامعة واسط/كلية علوم الحاسوب وتكنولوجيا المعلومات"]
["تامولعملا ايجولونكتو بوساحلا مولع ةيلك/طساو ةعماج","جامعة واسط/كلية علوم الحاسوب وتكنولوجيا المعلومات"]
["نوناقلا ةيلك/طساو ةعماج","جامعة واسط/كلية القانون"]
["نوناقلا ةيلك/طساو ةعماج","جامعة واسط/كلية القانون"]
["نوناقلا ةيلك/طساو ةعماج","جامعة واسط/كلية القانون"]
["يحلا/يرطيبلا بطلا ةيلك/طساو ةعماج","جامعة واسط/كلية الطب البيطري/الحي"]
["ةيلقحلا ليصاحملا مسق/ةعارزلا ةيلك/طساو ةعماج","جامعة واسط/كلية الزراعة/قسم المحاصيل الحقلية"]
["ةيلقحلا ليصاحملا مسق/ةعارزلا ةيلك/طساو ةعماج","جامعة واسط/كلية الزراعة/قسم المحاصيل الحقلية"]
["يرلا تاينقتو ةبرتلا مسق/ةعارزلا ةيلك/طساو ةعماج","جامعة واسط/كلية الزراعة/قسم التربة وتقنيات الري"]
["يرلا تاينقتو ةبرتلا مسق/ةعارزلا ةيلك/طساو ةعماج","جامعة واسط/كلية الزراعة/قسم التربة وتقنيات الري"]
["يناويحلاو يتابنلا جاتنلاا مسق/ةعارزلا ةيلك/طساو ةعماج","جامعة واسط/كلية الزراعة/قسم االنتاج النباتي والحيواني"]
["يناويحلاو يتابنلا جاتنلاا مسق/ةعارزلا ةيلك/طساو ةعماج","جامعة واسط/كلية الزراعة/قسم االنتاج النباتي والحيواني"]
["داصتقلااو ةرادلاا ةيلك/طساو ةعماج","جامعة واسط/كلية االدارة واالقتصاد"]
["داصتقلااو ةرادلاا ةيلك/طساو ةعماج","جامعة واسط/كلية االدارة واالقتصاد"]
["داصتقلااو ةرادلاا ةيلك/طساو ةعماج","جامعة واسط/كلية االدارة واالقتصاد"]
["ةيبرتلا ةيلك/طساو ةعماج","جامعة واسط/كلية التربية"]
["ةيبرتلا ةيلك/طساو ةعماج","جامعة واسط/كلية التربية"]
["ةيبرتلا ةيلك/طساو ةعماج","جامعة واسط/كلية التربية"]
["بادلآا ةيلك/طساو ةعماج","جامعة واسط/كلية اآلداب"]
["بادلآا ةيلك/طساو ةعماج","جامعة واسط/كلية اآلداب"]
["بادلآا ةيلك/طساو ةعماج","جامعة واسط/كلية اآلداب"]
["ةيزيزعلا/ةيساسلاا ةيبرتلا ةيلك/طساو ةعماج","جامعة واسط/كلية التربية االساسية/العزيزية"]
["ةيزيزعلا/ةيساسلاا ةيبرتلا ةيلك/طساو ةعماج","جامعة واسط/كلية التربية االساسية/العزيزية"]
["ةيزيزعلا/ةيساسلاا ةيبرتلا ةيلك/طساو ةعماج","جامعة واسط/كلية التربية االساسية/العزيزية"]
["بطلا ةيلك/ناسيم ةعماج","جامعة ميسان/كلية الطب"]
["نانسلاا بط ةيلك/ناسيم ةعماج","جامعة ميسان/كلية طب االسنان"]
["ةلديصلا ةيلك/ناسيم ةعماج","جامعة ميسان/كلية الصيدلة"]
["طفنلا مسق/ةسدنهلا ةيلك/ناسيم ةعماج","جامعة ميسان/كلية الهندسة/قسم النفط"]
["يندملا مسق/ةسدنهلا ةيلك/ناسيم ةعماج","جامعة ميسان/كلية الهندسة/قسم المدني"]
["ءابرهكلا مسق/ةسدنهلا ةيلك/ناسيم ةعماج","جامعة ميسان/كلية الهندسة/قسم الكهرباء"]
["مولعلا ةيلك/ناسيم ةعماج","جامعة ميسان/كلية العلوم"]
["مولعلا ةيلك/ناسيم ةعماج","جامعة ميسان/كلية العلوم"]
["نوناقلا ةيلك/ناسيم ةعماج","جامعة ميسان/كلية القانون"]
["نوناقلا ةيلك/ناسيم ةعماج","جامعة ميسان/كلية القانون"]
["نوناقلا ةيلك/ناسيم ةعماج","جامعة ميسان/كلية القانون"]
["ةيسايسلا مولعلا ةيلك/ناسيم ةعماج","جامعة ميسان/كلية العلوم السياسية"]
["ةيسايسلا مولعلا ةيلك/ناسيم ةعماج","جامعة ميسان/كلية العلوم السياسية"]
["ةيسايسلا مولعلا ةيلك/ناسيم ةعماج","جامعة ميسان/كلية العلوم السياسية"]
["ضيرمتلا ةيلك/ناسيم ةعماج","جامعة ميسان/كلية التمريض"]
["ضيرمتلا ةيلك/ناسيم ةعماج","جامعة ميسان/كلية التمريض"]
["تابنلا ةياقو مسق/ةعارزلا ةيلك/ناسيم ةعماج","جامعة ميسان/كلية الزراعة/قسم وقاية النبات"]
["تابنلا ةياقو مسق/ةعارزلا ةيلك/ناسيم ةعماج","جامعة ميسان/كلية الزراعة/قسم وقاية النبات"]
["يناويحلا جاتنلاا مسق/ةعارزلا ةيلك/ناسيم ةعماج","جامعة ميسان/كلية الزراعة/قسم االنتاج الحيواني"]
["يناويحلا جاتنلاا مسق/ةعارزلا ةيلك/ناسيم ةعماج","جامعة ميسان/كلية الزراعة/قسم االنتاج الحيواني"]
["داصتقلااو ةرادلاا ةيلك/ناسيم ةعماج","جامعة ميسان/كلية االدارة واالقتصاد"]
["داصتقلااو ةرادلاا ةيلك/ناسيم ةعماج","جامعة ميسان/كلية االدارة واالقتصاد"]
["داصتقلااو ةرادلاا ةيلك/ناسيم ةعماج","جامعة ميسان/كلية االدارة واالقتصاد"]
["ةيبرتلا ةيلك/ناسيم ةعماج","جامعة ميسان/كلية التربية"]
["ةيبرتلا ةيلك/ناسيم ةعماج","جامعة ميسان/كلية التربية"]
["ةيبرتلا ةيلك/ناسيم ةعماج","جامعة ميسان/كلية التربية"]
[null,{"$f":"Reversestr(A1027)","v":""}]
["ةيساسلاا ةيبرتلا ةيلك/ناسيم ةعماج","جامعة ميسان/كلية التربية االساسية"]
["ةيساسلاا ةيبرتلا ةيلك/ناسيم ةعماج","جامعة ميسان/كلية التربية االساسية"]
["ةيساسلاا ةيبرتلا ةيلك/ناسيم ةعماج","جامعة ميسان/كلية التربية االساسية"]
["ىلولاا فوفصلا ملعم مسق/ةيساسلاا ةيبرتلا ةيلك/ناسيم ةعماج","جامعة ميسان/كلية التربية االساسية/قسم معلم الصفوف االولى"]
["ىلولاا فوفصلا ملعم مسق/ةيساسلاا ةيبرتلا ةيلك/ناسيم ةعماج","جامعة ميسان/كلية التربية االساسية/قسم معلم الصفوف االولى"]
["ىلولاا فوفصلا ملعم مسق/ةيساسلاا ةيبرتلا ةيلك/ناسيم ةعماج","جامعة ميسان/كلية التربية االساسية/قسم معلم الصفوف االولى"]
["بطلا ةيلك/ىنثملا ةعماج","جامعة المثنى/كلية الطب"]
["نانسلاا بط ةيلك/ىنثملا ةعماج","جامعة المثنى/كلية طب االسنان"]
["ةلديصلا ةيلك/ىنثملا ةعماج","جامعة المثنى/كلية الصيدلة"]
["ةرامعلا مسق/ةسدنهلا ةيلك/ىنثملا ةعماج","جامعة المثنى/كلية الهندسة/قسم العمارة"]
["يندملا مسق/ةسدنهلا ةيلك/ىنثملا ةعماج","جامعة المثنى/كلية الهندسة/قسم المدني"]
["يوايميكلا مسق/ةسدنهلا ةيلك/ىنثملا ةعماج","جامعة المثنى/كلية الهندسة/قسم الكيمياوي"]
["يوايميكلا مسق/ةسدنهلا ةيلك/ىنثملا ةعماج","جامعة المثنى/كلية الهندسة/قسم الكيمياوي"]
["مولعلا ةيلك/ىنثملا ةعماج","جامعة المثنى/كلية العلوم"]
["مولعلا ةيلك/ىنثملا ةعماج","جامعة المثنى/كلية العلوم"]
["بوساحلا تاقيبطتو تايضايرلا مسق/مولعلا ةيلك/ىنثملا ةعماج","جامعة المثنى/كلية العلوم/قسم الرياضيات وتطبيقات الحاسوب"]
["بوساحلا تاقيبطتو تايضايرلا مسق/مولعلا ةيلك/ىنثملا ةعماج","جامعة المثنى/كلية العلوم/قسم الرياضيات وتطبيقات الحاسوب"]
["نوناقلا ةيلك/ىنثملا ةعماج","جامعة المثنى/كلية القانون"]
["نوناقلا ةيلك/ىنثملا ةعماج","جامعة المثنى/كلية القانون"]
["نوناقلا ةيلك/ىنثملا ةعماج","جامعة المثنى/كلية القانون"]
["ضيرمتلا ةيلك/ىنثملا ةعماج","جامعة المثنى/كلية التمريض"]
["ضيرمتلا ةيلك/ىنثملا ةعماج","جامعة المثنى/كلية التمريض"]
["يرطيبلا بطلا ةيلك/ىنثملا ةعماج","جامعة المثنى/كلية الطب البيطري"]
["تابنلا ةياقو مسق/ةعارزلا ةيلك/ىنثملا ةعماج","جامعة المثنى/كلية الزراعة/قسم وقاية النبات"]
["تابنلا ةياقو مسق/ةعارزلا ةيلك/ىنثملا ةعماج","جامعة المثنى/كلية الزراعة/قسم وقاية النبات"]
["ةيلقحلا ليصاحملا مسق/ةعارزلا ةيلك/ىنثملا ةعماج","جامعة المثنى/كلية الزراعة/قسم المحاصيل الحقلية"]
["ةيلقحلا ليصاحملا مسق/ةعارزلا ةيلك/ىنثملا ةعماج","جامعة المثنى/كلية الزراعة/قسم المحاصيل الحقلية"]
["هايملاو ةبرتلا مسق/ةعارزلا ةيلك/ىنثملا ةعماج","جامعة المثنى/كلية الزراعة/قسم التربة والمياه"]
["هايملاو ةبرتلا مسق/ةعارزلا ةيلك/ىنثملا ةعماج","جامعة المثنى/كلية الزراعة/قسم التربة والمياه"]
["يناويحلا جاتنلاا مسق/ةعارزلا ةيلك/ىنثملا ةعماج","جامعة المثنى/كلية الزراعة/قسم االنتاج الحيواني"]
["يناويحلا جاتنلاا مسق/ةعارزلا ةيلك/ىنثملا ةعماج","جامعة المثنى/كلية الزراعة/قسم االنتاج الحيواني"]
["رحصتلا ةحفاكم مسق/ةعارزلا ةيلك/ىنثملا ةعماج","جامعة المثنى/كلية الزراعة/قسم مكافحة التصحر"]
["رحصتلا ةحفاكم مسق/ةعارزلا ةيلك/ىنثملا ةعماج","جامعة المثنى/كلية الزراعة/قسم مكافحة التصحر"]
["داصتقلااو ةرادلاا ةيلك/ىنثملا ةعماج","جامعة المثنى/كلية االدارة واالقتصاد"]
["داصتقلااو ةرادلاا ةيلك/ىنثملا ةعماج","جامعة المثنى/كلية االدارة واالقتصاد"]
["داصتقلااو ةرادلاا ةيلك/ىنثملا ةعماج","جامعة المثنى/كلية االدارة واالقتصاد"]
["ةفرصلا مولعلل ةيبرتلا ةيلك/ىنثملا ةعماج","جامعة المثنى/كلية التربية للعلوم الصرفة"]
["ةفرصلا مولعلل ةيبرتلا ةيلك/ىنثملا ةعماج","جامعة المثنى/كلية التربية للعلوم الصرفة"]
["ةيناسنلاا مولعلل ةيبرتلا ةيلك/ىنثملا ةعماج","جامعة المثنى/كلية التربية للعلوم االنسانية"]
["ةيناسنلاا مولعلل ةيبرتلا ةيلك/ىنثملا ةعماج","جامعة المثنى/كلية التربية للعلوم االنسانية"]
["ةيناسنلاا مولعلل ةيبرتلا ةيلك/ىنثملا ةعماج","جامعة المثنى/كلية التربية للعلوم االنسانية"]
["بادلآا ةيلك/ىنثملا ةعماج","جامعة المثنى/كلية اآلداب"]
["بادلآا ةيلك/ىنثملا ةعماج","جامعة المثنى/كلية اآلداب"]
["بادلآا ةيلك/ىنثملا ةعماج","جامعة المثنى/كلية اآلداب"]
["ةيساسلاا ةيبرتلا ةيلك/ىنثملا ةعماج","جامعة المثنى/كلية التربية االساسية"]
["ةيساسلاا ةيبرتلا ةيلك/ىنثملا ةعماج","جامعة المثنى/كلية التربية االساسية"]
["ةيساسلاا ةيبرتلا ةيلك/ىنثملا ةعماج","جامعة المثنى/كلية التربية االساسية"]
["ةرامعلا مسق/ةسدنهلا ةيلك/ءارماس ةعماج","جامعة سامراء/كلية الهندسة/قسم العمارة"]
["ةيكيناكيمورهكلا مسق/ةسدنهلا ةيلك/ءارماس ةعماج","جامعة سامراء/كلية الهندسة/قسم الكهروميكانيكية"]
["ةيكيناكيمورهكلا مسق/ةسدنهلا ةيلك/ءارماس ةعماج","جامعة سامراء/كلية الهندسة/قسم الكهروميكانيكية"]
["ةيندملا مسق/ةسدنهلا ةيلك/ءارماس ةعماج","جامعة سامراء/كلية الهندسة/قسم المدنية"]
["ةيقيبطتلا مولعلا ةيلك/ءارماس ةعماج","جامعة سامراء/كلية العلوم التطبيقية"]
["ةيقيبطتلا مولعلا ةيلك/ءارماس ةعماج","جامعة سامراء/كلية العلوم التطبيقية"]
[null,""]
["ةيبرتلا ةيلك/ءارماس ةعماج","جامعة سامراء/كلية التربية"]
["ةيبرتلا ةيلك/ءارماس ةعماج","جامعة سامراء/كلية التربية"]
["ةيبرتلا ةيلك/ءارماس ةعماج","جامعة سامراء/كلية التربية"]
["راثلاا ةيلك/ءارماس ةعماج","جامعة سامراء/كلية االثار"]
["راثلاا ةيلك/ءارماس ةعماج","جامعة سامراء/كلية االثار"]
["راثلاا ةيلك/ءارماس ةعماج","جامعة سامراء/كلية االثار"]
["ةيملاسلاا مولعلا ةيلك/ءارماس ةعماج","جامعة سامراء/كلية العلوم االسالمية"]
["ةيملاسلاا مولعلا ةيلك/ءارماس ةعماج","جامعة سامراء/كلية العلوم االسالمية"]
["ةيملاسلاا مولعلا ةيلك/ءارماس ةعماج","جامعة سامراء/كلية العلوم االسالمية"]
["تامولعملا ايجولونكتو بوساحلا مولع ةيلك/رموس ةعماج",{"$f":"Reversestr(A1091)","v":"جامعة سومر/كلية علوم الحاسوب وتكنولوجيا المعلومات"}]
["تامولعملا ايجولونكتو بوساحلا مولع ةيلك/رموس ةعماج","جامعة سومر/كلية علوم الحاسوب وتكنولوجيا المعلومات"]
["نوناقلا ةيلك/رموس ةعماج","جامعة سومر/كلية القانون"]
["نوناقلا ةيلك/رموس ةعماج","جامعة سومر/كلية القانون"]
["نوناقلا ةيلك/رموس ةعماج","جامعة سومر/كلية القانون"]
["ةيئاملا دراوملاو ةبرتلا مسق/ةعارزلا ةيلك/رموس ةعماج","جامعة سومر/كلية الزراعة/قسم التربة والموارد المائية"]
["ةيئاملا دراوملاو ةبرتلا مسق/ةعارزلا ةيلك/رموس ةعماج","جامعة سومر/كلية الزراعة/قسم التربة والموارد المائية"]
["يناويحلا جاتنلاا مسق/ةعارزلا ةيلك/رموس ةعماج","جامعة سومر/كلية الزراعة/قسم االنتاج الحيواني"]
["يناويحلا جاتنلاا مسق/ةعارزلا ةيلك/رموس ةعماج","جامعة سومر/كلية الزراعة/قسم االنتاج الحيواني"]
["داصتقلااو ةرادلاا ةيلك/رموس ةعماج","جامعة سومر/كلية االدارة واالقتصاد"]
["داصتقلااو ةرادلاا ةيلك/رموس ةعماج","جامعة سومر/كلية االدارة واالقتصاد"]
["داصتقلااو ةرادلاا ةيلك/رموس ةعماج","جامعة سومر/كلية االدارة واالقتصاد"]
["ةيساسلاا ةيبرتلا ةيلك/رموس ةعماج","جامعة سومر/كلية التربية االساسية"]
["ةيساسلاا ةيبرتلا ةيلك/رموس ةعماج","جامعة سومر/كلية التربية االساسية"]
["ةيساسلاا ةيبرتلا ةيلك/رموس ةعماج","جامعة سومر/كلية التربية االساسية"]
["ىلولاا فوفصلا ملعم مسق/ةيساسلاا ةيبرتلا ةيلك/رموس ةعماج","جامعة سومر/كلية التربية االساسية/قسم معلم الصفوف االولى"]
["ىلولاا فوفصلا ملعم مسق/ةيساسلاا ةيبرتلا ةيلك/رموس ةعماج","جامعة سومر/كلية التربية االساسية/قسم معلم الصفوف االولى"]
["ىلولاا فوفصلا ملعم مسق/ةيساسلاا ةيبرتلا ةيلك/رموس ةعماج","جامعة سومر/كلية التربية االساسية/قسم معلم الصفوف االولى"]
["ةيئاملا دراوملا ةرادإ مسق/ةيئاملا دراوملا ةسدنه ةيلك/ءارضخلا مساقلا ةعماج","جامعة القاسم الخضراء/كلية هندسة الموارد المائية/قسم إدارة الموارد المائية"]
["ةيكيلورديهلا تأشنملا مسق/ةيئاملا دراوملا ةسدنه ةيلك/ءارضخلا مساقلا ةعماج","جامعة القاسم الخضراء/كلية هندسة الموارد المائية/قسم المنشأت الهيدروليكية"]
["ةيئايحلاا تاناقتلا ةيلك/ءارضخلا مساقلا ةعماج","جامعة القاسم الخضراء/كلية التقانات االحيائية"]
["ةيئايحلاا تاناقتلا ةيلك/ءارضخلا مساقلا ةعماج","جامعة القاسم الخضراء/كلية التقانات االحيائية"]
["ةئيبلا مولع ةيلك/ءارضخلا مساقلا ةعماج","جامعة القاسم الخضراء/كلية علوم البيئة"]
["ةئيبلا مولع ةيلك/ءارضخلا مساقلا ةعماج","جامعة القاسم الخضراء/كلية علوم البيئة"]
["يرطيبلا بطلا ةيلك/ءارضخلا مساقلا ةعماج","جامعة القاسم الخضراء/كلية الطب البيطري"]
["ةيلقحلا ليصاحملا مسق/ةعارزلا ةيلك/ءارضخلا مساقلا ةعماج","جامعة القاسم الخضراء/كلية الزراعة/قسم المحاصيل الحقلية"]
["ةيلقحلا ليصاحملا مسق/ةعارزلا ةيلك/ءارضخلا مساقلا ةعماج","جامعة القاسم الخضراء/كلية الزراعة/قسم المحاصيل الحقلية"]
["هايملاو ةبرتلا مسق/ةعارزلا ةيلك/ءارضخلا مساقلا ةعماج","جامعة القاسم الخضراء/كلية الزراعة/قسم التربة والمياه"]
["هايملاو ةبرتلا مسق/ةعارزلا ةيلك/ءارضخلا مساقلا ةعماج","جامعة القاسم الخضراء/كلية الزراعة/قسم التربة والمياه"]
["يناويحلا جاتنلاا مسق/ةعارزلا ةيلك/ءارضخلا مساقلا ةعماج","جامعة القاسم الخضراء/كلية الزراعة/قسم االنتاج الحيواني"]
["يناويحلا جاتنلاا مسق/ةعارزلا ةيلك/ءارضخلا مساقلا ةعماج","جامعة القاسم الخضراء/كلية الزراعة/قسم االنتاج الحيواني"]
["ليخنلاو ةنتسبلا مسق/ةعارزلا ةيلك/ءارضخلا مساقلا ةعماج","جامعة القاسم الخضراء/كلية الزراعة/قسم البستنة والنخيل"]
["ليخنلاو ةنتسبلا مسق/ةعارزلا ةيلك/ءارضخلا مساقلا ةعماج","جامعة القاسم الخضراء/كلية الزراعة/قسم البستنة والنخيل"]
["ةيذغلاا مولع ةيلك/ءارضخلا مساقلا ةعماج","جامعة القاسم الخضراء/كلية علوم االغذية"]
["ةيذغلاا مولع ةيلك/ءارضخلا مساقلا ةعماج","جامعة القاسم الخضراء/كلية علوم االغذية"]
["بطلا ةيلك/ىونين ةعماج","جامعة نينوى/كلية الطب"]
["تلااصتلاا مسق/تاينورتكللاا ةسدنه ةيلك/ىونين ةعماج","جامعة نينوى/كلية هندسة االلكترونيات/قسم االتصاالت"]
["تلااصتلاا مسق/تاينورتكللاا ةسدنه ةيلك/ىونين ةعماج","جامعة نينوى/كلية هندسة االلكترونيات/قسم االتصاالت"]
["كينورتكللاا مسق/تاينورتكللاا ةسدنه ةيلك/ىونين ةعماج","جامعة نينوى/كلية هندسة االلكترونيات/قسم االلكترونيك"]
["ةيتامولعملاو بوساحلا مسق/تاينورتكللاا ةسدنه ةيلك/ىونين ةعماج","جامعة نينوى/كلية هندسة االلكترونيات/قسم الحاسوب والمعلوماتية"]
["ةيتامولعملاو بوساحلا مسق/تاينورتكللاا ةسدنه ةيلك/ىونين ةعماج","جامعة نينوى/كلية هندسة االلكترونيات/قسم الحاسوب والمعلوماتية"]
["ةرطيسلاو مظنلا مسق/تاينورتكللاا ةسدنه ةيلك/ىونين ةعماج","جامعة نينوى/كلية هندسة االلكترونيات/قسم النظم والسيطرة"]
["ةرطيسلاو مظنلا مسق/تاينورتكللاا ةسدنه ةيلك/ىونين ةعماج","جامعة نينوى/كلية هندسة االلكترونيات/قسم النظم والسيطرة"]
["بطلا ةيلك/ةجولفلا ةعماج","جامعة الفلوجة/كلية الطب"]
[null,""]
["نوناقلا ةيلك/ةجولفلا ةعماج","جامعة الفلوجة/كلية القانون"]
["نوناقلا ةيلك/ةجولفلا ةعماج","جامعة الفلوجة/كلية القانون"]
["نوناقلا ةيلك/ةجولفلا ةعماج","جامعة الفلوجة/كلية القانون"]
["يرطيبلا بطلا ةيلك/ةجولفلا ةعماج","جامعة الفلوجة/كلية الطب البيطري"]
["داصتقلااو ةرادلاا ةيلك/ةجولفلا ةعماج","جامعة الفلوجة/كلية االدارة واالقتصاد"]
["داصتقلااو ةرادلاا ةيلك/ةجولفلا ةعماج","جامعة الفلوجة/كلية االدارة واالقتصاد"]
["داصتقلااو ةرادلاا ةيلك/ةجولفلا ةعماج","جامعة الفلوجة/كلية االدارة واالقتصاد"]
["ةيملاسلاا مولعلا ةيلك/ةجولفلا ةعماج","جامعة الفلوجة/كلية العلوم االسالمية"]
["ةيملاسلاا مولعلا ةيلك/ةجولفلا ةعماج","جامعة الفلوجة/كلية العلوم االسالمية"]
["ةيملاسلاا مولعلا ةيلك/ةجولفلا ةعماج","جامعة الفلوجة/كلية العلوم االسالمية"]
["بطلا ةيلك/ةيبطلا نايح نب رباج ةعماج","جامعة جابر بن حيان الطبية/كلية الطب"]
["ضيرمتلا ةيلك/رفعلت ةعماج","جامعة تلعفر/كلية التمريض"]
["ضيرمتلا ةيلك/رفعلت ةعماج","جامعة تلعفر/كلية التمريض"]
["يناويحلا جاتنلاا مسق/ةعارزلا ةيلك/رفعلت ةعماج","جامعة تلعفر/كلية الزراعة/قسم االنتاج الحيواني"]
["يناويحلا جاتنلاا مسق/ةعارزلا ةيلك/رفعلت ةعماج","جامعة تلعفر/كلية الزراعة/قسم االنتاج الحيواني"]
["يتابنلا جاتنلاا مسق/ةعارزلا ةيلك/رفعلت ةعماج","جامعة تلعفر/كلية الزراعة/قسم االنتاج النباتي"]
["يتابنلا جاتنلاا مسق/ةعارزلا ةيلك/رفعلت ةعماج","جامعة تلعفر/كلية الزراعة/قسم االنتاج النباتي"]
["ةيساسلاا ةيبرتلا ةيلك/رفعلت ةعماج","جامعة تلعفر/كلية التربية االساسية"]
["ةيساسلاا ةيبرتلا ةيلك/رفعلت ةعماج","جامعة تلعفر/كلية التربية االساسية"]
["ةيساسلاا ةيبرتلا ةيلك/رفعلت ةعماج",{"$f":"Reversestr(A1155)","v":"جامعة تلعفر/كلية التربية االساسية"}]
["زاغلاو طفنلا ةسدنه مسق/زاغلاو طفنلا ةسدنه ةيلك/زاغلاو طفنلل ةرصبلا ةعماج","جامعة البصرة للنفط والغاز/كلية هندسة النفط والغاز/قسم هندسة النفط والغاز"]
["طفنلا ريركتو ةيئايميكلا ةسدنهلا مسق/زاغلاو طفنلا ةسدنه ةيلك/زاغلاو طفنلل ةرصبلا ةعماج","جامعة البصرة للنفط والغاز/كلية هندسة النفط والغاز/قسم الهندسة الكيميائية وتكرير النفط"]
["تايوايميكورتبلاو تارميلوبلا ةسدنهلا مسق/زاغلاو طفنلا ةسدنه ةيلك/زاغلاو طفنلل ةرصبلا ةعماج","جامعة البصرة للنفط والغاز/كلية هندسة النفط والغاز/قسم الهندسة البوليمرات والبتروكيمياويات"]
["زاغلاو طفنلل ةيعانصلا ةرادلإا ةيلك/زاغلاو طفنلل ةرصبلا ةعماج","جامعة البصرة للنفط والغاز/كلية اإلدارة الصناعية للنفط والغاز"]
["زاغلاو طفنلل ةيعانصلا ةرادلإا ةيلك/زاغلاو طفنلل ةرصبلا ةعماج","جامعة البصرة للنفط والغاز/كلية اإلدارة الصناعية للنفط والغاز"]
["داصتقلااو ةرادلاا ةيلك/ةينادمحلا ةعماج","جامعة الحمدانية/كلية االدارة واالقتصاد"]
["داصتقلااو ةرادلاا ةيلك/ةينادمحلا ةعماج","جامعة الحمدانية/كلية االدارة واالقتصاد"]
["داصتقلااو ةرادلاا ةيلك/ةينادمحلا ةعماج","جامعة الحمدانية/كلية االدارة واالقتصاد"]
["ةيبرتلا ةيلك/ةينادمحلا ةعماج","جامعة الحمدانية/كلية التربية"]
["ةيبرتلا ةيلك/ةينادمحلا ةعماج","جامعة الحمدانية/كلية التربية"]
["ةيبرتلا ةيلك/ةينادمحلا ةعماج","جامعة الحمدانية/كلية التربية"]
["بط ةيلك/ةينلاديصلاو ةيبطلا مولعلل انيس نبا ةعماج","جامعة ابن سينا للعلوم الطبية والصيدالنية/كلية طب"]
["نانسلاا بط ةيلك/ةينلاديصلاو ةيبطلا مولعلل انيس نبا ةعماج","جامعة ابن سينا للعلوم الطبية والصيدالنية/كلية طب االسنان"]
["مولعلا ةيلك/مولعلل خركلا ةعماج","جامعة الكرخ للعلوم/كلية العلوم"]
["مولعلا ةيلك/مولعلل خركلا ةعماج","جامعة الكرخ للعلوم/كلية العلوم"]
["ءايزيفويجلاو يئانلا سسحتلا ةيلك/مولعلل خركلا ةعماج","جامعة الكرخ للعلوم/كلية التحسس النائي والجيوفيزياء"]
["ءايزيفويجلاو يئانلا سسحتلا ةيلك/مولعلل خركلا ةعماج","جامعة الكرخ للعلوم/كلية التحسس النائي والجيوفيزياء"]
["بوساحلا تلااصتا مسق/ةسدنهلا ةيلك/تلااصتلااو تامولعملا ايجولونكت ةعماج","جامعة تكنولوجيا المعلومات واالتصاالت/كلية الهندسة/قسم اتصاالت الحاسوب"]
["بوساحلا تلااصتا مسق/ةسدنهلا ةيلك/تلااصتلااو تامولعملا ايجولونكت ةعماج","جامعة تكنولوجيا المعلومات واالتصاالت/كلية الهندسة/قسم اتصاالت الحاسوب"]
["ملاعلاا ايجولونكت مسق/ةسدنهلا ةيلك/تلااصتلااو تامولعملا ايجولونكت ةعماج","جامعة تكنولوجيا المعلومات واالتصاالت/كلية الهندسة/قسم تكنولوجيا االعالم"]
["ملاعلاا ايجولونكت مسق/ةسدنهلا ةيلك/تلااصتلااو تامولعملا ايجولونكت ةعماج","جامعة تكنولوجيا المعلومات واالتصاالت/كلية الهندسة/قسم تكنولوجيا االعالم"]
["لامعلاا ةيتامولعم ةيلك/تلااصتلااو تامولعملا ايجولونكت ةعماج","جامعة تكنولوجيا المعلومات واالتصاالت/كلية معلوماتية االعمال"]
["لامعلاا ةيتامولعم ةيلك/تلااصتلااو تامولعملا ايجولونكت ةعماج","جامعة تكنولوجيا المعلومات واالتصاالت/كلية معلوماتية االعمال"]
["ةيضرملا تلايلحتلا تاينقت مسق/كوكرك/يبطلا مسقلا ةينقتلا ةيلكلا/ةيلامشلا ةينقتلا ةعماجلا","الجامعة التقنية الشمالية/الكلية التقنية القسم الطبي/كركوك/قسم تقنيات التحليالت المرضية"]
["بوساحلا تاينقت ةسدنه مسق/لصوملا/ ةيسدنهلا ةينقتلا ةيلكلا/ةيلامشلا ةينقتلا ةعماجلا","الجامعة التقنية الشمالية/الكلية التقنية الهندسية /الموصل/قسم هندسة تقنيات الحاسوب"]
["بوساحلا تاينقت ةسدنه مسق/لصوملا/ ةيسدنهلا ةينقتلا ةيلكلا/ةيلامشلا ةينقتلا ةعماجلا","الجامعة التقنية الشمالية/الكلية التقنية الهندسية /الموصل/قسم هندسة تقنيات الحاسوب"]
["فييكتو ديربت تاينقت ةسدنه مسق/لصوملا/ ةيسدنهلا ةينقتلا ةيلكلا/ةيلامشلا ةينقتلا ةعماجلا","الجامعة التقنية الشمالية/الكلية التقنية الهندسية /الموصل/قسم هندسة تقنيات تبريد وتكييف"]
["فييكتو ديربت تاينقت ةسدنه مسق/لصوملا/ ةيسدنهلا ةينقتلا ةيلكلا/ةيلامشلا ةينقتلا ةعماجلا","الجامعة التقنية الشمالية/الكلية التقنية الهندسية /الموصل/قسم هندسة تقنيات تبريد وتكييف"]
["ةيبطلا ةزهجلاا تاينقت ةسدنه مسق/لصوملا/ ةيسدنهلا ةينقتلا ةيلكلا/ةيلامشلا ةينقتلا ةعماجلا","الجامعة التقنية الشمالية/الكلية التقنية الهندسية /الموصل/قسم هندسة تقنيات االجهزة الطبية"]
["ةيبطلا ةزهجلاا تاينقت ةسدنه مسق/لصوملا/ ةيسدنهلا ةينقتلا ةيلكلا/ةيلامشلا ةينقتلا ةعماجلا","الجامعة التقنية الشمالية/الكلية التقنية الهندسية /الموصل/قسم هندسة تقنيات االجهزة الطبية"]
["ةيئابرهكلا ةردقلا تاينقت ةسدنه مسق/لصوملا/ ةيسدنهلا ةينقتلا ةيلكلا/ةيلامشلا ةينقتلا ةعماجلا","الجامعة التقنية الشمالية/الكلية التقنية الهندسية /الموصل/قسم هندسة تقنيات القدرة الكهربائية"]
["تاءاشنلااو ءانبلا تاينقت ةسدنه مسق/لصوملا/ ةيسدنهلا ةينقتلا ةيلكلا/ةيلامشلا ةينقتلا ةعماجلا","الجامعة التقنية الشمالية/الكلية التقنية الهندسية /الموصل/قسم هندسة تقنيات البناء واالنشاءات"]
["بوساحلا تاينقت ةسدنه مسق/كوكرك/ةيسدنهلا ماسقلاا ةينقتلا ةيلكلا/ةيلامشلا ةينقتلا ةعماجلا","الجامعة التقنية الشمالية/الكلية التقنية االقسام الهندسية/كركوك/قسم هندسة تقنيات الحاسوب"]
[null,""]
["بوساحلا تاينقت ةسدنه مسق/كوكرك/ةيسدنهلا ماسقلاا ةينقتلا ةيلكلا/ةيلامشلا ةينقتلا ةعماجلا","الجامعة التقنية الشمالية/الكلية التقنية االقسام الهندسية/كركوك/قسم هندسة تقنيات الحاسوب"]
["فييكتلاو ديربتلا تاينقت ةسدنه مسق/كوكرك/ةيسدنهلا ماسقلاا ةينقتلا ةيلكلا/ةيلامشلا ةينقتلا ةعماجلا","الجامعة التقنية الشمالية/الكلية التقنية االقسام الهندسية/كركوك/قسم هندسة تقنيات التبريد والتكييف"]
["فييكتلاو ديربتلا تاينقت ةسدنه مسق/كوكرك/ةيسدنهلا ماسقلاا ةينقتلا ةيلكلا/ةيلامشلا ةينقتلا ةعماجلا","الجامعة التقنية الشمالية/الكلية التقنية االقسام الهندسية/كركوك/قسم هندسة تقنيات التبريد والتكييف"]
["ةقاطلاو دوقولا تاينقت ةسدنه مسق/كوكرك/ةيسدنهلا ماسقلاا ةينقتلا ةيلكلا/ةيلامشلا ةينقتلا ةعماجلا","الجامعة التقنية الشمالية/الكلية التقنية االقسام الهندسية/كركوك/قسم هندسة تقنيات الوقود والطاقة"]
["ةقاطلاو دوقولا تاينقت ةسدنه مسق/كوكرك/ةيسدنهلا ماسقلاا ةينقتلا ةيلكلا/ةيلامشلا ةينقتلا ةعماجلا","الجامعة التقنية الشمالية/الكلية التقنية االقسام الهندسية/كركوك/قسم هندسة تقنيات الوقود والطاقة"]
["ةرطيسلاو كينورتكللاا تاينقت ةسدنه مسق/كوكرك/ةيسدنهلا ماسقلاا ةينقتلا ةيلكلا/ةيلامشلا ةينقتلا ةعماجلا","الجامعة التقنية الشمالية/الكلية التقنية االقسام الهندسية/كركوك/قسم هندسة تقنيات االلكترونيك والسيطرة"]
["ةرطيسلاو كينورتكللاا تاينقت ةسدنه مسق/كوكرك/ةيسدنهلا ماسقلاا ةينقتلا ةيلكلا/ةيلامشلا ةينقتلا ةعماجلا","الجامعة التقنية الشمالية/الكلية التقنية االقسام الهندسية/كركوك/قسم هندسة تقنيات االلكترونيك والسيطرة"]
["ةحاسملا تاينقت ةسدنه مسق/كوكرك/ةيسدنهلا ماسقلاا ةينقتلا ةيلكلا/ةيلامشلا ةينقتلا ةعماجلا","الجامعة التقنية الشمالية/الكلية التقنية االقسام الهندسية/كركوك/قسم هندسة تقنيات المساحة"]
["ثولتلاو ةئيبلا تاينقت ةسدنه مسق/كوكرك/ةيسدنهلا ماسقلاا ةينقتلا ةيلكلا/ةيلامشلا ةينقتلا ةعماجلا","الجامعة التقنية الشمالية/الكلية التقنية االقسام الهندسية/كركوك/قسم هندسة تقنيات البيئة والتلوث"]
["يناويحلا جاتنلاا تاينقت مسق/ىونين/ةيديشرلا/ةيعارزلا ةينقتلا ةيلكلا/ةيلامشلا ةينقتلا ةعماجلا","الجامعة التقنية الشمالية/الكلية التقنية الزراعية/الرشيدية/نينوى/قسم تقنيات االنتاج الحيواني"]
["يناويحلا جاتنلاا تاينقت مسق/ىونين/ةيديشرلا/ةيعارزلا ةينقتلا ةيلكلا/ةيلامشلا ةينقتلا ةعماجلا","الجامعة التقنية الشمالية/الكلية التقنية الزراعية/الرشيدية/نينوى/قسم تقنيات االنتاج الحيواني"]
["يتابنلا جاتنلاا تاينقت مسق/ىونين/ةيديشرلا/ةيعارزلا ةينقتلا ةيلكلا/ةيلامشلا ةينقتلا ةعماجلا","الجامعة التقنية الشمالية/الكلية التقنية الزراعية/الرشيدية/نينوى/قسم تقنيات االنتاج النباتي"]
["يتابنلا جاتنلاا تاينقت مسق/ىونين/ةيديشرلا/ةيعارزلا ةينقتلا ةيلكلا/ةيلامشلا ةينقتلا ةعماجلا","الجامعة التقنية الشمالية/الكلية التقنية الزراعية/الرشيدية/نينوى/قسم تقنيات االنتاج النباتي"]
["لصوملا/ةيرادلاا ةينقتلا ةيلكلا/ةيلامشلا ةينقتلا ةعماجلا","الجامعة التقنية الشمالية/الكلية التقنية االدارية/الموصل"]
["لصوملا/يبطلا ينقتلا دهعملا/ةيلامشلا ةينقتلا ةعماجلا","الجامعة التقنية الشمالية/المعهد التقني الطبي/الموصل"]
["ضيرمتلا تاينقت مسق/لصوملا/يبطلا ينقتلا دهعملا/ةيلامشلا ةينقتلا ةعماجلا","الجامعة التقنية الشمالية/المعهد التقني الطبي/الموصل/قسم تقنيات التمريض"]
["ضيرمتلا تاينقت مسق/لصوملا/يبطلا ينقتلا دهعملا/ةيلامشلا ةينقتلا ةعماجلا","الجامعة التقنية الشمالية/المعهد التقني الطبي/الموصل/قسم تقنيات التمريض"]
["ضيرمتلا تاينقت مسق/كوكرك/يبطلا ينقتلا دهعملا/ةيلامشلا ةينقتلا ةعماجلا","الجامعة التقنية الشمالية/المعهد التقني الطبي/كركوك/قسم تقنيات التمريض"]
["ضيرمتلا تاينقت مسق/كوكرك/يبطلا ينقتلا دهعملا/ةيلامشلا ةينقتلا ةعماجلا","الجامعة التقنية الشمالية/المعهد التقني الطبي/كركوك/قسم تقنيات التمريض"]
["عمتجملا ةحص تاينقت مسق/كوكرك/يبطلا ينقتلا دهعملا/ةيلامشلا ةينقتلا ةعماجلا","الجامعة التقنية الشمالية/المعهد التقني الطبي/كركوك/قسم تقنيات صحة المجتمع"]
["ةيضرملا تلايلحتلا تاينقت مسق/(نيدلا حلاص)رودلا/يبطلا ينقتلا دهعملا/ةيلامشلا ةينقتلا ةعماجلا","الجامعة التقنية الشمالية/المعهد التقني الطبي/الدور)صالح الدين(/قسم تقنيات التحليالت المرضية"]
["ةيضرملا تلايلحتلا تاينقت مسق/ةجيوحلا/يبطلا ينقتلا دهعملا/ةيلامشلا ةينقتلا ةعماجلا","الجامعة التقنية الشمالية/المعهد التقني الطبي/الحويجة/قسم تقنيات التحليالت المرضية"]
["لصوملا/يجولنكتلا ينقتلا دهعملا/ةيلامشلا ةينقتلا ةعماجلا","الجامعة التقنية الشمالية/المعهد التقني التكنلوجي/الموصل"]
["لصوملا/يجولنكتلا ينقتلا دهعملا/ةيلامشلا ةينقتلا ةعماجلا","الجامعة التقنية الشمالية/المعهد التقني التكنلوجي/الموصل"]
["كوكرك/يجولنكتلا ينقتلا دهعملا/ةيلامشلا ةينقتلا ةعماجلا","الجامعة التقنية الشمالية/المعهد التقني التكنلوجي/كركوك"]
["كوكرك/يجولنكتلا ينقتلا دهعملا/ةيلامشلا ةينقتلا ةعماجلا","الجامعة التقنية الشمالية/المعهد التقني التكنلوجي/كركوك"]
["ةجيوحلا/يجولنكتلا ينقتلا دهعملا/ةيلامشلا ةينقتلا ةعماجلا","الجامعة التقنية الشمالية/المعهد التقني التكنلوجي/الحويجة"]
["ةجيوحلا/يجولنكتلا ينقتلا دهعملا/ةيلامشلا ةينقتلا ةعماجلا","الجامعة التقنية الشمالية/المعهد التقني التكنلوجي/الحويجة"]
["(نيدلا حلاص)رودلا/يجولنكتلا ينقتلا دهعملا/ةيلامشلا ةينقتلا ةعماجلا","الجامعة التقنية الشمالية/المعهد التقني التكنلوجي/الدور)صالح الدين("]
["(نيدلا حلاص)رودلا/يجولنكتلا ينقتلا دهعملا/ةيلامشلا ةينقتلا ةعماجلا",{"$f":"Reversestr(A1219)","v":"الجامعة التقنية الشمالية/المعهد التقني التكنلوجي/الدور)صالح الدين("}]
["لصوملا/يعارزلا ينقتلا دهعملا/ةيلامشلا ةينقتلا ةعماجلا","الجامعة التقنية الشمالية/المعهد التقني الزراعي/الموصل"]
["لصوملا/يعارزلا ينقتلا دهعملا/ةيلامشلا ةينقتلا ةعماجلا","الجامعة التقنية الشمالية/المعهد التقني الزراعي/الموصل"]
["يتابنلا جاتنلاا تاينقت مسق/ةجيوحلا/يعارزلا ينقتلا دهعملا/ةيلامشلا ةينقتلا ةعماجلا","الجامعة التقنية الشمالية/المعهد التقني الزراعي/الحويجة/قسم تقنيات االنتاج النباتي"]
["يتابنلا جاتنلاا تاينقت مسق/ةجيوحلا/يعارزلا ينقتلا دهعملا/ةيلامشلا ةينقتلا ةعماجلا","الجامعة التقنية الشمالية/المعهد التقني الزراعي/الحويجة/قسم تقنيات االنتاج النباتي"]
["لصوملا/يرادلاا ينقتلا دهعملا/ةيلامشلا ةينقتلا ةعماجلا","الجامعة التقنية الشمالية/المعهد التقني االداري/الموصل"]
["لصوملا/يرادلاا ينقتلا دهعملا/ةيلامشلا ةينقتلا ةعماجلا","الجامعة التقنية الشمالية/المعهد التقني االداري/الموصل"]
["لصوملا/يرادلاا ينقتلا دهعملا/ةيلامشلا ةينقتلا ةعماجلا","الجامعة التقنية الشمالية/المعهد التقني االداري/الموصل"]
["ىونين/يرادلاا ينقتلا دهعملا/ةيلامشلا ةينقتلا ةعماجلا","الجامعة التقنية الشمالية/المعهد التقني االداري/نينوى"]
["ىونين/يرادلاا ينقتلا دهعملا/ةيلامشلا ةينقتلا ةعماجلا","الجامعة التقنية الشمالية/المعهد التقني االداري/نينوى"]
["ىونين/يرادلاا ينقتلا دهعملا/ةيلامشلا ةينقتلا ةعماجلا","الجامعة التقنية الشمالية/المعهد التقني االداري/نينوى"]
["كوكرك/يرادلاا ينقتلا دهعملا/ةيلامشلا ةينقتلا ةعماجلا","الجامعة التقنية الشمالية/المعهد التقني االداري/كركوك"]
["كوكرك/يرادلاا ينقتلا دهعملا/ةيلامشلا ةينقتلا ةعماجلا","الجامعة التقنية الشمالية/المعهد التقني االداري/كركوك"]
["كوكرك/يرادلاا ينقتلا دهعملا/ةيلامشلا ةينقتلا ةعماجلا","الجامعة التقنية الشمالية/المعهد التقني االداري/كركوك"]
["ةجيوحلا/يرادلاا ينقتلا دهعملا/ةيلامشلا ةينقتلا ةعماجلا","الجامعة التقنية الشمالية/المعهد التقني االداري/الحويجة"]
["ةجيوحلا/يرادلاا ينقتلا دهعملا/ةيلامشلا ةينقتلا ةعماجلا","الجامعة التقنية الشمالية/المعهد التقني االداري/الحويجة"]
["ةجيوحلا/يرادلاا ينقتلا دهعملا/ةيلامشلا ةينقتلا ةعماجلا","الجامعة التقنية الشمالية/المعهد التقني االداري/الحويجة"]
["ةبساحملا تاينقت مسق/(نيدلا حلاص)رودلا/يرادلاا ينقتلا دهعملا/ةيلامشلا ةينقتلا ةعماجلا","الجامعة التقنية الشمالية/المعهد التقني االداري/الدور)صالح الدين(/قسم تقنيات المحاسبة"]
["ةبساحملا تاينقت مسق/(نيدلا حلاص)رودلا/يرادلاا ينقتلا دهعملا/ةيلامشلا ةينقتلا ةعماجلا","الجامعة التقنية الشمالية/المعهد التقني االداري/الدور)صالح الدين(/قسم تقنيات المحاسبة"]
["ةبساحملا تاينقت مسق/(نيدلا حلاص)رودلا/يرادلاا ينقتلا دهعملا/ةيلامشلا ةينقتلا ةعماجلا","الجامعة التقنية الشمالية/المعهد التقني االداري/الدور)صالح الدين(/قسم تقنيات المحاسبة"]
["سبلاملا ةعانص تاينقت مسق/كوكرك/ نونف ينقتلا دهعملا/ةيلامشلا ةينقتلا ةعماجلا","الجامعة التقنية الشمالية/المعهد التقني فنون /كركوك/قسم تقنيات صناعة المالبس"]
["سبلاملا ةعانص تاينقت مسق/كوكرك/ نونف ينقتلا دهعملا/ةيلامشلا ةينقتلا ةعماجلا","الجامعة التقنية الشمالية/المعهد التقني فنون /كركوك/قسم تقنيات صناعة المالبس"]
["سبلاملا ةعانص تاينقت مسق/كوكرك/ نونف ينقتلا دهعملا/ةيلامشلا ةينقتلا ةعماجلا","الجامعة التقنية الشمالية/المعهد التقني فنون /كركوك/قسم تقنيات صناعة المالبس"]
["ةفوكلا/ةيبطلاو ةيحصلا ةينقتلا ةيلكلا/ ةينقتلا  طسولاا تارفلا ةعماج","جامعة الفرات االوسط  التقنية /الكلية التقنية الصحية والطبية/الكوفة"]
[null,""]
["تلااصتلاا تاينقت ةسدنه مسق/فجنلا/ةيسدنهلا ةينقتلا ةيلكلا/ ةينقتلا  طسولاا تارفلا ةعماج","جامعة الفرات االوسط  التقنية /الكلية التقنية الهندسية/النجف/قسم هندسة تقنيات االتصاالت"]
["تلااصتلاا تاينقت ةسدنه مسق/فجنلا/ةيسدنهلا ةينقتلا ةيلكلا/ ةينقتلا  طسولاا تارفلا ةعماج","جامعة الفرات االوسط  التقنية /الكلية التقنية الهندسية/النجف/قسم هندسة تقنيات االتصاالت"]
["تارايسلا تاينقت ةسدنه مسق/فجنلا/ةيسدنهلا ةينقتلا ةيلكلا/ ةينقتلا  طسولاا تارفلا ةعماج","جامعة الفرات االوسط  التقنية /الكلية التقنية الهندسية/النجف/قسم هندسة تقنيات السيارات"]
["تارايسلا تاينقت ةسدنه مسق/فجنلا/ةيسدنهلا ةينقتلا ةيلكلا/ ةينقتلا  طسولاا تارفلا ةعماج","جامعة الفرات االوسط  التقنية /الكلية التقنية الهندسية/النجف/قسم هندسة تقنيات السيارات"]
["ناريطلا تاينقت ةسدنه مسق/فجنلا/ةيسدنهلا ةينقتلا ةيلكلا/ ةينقتلا  طسولاا تارفلا ةعماج","جامعة الفرات االوسط  التقنية /الكلية التقنية الهندسية/النجف/قسم هندسة تقنيات الطيران"]
["ناريطلا تاينقت ةسدنه مسق/فجنلا/ةيسدنهلا ةينقتلا ةيلكلا/ ةينقتلا  طسولاا تارفلا ةعماج","جامعة الفرات االوسط  التقنية /الكلية التقنية الهندسية/النجف/قسم هندسة تقنيات الطيران"]
["ناريطلا تاينورتكلا تاينقت ةسدنه مسق/فجنلا/ةيسدنهلا ةينقتلا ةيلكلا/ ةينقتلا  طسولاا تارفلا ةعماج","جامعة الفرات االوسط  التقنية /الكلية التقنية الهندسية/النجف/قسم هندسة تقنيات الكترونيات الطيران"]
["ناريطلا تاينورتكلا تاينقت ةسدنه مسق/فجنلا/ةيسدنهلا ةينقتلا ةيلكلا/ ةينقتلا  طسولاا تارفلا ةعماج","جامعة الفرات االوسط  التقنية /الكلية التقنية الهندسية/النجف/قسم هندسة تقنيات الكترونيات الطيران"]
["تايرصبورهكلاو رزيللا تاينقت ةسدنه مسق/فجنلا/ةيسدنهلا ةينقتلا ةيلكلا/ ةينقتلا  طسولاا تارفلا ةعماج","جامعة الفرات االوسط  التقنية /الكلية التقنية الهندسية/النجف/قسم هندسة تقنيات الليزر والكهروبصريات"]
["تايرصبورهكلاو رزيللا تاينقت ةسدنه مسق/فجنلا/ةيسدنهلا ةينقتلا ةيلكلا/ ةينقتلا  طسولاا تارفلا ةعماج","جامعة الفرات االوسط  التقنية /الكلية التقنية الهندسية/النجف/قسم هندسة تقنيات الليزر والكهروبصريات"]
["ةيئابرهكلا ةردقلا تاينقت ةسدنه مسق/بيسملا/ةيسدنهلا ماسقلاا ةينقتلا ةيلكلا/ ةينقتلا  طسولاا تارفلا ةعماج","جامعة الفرات االوسط  التقنية /الكلية التقنية االقسام الهندسية/المسيب/قسم هندسة تقنيات القدرة الكهربائية"]
["تاءاشنلااو ءانبلا تاينقت ةسدنه مسق/بيسملا/ةيسدنهلا ماسقلاا ةينقتلا ةيلكلا/ ةينقتلا  طسولاا تارفلا ةعماج","جامعة الفرات االوسط  التقنية /الكلية التقنية االقسام الهندسية/المسيب/قسم هندسة تقنيات البناء واالنشاءات"]
["تاخضملا تاينقت ةسدنه مسق/بيسملا/ةيسدنهلا ماسقلاا ةينقتلا ةيلكلا/ ةينقتلا  طسولاا تارفلا ةعماج","جامعة الفرات االوسط  التقنية /الكلية التقنية االقسام الهندسية/المسيب/قسم هندسة تقنيات المضخات"]
["تاخضملا تاينقت ةسدنه مسق/بيسملا/ةيسدنهلا ماسقلاا ةينقتلا ةيلكلا/ ةينقتلا  طسولاا تارفلا ةعماج","جامعة الفرات االوسط  التقنية /الكلية التقنية االقسام الهندسية/المسيب/قسم هندسة تقنيات المضخات"]
["ةيعارزلا نئاكملا تاينقت ةسدنه مسق/بيسملا/ةيسدنهلا ماسقلاا ةينقتلا ةيلكلا/ ةينقتلا  طسولاا تارفلا ةعماج","جامعة الفرات االوسط  التقنية /الكلية التقنية االقسام الهندسية/المسيب/قسم هندسة تقنيات المكائن الزراعية"]
["ةيعارزلا نئاكملا تاينقت ةسدنه مسق/بيسملا/ةيسدنهلا ماسقلاا ةينقتلا ةيلكلا/ ةينقتلا  طسولاا تارفلا ةعماج","جامعة الفرات االوسط  التقنية /الكلية التقنية االقسام الهندسية/المسيب/قسم هندسة تقنيات المكائن الزراعية"]
["ةيناويحلا ةيتايحلا تاينقتلا/بيسملا/ةيعارزلا ماسقلاا ةينقتلا ةيلكلا/ ةينقتلا  طسولاا تارفلا ةعماج","جامعة الفرات االوسط  التقنية /الكلية التقنية االقسام الزراعية/المسيب/التقنيات الحياتية الحيوانية"]
["ةيناويحلا ةيتايحلا تاينقتلا/بيسملا/ةيعارزلا ماسقلاا ةينقتلا ةيلكلا/ ةينقتلا  طسولاا تارفلا ةعماج","جامعة الفرات االوسط  التقنية /الكلية التقنية االقسام الزراعية/المسيب/التقنيات الحياتية الحيوانية"]
["ةيتابنلا ةيتايحلا تاينقتلا/بيسملا/ةيعارزلا ماسقلاا ةينقتلا ةيلكلا/ ةينقتلا  طسولاا تارفلا ةعماج","جامعة الفرات االوسط  التقنية /الكلية التقنية االقسام الزراعية/المسيب/التقنيات الحياتية النباتية"]
["ةيتابنلا ةيتايحلا تاينقتلا/بيسملا/ةيعارزلا ماسقلاا ةينقتلا ةيلكلا/ ةينقتلا  طسولاا تارفلا ةعماج","جامعة الفرات االوسط  التقنية /الكلية التقنية االقسام الزراعية/المسيب/التقنيات الحياتية النباتية"]
["هايملاو ةبرتلا تاينقت/بيسملا/ةيعارزلا ماسقلاا ةينقتلا ةيلكلا/ ةينقتلا  طسولاا تارفلا ةعماج","جامعة الفرات االوسط  التقنية /الكلية التقنية االقسام الزراعية/المسيب/تقنيات التربة والمياه"]
["هايملاو ةبرتلا تاينقت/بيسملا/ةيعارزلا ماسقلاا ةينقتلا ةيلكلا/ ةينقتلا  طسولاا تارفلا ةعماج","جامعة الفرات االوسط  التقنية /الكلية التقنية االقسام الزراعية/المسيب/تقنيات التربة والمياه"]
["ةيئايحلاا ةمواقملا تاينقت/بيسملا/ةيعارزلا ماسقلاا ةينقتلا ةيلكلا/ ةينقتلا  طسولاا تارفلا ةعماج","جامعة الفرات االوسط  التقنية /الكلية التقنية االقسام الزراعية/المسيب/تقنيات المقاومة االحيائية"]
["ةيئايحلاا ةمواقملا تاينقت/بيسملا/ةيعارزلا ماسقلاا ةينقتلا ةيلكلا/ ةينقتلا  طسولاا تارفلا ةعماج","جامعة الفرات االوسط  التقنية /الكلية التقنية االقسام الزراعية/المسيب/تقنيات المقاومة االحيائية"]
["ةفوكلا/ةيرادلاا ةينقتلا ةيلكلا/ ةينقتلا  طسولاا تارفلا ةعماج","جامعة الفرات االوسط  التقنية /الكلية التقنية االدارية/الكوفة"]
["ةفوكلا/ةيرادلاا ةينقتلا ةيلكلا/ ةينقتلا  طسولاا تارفلا ةعماج","جامعة الفرات االوسط  التقنية /الكلية التقنية االدارية/الكوفة"]
["لباب/يبطلا ينقتلا دهعملا/ ةينقتلا  طسولاا تارفلا ةعماج","جامعة الفرات االوسط  التقنية /المعهد التقني الطبي/بابل"]
["ضيرمتلا تاينقت مسق/لباب/يبطلا ينقتلا دهعملا/ ةينقتلا  طسولاا تارفلا ةعماج","جامعة الفرات االوسط  التقنية /المعهد التقني الطبي/بابل/قسم تقنيات التمريض"]
["ضيرمتلا تاينقت مسق/لباب/يبطلا ينقتلا دهعملا/ ةينقتلا  طسولاا تارفلا ةعماج","جامعة الفرات االوسط  التقنية /المعهد التقني الطبي/بابل/قسم تقنيات التمريض"]
["ةفوكلا/يبطلا ينقتلا دهعملا/ ةينقتلا  طسولاا تارفلا ةعماج","جامعة الفرات االوسط  التقنية /المعهد التقني الطبي/الكوفة"]
["ضيرمتلا تاينقت مسق/ةفوكلا/يبطلا ينقتلا دهعملا/ ةينقتلا  طسولاا تارفلا ةعماج","جامعة الفرات االوسط  التقنية /المعهد التقني الطبي/الكوفة/قسم تقنيات التمريض"]
["ضيرمتلا تاينقت مسق/ةفوكلا/يبطلا ينقتلا دهعملا/ ةينقتلا  طسولاا تارفلا ةعماج","جامعة الفرات االوسط  التقنية /المعهد التقني الطبي/الكوفة/قسم تقنيات التمريض"]
["عمتجملا ةحص تاينقت مسق/ءلابرك/يبطلا ينقتلا دهعملا/ ةينقتلا  طسولاا تارفلا ةعماج","جامعة الفرات االوسط  التقنية /المعهد التقني الطبي/كربالء/قسم تقنيات صحة المجتمع"]
["ضيرمتلا تاينقت مسق/ةيسداقلا/يبطلا ينقتلا دهعملا/ ةينقتلا  طسولاا تارفلا ةعماج","جامعة الفرات االوسط  التقنية /المعهد التقني الطبي/القادسية/قسم تقنيات التمريض"]
["ضيرمتلا تاينقت مسق/ةيسداقلا/يبطلا ينقتلا دهعملا/ ةينقتلا  طسولاا تارفلا ةعماج","جامعة الفرات االوسط  التقنية /المعهد التقني الطبي/القادسية/قسم تقنيات التمريض"]
["عمتجملا ةحص تاينقت مسق/ةيسداقلا/يبطلا ينقتلا دهعملا/ ةينقتلا  طسولاا تارفلا ةعماج","جامعة الفرات االوسط  التقنية /المعهد التقني الطبي/القادسية/قسم تقنيات صحة المجتمع"]
["ضيرمتلا تاينقت مسق/ةوامسلا/يبطلا ينقتلا دهعملا/ ةينقتلا  طسولاا تارفلا ةعماج","جامعة الفرات االوسط  التقنية /المعهد التقني الطبي/السماوة/قسم تقنيات التمريض"]
["ضيرمتلا تاينقت مسق/ةوامسلا/يبطلا ينقتلا دهعملا/ ةينقتلا  طسولاا تارفلا ةعماج","جامعة الفرات االوسط  التقنية /المعهد التقني الطبي/السماوة/قسم تقنيات التمريض"]
["عمتجملا ةحص تاينقت مسق/ةوامسلا/يبطلا ينقتلا دهعملا/ ةينقتلا  طسولاا تارفلا ةعماج","جامعة الفرات االوسط  التقنية /المعهد التقني الطبي/السماوة/قسم تقنيات صحة المجتمع"]
["لباب/يجولنكتلا ينقتلا دهعملا/ ةينقتلا  طسولاا تارفلا ةعماج",{"$f":"Reversestr(A1283)","v":"جامعة الفرات االوسط  التقنية /المعهد التقني التكنلوجي/بابل"}]
["لباب/يجولنكتلا ينقتلا دهعملا/ ةينقتلا  طسولاا تارفلا ةعماج","جامعة الفرات االوسط  التقنية /المعهد التقني التكنلوجي/بابل"]
["بيسملا/يجولنكتلا ينقتلا دهعملا/ ةينقتلا  طسولاا تارفلا ةعماج","جامعة الفرات االوسط  التقنية /المعهد التقني التكنلوجي/المسيب"]
["بيسملا/يجولنكتلا ينقتلا دهعملا/ ةينقتلا  طسولاا تارفلا ةعماج","جامعة الفرات االوسط  التقنية /المعهد التقني التكنلوجي/المسيب"]
["ةفوكلا/يجولنكتلا  ينقتلا دهعملا/ ةينقتلا  طسولاا تارفلا ةعماج","جامعة الفرات االوسط  التقنية /المعهد التقني  التكنلوجي/الكوفة"]
["ةفوكلا/يجولنكتلا  ينقتلا دهعملا/ ةينقتلا  طسولاا تارفلا ةعماج","جامعة الفرات االوسط  التقنية /المعهد التقني  التكنلوجي/الكوفة"]
["فجنلا/يجولنكتلا  ينقتلا دهعملا/ ةينقتلا  طسولاا تارفلا ةعماج","جامعة الفرات االوسط  التقنية /المعهد التقني  التكنلوجي/النجف"]
["فجنلا/يجولنكتلا  ينقتلا دهعملا/ ةينقتلا  طسولاا تارفلا ةعماج","جامعة الفرات االوسط  التقنية /المعهد التقني  التكنلوجي/النجف"]
["ءلابرك/يجولنكتلا  ينقتلا دهعملا/ ةينقتلا  طسولاا تارفلا ةعماج","جامعة الفرات االوسط  التقنية /المعهد التقني  التكنلوجي/كربالء"]
["ءلابرك/يجولنكتلا  ينقتلا دهعملا/ ةينقتلا  طسولاا تارفلا ةعماج","جامعة الفرات االوسط  التقنية /المعهد التقني  التكنلوجي/كربالء"]
["كيناكيملا تاينقت مسق/ةيسداقلا/يجولنكتلا  ينقتلا دهعملا/ ةينقتلا  طسولاا تارفلا ةعماج","جامعة الفرات االوسط  التقنية /المعهد التقني  التكنلوجي/القادسية/قسم تقنيات الميكانيك"]
["كيناكيملا تاينقت مسق/ةيسداقلا/يجولنكتلا  ينقتلا دهعملا/ ةينقتلا  طسولاا تارفلا ةعماج","جامعة الفرات االوسط  التقنية /المعهد التقني  التكنلوجي/القادسية/قسم تقنيات الميكانيك"]
["ةوامسلا/يجولنكتلا  ينقتلا دهعملا/ ةينقتلا  طسولاا تارفلا ةعماج","جامعة الفرات االوسط  التقنية /المعهد التقني  التكنلوجي/السماوة"]
["ةوامسلا/يجولنكتلا  ينقتلا دهعملا/ ةينقتلا  طسولاا تارفلا ةعماج","جامعة الفرات االوسط  التقنية /المعهد التقني  التكنلوجي/السماوة"]
[null,""]
["بيسملا/يعارزلا ينقتلا دهعملا/ ةينقتلا  طسولاا تارفلا ةعماج","جامعة الفرات االوسط  التقنية /المعهد التقني الزراعي/المسيب"]
["بيسملا/يعارزلا ينقتلا دهعملا/ ةينقتلا  طسولاا تارفلا ةعماج","جامعة الفرات االوسط  التقنية /المعهد التقني الزراعي/المسيب"]
["ةفوكلا/يعارزلا ينقتلا دهعملا/ ةينقتلا  طسولاا تارفلا ةعماج","جامعة الفرات االوسط  التقنية /المعهد التقني الزراعي/الكوفة"]
["ةفوكلا/يعارزلا ينقتلا دهعملا/ ةينقتلا  طسولاا تارفلا ةعماج","جامعة الفرات االوسط  التقنية /المعهد التقني الزراعي/الكوفة"]
["لباب/يرادلاا ينقتلا دهعملا/ ةينقتلا  طسولاا تارفلا ةعماج","جامعة الفرات االوسط  التقنية /المعهد التقني االداري/بابل"]
["لباب/يرادلاا ينقتلا دهعملا/ ةينقتلا  طسولاا تارفلا ةعماج","جامعة الفرات االوسط  التقنية /المعهد التقني االداري/بابل"]
["لباب/يرادلاا ينقتلا دهعملا/ ةينقتلا  طسولاا تارفلا ةعماج","جامعة الفرات االوسط  التقنية /المعهد التقني االداري/بابل"]
["بيسملا/يرادلاا ينقتلا دهعملا/ ةينقتلا  طسولاا تارفلا ةعماج","جامعة الفرات االوسط  التقنية /المعهد التقني االداري/المسيب"]
["بيسملا/يرادلاا ينقتلا دهعملا/ ةينقتلا  طسولاا تارفلا ةعماج","جامعة الفرات االوسط  التقنية /المعهد التقني االداري/المسيب"]
["بيسملا/يرادلاا ينقتلا دهعملا/ ةينقتلا  طسولاا تارفلا ةعماج","جامعة الفرات االوسط  التقنية /المعهد التقني االداري/المسيب"]
["داوملا ةرادا تاينقت مسق/ةفوكلا/يرادلاا  ينقتلا دهعملا/ ةينقتلا  طسولاا تارفلا ةعماج","جامعة الفرات االوسط  التقنية /المعهد التقني  االداري/الكوفة/قسم تقنيات ادارة المواد"]
["داوملا ةرادا تاينقت مسق/ةفوكلا/يرادلاا  ينقتلا دهعملا/ ةينقتلا  طسولاا تارفلا ةعماج","جامعة الفرات االوسط  التقنية /المعهد التقني  االداري/الكوفة/قسم تقنيات ادارة المواد"]
["داوملا ةرادا تاينقت مسق/ةفوكلا/يرادلاا  ينقتلا دهعملا/ ةينقتلا  طسولاا تارفلا ةعماج","جامعة الفرات االوسط  التقنية /المعهد التقني  االداري/الكوفة/قسم تقنيات ادارة المواد"]
["فجنلا/يرادلاا ينقتلا دهعملا/ ةينقتلا  طسولاا تارفلا ةعماج","جامعة الفرات االوسط  التقنية /المعهد التقني االداري/النجف"]
["فجنلا/يرادلاا ينقتلا دهعملا/ ةينقتلا  طسولاا تارفلا ةعماج","جامعة الفرات االوسط  التقنية /المعهد التقني االداري/النجف"]
["فجنلا/يرادلاا ينقتلا دهعملا/ ةينقتلا  طسولاا تارفلا ةعماج","جامعة الفرات االوسط  التقنية /المعهد التقني االداري/النجف"]
["ءلابرك/يرادلاا ينقتلا دهعملا/ ةينقتلا  طسولاا تارفلا ةعماج","جامعة الفرات االوسط  التقنية /المعهد التقني االداري/كربالء"]
["ءلابرك/يرادلاا ينقتلا دهعملا/ ةينقتلا  طسولاا تارفلا ةعماج","جامعة الفرات االوسط  التقنية /المعهد التقني االداري/كربالء"]
["ءلابرك/يرادلاا ينقتلا دهعملا/ ةينقتلا  طسولاا تارفلا ةعماج","جامعة الفرات االوسط  التقنية /المعهد التقني االداري/كربالء"]
["ةيسداقلا/يرادلاا  ينقتلا دهعملا/ ةينقتلا  طسولاا تارفلا ةعماج","جامعة الفرات االوسط  التقنية /المعهد التقني  االداري/القادسية"]
["ةيسداقلا/يرادلاا  ينقتلا دهعملا/ ةينقتلا  طسولاا تارفلا ةعماج","جامعة الفرات االوسط  التقنية /المعهد التقني  االداري/القادسية"]
["ةيسداقلا/يرادلاا  ينقتلا دهعملا/ ةينقتلا  طسولاا تارفلا ةعماج","جامعة الفرات االوسط  التقنية /المعهد التقني  االداري/القادسية"]
["ةبساحملا تاينقت مسق/ةوامسلا/يرادلاا  ينقتلا دهعملا/ ةينقتلا  طسولاا تارفلا ةعماج","جامعة الفرات االوسط  التقنية /المعهد التقني  االداري/السماوة/قسم تقنيات المحاسبة"]
["ةبساحملا تاينقت مسق/ةوامسلا/يرادلاا  ينقتلا دهعملا/ ةينقتلا  طسولاا تارفلا ةعماج","جامعة الفرات االوسط  التقنية /المعهد التقني  االداري/السماوة/قسم تقنيات المحاسبة"]
["ةبساحملا تاينقت مسق/ةوامسلا/يرادلاا  ينقتلا دهعملا/ ةينقتلا  طسولاا تارفلا ةعماج","جامعة الفرات االوسط  التقنية /المعهد التقني  االداري/السماوة/قسم تقنيات المحاسبة"]
["فجنلا/ نونف ينقتلا دهعملا/ ةينقتلا  طسولاا تارفلا ةعماج","جامعة الفرات االوسط  التقنية /المعهد التقني فنون /النجف"]
["فجنلا/ نونف ينقتلا دهعملا/ ةينقتلا  طسولاا تارفلا ةعماج","جامعة الفرات االوسط  التقنية /المعهد التقني فنون /النجف"]
["فجنلا/ نونف ينقتلا دهعملا/ ةينقتلا  طسولاا تارفلا ةعماج","جامعة الفرات االوسط  التقنية /المعهد التقني فنون /النجف"]
["دادغب/ةيبطلاو ةيحصلا تاينقتلا ةيلك/ىطسولا ةينقتلا ةعماجلا","الجامعة التقنية الوسطى/كلية التقنيات الصحية والطبية/بغداد"]
["بوساحلا تاينقت ةسدنه مسق/دادغب/ةيئابرهكلا ةيسدنهلا ةينقتلا ةيلكلا/ىطسولا ةينقتلا ةعماجلا","الجامعة التقنية الوسطى/الكلية التقنية الهندسية الكهربائية/بغداد/قسم هندسة تقنيات الحاسوب"]
["بوساحلا تاينقت ةسدنه مسق/دادغب/ةيئابرهكلا ةيسدنهلا ةينقتلا ةيلكلا/ىطسولا ةينقتلا ةعماجلا","الجامعة التقنية الوسطى/الكلية التقنية الهندسية الكهربائية/بغداد/قسم هندسة تقنيات الحاسوب"]
["ةيبطلا ةزهجلاا تاينقت ةسدنه مسق/دادغب/ةيئابرهكلا ةيسدنهلا ةينقتلا ةيلكلا/ىطسولا ةينقتلا ةعماجلا","الجامعة التقنية الوسطى/الكلية التقنية الهندسية الكهربائية/بغداد/قسم هندسة تقنيات االجهزة الطبية"]
["ةيبطلا ةزهجلاا تاينقت ةسدنه مسق/دادغب/ةيئابرهكلا ةيسدنهلا ةينقتلا ةيلكلا/ىطسولا ةينقتلا ةعماجلا","الجامعة التقنية الوسطى/الكلية التقنية الهندسية الكهربائية/بغداد/قسم هندسة تقنيات االجهزة الطبية"]
["ةيئابرهكلا ةردقلا تاينقت ةسدنه مسق/دادغب/ةيئابرهكلا ةيسدنهلا ةينقتلا ةيلكلا/ىطسولا ةينقتلا ةعماجلا","الجامعة التقنية الوسطى/الكلية التقنية الهندسية الكهربائية/بغداد/قسم هندسة تقنيات القدرة الكهربائية"]
["ةتمتلااو ةرطيسلا تاينقت ةسدنه مسق/دادغب/ةيئابرهكلا ةيسدنهلا ةينقتلا ةيلكلا/ىطسولا ةينقتلا ةعماجلا","الجامعة التقنية الوسطى/الكلية التقنية الهندسية الكهربائية/بغداد/قسم هندسة تقنيات السيطرة واالتمتة"]
["ةتمتلااو ةرطيسلا تاينقت ةسدنه مسق/دادغب/ةيئابرهكلا ةيسدنهلا ةينقتلا ةيلكلا/ىطسولا ةينقتلا ةعماجلا","الجامعة التقنية الوسطى/الكلية التقنية الهندسية الكهربائية/بغداد/قسم هندسة تقنيات السيطرة واالتمتة"]
["فييكتلاو ديربتلا تاينقت ةسدنه مسق/دادغب/ةيسدنهلا ةينقتلا ةيلكلا/ىطسولا ةينقتلا ةعماجلا","الجامعة التقنية الوسطى/الكلية التقنية الهندسية/بغداد/قسم هندسة تقنيات التبريد والتكييف"]
["فييكتلاو ديربتلا تاينقت ةسدنه مسق/دادغب/ةيسدنهلا ةينقتلا ةيلكلا/ىطسولا ةينقتلا ةعماجلا","الجامعة التقنية الوسطى/الكلية التقنية الهندسية/بغداد/قسم هندسة تقنيات التبريد والتكييف"]
["تاءاشنلااو ءانبلا تاينقت ةسدنه مسق/دادغب/ةيسدنهلا ةينقتلا ةيلكلا/ىطسولا ةينقتلا ةعماجلا","الجامعة التقنية الوسطى/الكلية التقنية الهندسية/بغداد/قسم هندسة تقنيات البناء واالنشاءات"]
["ةحاسملا تاينقت ةسدنه مسق/دادغب/ةيسدنهلا ةينقتلا ةيلكلا/ىطسولا ةينقتلا ةعماجلا","الجامعة التقنية الوسطى/الكلية التقنية الهندسية/بغداد/قسم هندسة تقنيات المساحة"]
["تارايسلا تاينقت ةسدنه مسق/دادغب/ةيسدنهلا ةينقتلا ةيلكلا/ىطسولا ةينقتلا ةعماجلا","الجامعة التقنية الوسطى/الكلية التقنية الهندسية/بغداد/قسم هندسة تقنيات السيارات"]
["تارايسلا تاينقت ةسدنه مسق/دادغب/ةيسدنهلا ةينقتلا ةيلكلا/ىطسولا ةينقتلا ةعماجلا","الجامعة التقنية الوسطى/الكلية التقنية الهندسية/بغداد/قسم هندسة تقنيات السيارات"]
["ددعلاو بلاوقلا تاينقت ةسدنه مسق/دادغب/ةيسدنهلا ةينقتلا ةيلكلا/ىطسولا ةينقتلا ةعماجلا","الجامعة التقنية الوسطى/الكلية التقنية الهندسية/بغداد/قسم هندسة تقنيات القوالب والعدد"]
["ددعلاو بلاوقلا تاينقت ةسدنه مسق/دادغب/ةيسدنهلا ةينقتلا ةيلكلا/ىطسولا ةينقتلا ةعماجلا","الجامعة التقنية الوسطى/الكلية التقنية الهندسية/بغداد/قسم هندسة تقنيات القوالب والعدد"]
["ماحللا تاينقت ةسدنه مسق/دادغب/ةيسدنهلا ةينقتلا ةيلكلا/ىطسولا ةينقتلا ةعماجلا","الجامعة التقنية الوسطى/الكلية التقنية الهندسية/بغداد/قسم هندسة تقنيات اللحام"]
["ماحللا تاينقت ةسدنه مسق/دادغب/ةيسدنهلا ةينقتلا ةيلكلا/ىطسولا ةينقتلا ةعماجلا","الجامعة التقنية الوسطى/الكلية التقنية الهندسية/بغداد/قسم هندسة تقنيات اللحام"]
["داوملا ةينقت ةسدنه مسق/دادغب/ةيسدنهلا ةينقتلا ةيلكلا/ىطسولا ةينقتلا ةعماجلا","الجامعة التقنية الوسطى/الكلية التقنية الهندسية/بغداد/قسم هندسة تقنية المواد"]
["داوملا ةينقت ةسدنه مسق/دادغب/ةيسدنهلا ةينقتلا ةيلكلا/ىطسولا ةينقتلا ةعماجلا","الجامعة التقنية الوسطى/الكلية التقنية الهندسية/بغداد/قسم هندسة تقنية المواد"]
["سكنورتاكيملا تاينقت ةسدنه مسق/دادغب/ةيسدنهلا ةينقتلا ةيلكلا/ىطسولا ةينقتلا ةعماجلا","الجامعة التقنية الوسطى/الكلية التقنية الهندسية/بغداد/قسم هندسة تقنيات الميكاترونكس"]
["ةفاصرلا-دادغب/ةيرادلاا ةينقتلا ةيلكلا/ىطسولا ةينقتلا ةعماجلا",{"$f":"Reversestr(A1347)","v":"الجامعة التقنية الوسطى/الكلية التقنية االدارية/بغداد-الرصافة"}]
["ةفاصرلا-دادغب/ةيرادلاا ةينقتلا ةيلكلا/ىطسولا ةينقتلا ةعماجلا","الجامعة التقنية الوسطى/الكلية التقنية االدارية/بغداد-الرصافة"]
["ةيقيبطتلا نونفلا ةيلك/ىطسولا ةينقتلا ةعماجلا","الجامعة التقنية الوسطى/كلية الفنون التطبيقية"]
["ةيقيبطتلا نونفلا ةيلك/ىطسولا ةينقتلا ةعماجلا","الجامعة التقنية الوسطى/كلية الفنون التطبيقية"]
[null,""]
["مظعملا باب دادغب/يبطلا دهعملا/ىطسولا ةينقتلا ةعماجلا","الجامعة التقنية الوسطى/المعهد الطبي/بغداد باب المعظم"]
["ضيرمتلا تاينقت مسق/مظعملا باب دادغب/يبطلا دهعملا/ىطسولا ةينقتلا ةعماجلا","الجامعة التقنية الوسطى/المعهد الطبي/بغداد باب المعظم/قسم تقنيات التمريض"]
["ضيرمتلا تاينقت مسق/مظعملا باب دادغب/يبطلا دهعملا/ىطسولا ةينقتلا ةعماجلا","الجامعة التقنية الوسطى/المعهد الطبي/بغداد باب المعظم/قسم تقنيات التمريض"]
["روصنملا دادغب/يبطلا ينقتلا دهعملا/ىطسولا ةينقتلا ةعماجلا","الجامعة التقنية الوسطى/المعهد التقني الطبي/بغداد المنصور"]
["عمتجملا ةحص تاينقت مسق/رابنلاا/يبطلا ينقتلا دهعملا/ىطسولا ةينقتلا ةعماجلا","الجامعة التقنية الوسطى/المعهد التقني الطبي/االنبار/قسم تقنيات صحة المجتمع"]
["ةبوقعب/يبطلا ينقتلا دهعملا/ىطسولا ةينقتلا ةعماجلا","الجامعة التقنية الوسطى/المعهد التقني الطبي/بعقوبة"]
["ضيرمتلا تاينقت مسق/ةبوقعب/يبطلا ينقتلا دهعملا/ىطسولا ةينقتلا ةعماجلا","الجامعة التقنية الوسطى/المعهد التقني الطبي/بعقوبة/قسم تقنيات التمريض"]
["ضيرمتلا تاينقت مسق/ةبوقعب/يبطلا ينقتلا دهعملا/ىطسولا ةينقتلا ةعماجلا","الجامعة التقنية الوسطى/المعهد التقني الطبي/بعقوبة/قسم تقنيات التمريض"]
["توكلا/يبطلا ينقتلا دهعملا/ىطسولا ةينقتلا ةعماجلا","الجامعة التقنية الوسطى/المعهد التقني الطبي/الكوت"]
["ضيرمتلا تاينقت مسق/ةريوصلا/يبطلا ينقتلا دهعملا/ىطسولا ةينقتلا ةعماجلا","الجامعة التقنية الوسطى/المعهد التقني الطبي/الصويرة/قسم تقنيات التمريض"]
["ضيرمتلا تاينقت مسق/ةريوصلا/يبطلا ينقتلا دهعملا/ىطسولا ةينقتلا ةعماجلا","الجامعة التقنية الوسطى/المعهد التقني الطبي/الصويرة/قسم تقنيات التمريض"]
["دادغب/ايجولنكتلا دهعم/ىطسولا ةينقتلا ةعماجلا","الجامعة التقنية الوسطى/معهد التكنلوجيا/بغداد"]
["دادغب/ايجولنكتلا دهعم/ىطسولا ةينقتلا ةعماجلا","الجامعة التقنية الوسطى/معهد التكنلوجيا/بغداد"]
["رابنلاا/يجولنكتلا ينقتلا دهعملا/ىطسولا ةينقتلا ةعماجلا","الجامعة التقنية الوسطى/المعهد التقني التكنلوجي/االنبار"]
["رابنلاا/يجولنكتلا ينقتلا دهعملا/ىطسولا ةينقتلا ةعماجلا","الجامعة التقنية الوسطى/المعهد التقني التكنلوجي/االنبار"]
["ةبوقعب/يجولنكتلا ينقتلا دهعملا/ىطسولا ةينقتلا ةعماجلا","الجامعة التقنية الوسطى/المعهد التقني التكنلوجي/بعقوبة"]
["ةبوقعب/يجولنكتلا ينقتلا دهعملا/ىطسولا ةينقتلا ةعماجلا","الجامعة التقنية الوسطى/المعهد التقني التكنلوجي/بعقوبة"]
["توكلا/يجولنكتلا ينقتلا دهعملا/ىطسولا ةينقتلا ةعماجلا","الجامعة التقنية الوسطى/المعهد التقني التكنلوجي/الكوت"]
["توكلا/يجولنكتلا ينقتلا دهعملا/ىطسولا ةينقتلا ةعماجلا","الجامعة التقنية الوسطى/المعهد التقني التكنلوجي/الكوت"]
["ةريوصلا/يجولنكتلا ينقتلا دهعملا/ىطسولا ةينقتلا ةعماجلا","الجامعة التقنية الوسطى/المعهد التقني التكنلوجي/الصويرة"]
["ةريوصلا/يجولنكتلا ينقتلا دهعملا/ىطسولا ةينقتلا ةعماجلا","الجامعة التقنية الوسطى/المعهد التقني التكنلوجي/الصويرة"]
["يتابنلا جاتنلاا تاينقت مسق/ةريوصلا/يعارزلا ينقتلا دهعملا/ىطسولا ةينقتلا ةعماجلا","الجامعة التقنية الوسطى/المعهد التقني الزراعي/الصويرة/قسم تقنيات االنتاج النباتي"]
["يتابنلا جاتنلاا تاينقت مسق/ةريوصلا/يعارزلا ينقتلا دهعملا/ىطسولا ةينقتلا ةعماجلا","الجامعة التقنية الوسطى/المعهد التقني الزراعي/الصويرة/قسم تقنيات االنتاج النباتي"]
["ةفاصرلا/ةرادلاا دهعم/ىطسولا ةينقتلا ةعماجلا","الجامعة التقنية الوسطى/معهد االدارة/الرصافة"]
["ةفاصرلا/ةرادلاا دهعم/ىطسولا ةينقتلا ةعماجلا","الجامعة التقنية الوسطى/معهد االدارة/الرصافة"]
["ةفاصرلا/ةرادلاا دهعم/ىطسولا ةينقتلا ةعماجلا","الجامعة التقنية الوسطى/معهد االدارة/الرصافة"]
["دادغب/ينقتلا ةرادلاا دهعم/ىطسولا ةينقتلا ةعماجلا","الجامعة التقنية الوسطى/معهد االدارة التقني/بغداد"]
["دادغب/ينقتلا ةرادلاا دهعم/ىطسولا ةينقتلا ةعماجلا","الجامعة التقنية الوسطى/معهد االدارة التقني/بغداد"]
["دادغب/ينقتلا ةرادلاا دهعم/ىطسولا ةينقتلا ةعماجلا","الجامعة التقنية الوسطى/معهد االدارة التقني/بغداد"]
["رابنلاا/يرادلاا ينقتلا دهعملا/ىطسولا ةينقتلا ةعماجلا","الجامعة التقنية الوسطى/المعهد التقني االداري/االنبار"]
["رابنلاا/يرادلاا ينقتلا دهعملا/ىطسولا ةينقتلا ةعماجلا","الجامعة التقنية الوسطى/المعهد التقني االداري/االنبار"]
["رابنلاا/يرادلاا ينقتلا دهعملا/ىطسولا ةينقتلا ةعماجلا","الجامعة التقنية الوسطى/المعهد التقني االداري/االنبار"]
["ةبوقعب/يرادلاا ينقتلا دهعملا/ىطسولا ةينقتلا ةعماجلا","الجامعة التقنية الوسطى/المعهد التقني االداري/بعقوبة"]
["ةبوقعب/يرادلاا ينقتلا دهعملا/ىطسولا ةينقتلا ةعماجلا","الجامعة التقنية الوسطى/المعهد التقني االداري/بعقوبة"]
["ةبوقعب/يرادلاا ينقتلا دهعملا/ىطسولا ةينقتلا ةعماجلا","الجامعة التقنية الوسطى/المعهد التقني االداري/بعقوبة"]
["توكلا/يرادلاا ينقتلا دهعملا/ىطسولا ةينقتلا ةعماجلا","الجامعة التقنية الوسطى/المعهد التقني االداري/الكوت"]
["توكلا/يرادلاا ينقتلا دهعملا/ىطسولا ةينقتلا ةعماجلا","الجامعة التقنية الوسطى/المعهد التقني االداري/الكوت"]
["توكلا/يرادلاا ينقتلا دهعملا/ىطسولا ةينقتلا ةعماجلا","الجامعة التقنية الوسطى/المعهد التقني االداري/الكوت"]
["ةريوصلا/يرادلاا ينقتلا دهعملا/ىطسولا ةينقتلا ةعماجلا","الجامعة التقنية الوسطى/المعهد التقني االداري/الصويرة"]
["ةريوصلا/يرادلاا ينقتلا دهعملا/ىطسولا ةينقتلا ةعماجلا","الجامعة التقنية الوسطى/المعهد التقني االداري/الصويرة"]
["ةريوصلا/يرادلاا ينقتلا دهعملا/ىطسولا ةينقتلا ةعماجلا","الجامعة التقنية الوسطى/المعهد التقني االداري/الصويرة"]
["دادغب/ةيقيبطتلا نونفلا دهعم/ىطسولا ةينقتلا ةعماجلا","الجامعة التقنية الوسطى/معهد الفنون التطبيقية/بغداد"]
["دادغب/ةيقيبطتلا نونفلا دهعم/ىطسولا ةينقتلا ةعماجلا","الجامعة التقنية الوسطى/معهد الفنون التطبيقية/بغداد"]
["دادغب/ةيقيبطتلا نونفلا دهعم/ىطسولا ةينقتلا ةعماجلا","الجامعة التقنية الوسطى/معهد الفنون التطبيقية/بغداد"]
["دادغب/نيينقتلا نيبردملا دادعا دهعم/ىطسولا ةينقتلا ةعماجلا","الجامعة التقنية الوسطى/معهد اعداد المدربين التقنيين/بغداد"]
["دادغب/نيينقتلا نيبردملا دادعا دهعم/ىطسولا ةينقتلا ةعماجلا","الجامعة التقنية الوسطى/معهد اعداد المدربين التقنيين/بغداد"]
["ةرصبلا/ةيبطلاو ةيحصلا ةينقتلا ةيلكلا/ةيبونجلا ةينقتلا ةعماجلا","الجامعة التقنية الجنوبية/الكلية التقنية الصحية والطبية/البصرة"]
["ةيئابرهكلا ةردقلا تاينقت ةسدنه مسق/ةرصبلا/ةيسدنهلا ةينقتلا ةيلكلا/ةيبونجلا ةينقتلا ةعماجلا","الجامعة التقنية الجنوبية/الكلية التقنية الهندسية/البصرة/قسم هندسة تقنيات القدرة الكهربائية"]
["ةقاطلاو دوقولا تاينقت ةسدنه مسق/ةرصبلا/ةيسدنهلا ةينقتلا ةيلكلا/ةيبونجلا ةينقتلا ةعماجلا","الجامعة التقنية الجنوبية/الكلية التقنية الهندسية/البصرة/قسم هندسة تقنيات الوقود والطاقة"]
["ةقاطلاو دوقولا تاينقت ةسدنه مسق/ةرصبلا/ةيسدنهلا ةينقتلا ةيلكلا/ةيبونجلا ةينقتلا ةعماجلا","الجامعة التقنية الجنوبية/الكلية التقنية الهندسية/البصرة/قسم هندسة تقنيات الوقود والطاقة"]
["ثولتلاو ةئيبلا تاينقت ةسدنه مسق/ةرصبلا/ةيسدنهلا ةينقتلا ةيلكلا/ةيبونجلا ةينقتلا ةعماجلا","الجامعة التقنية الجنوبية/الكلية التقنية الهندسية/البصرة/قسم هندسة تقنيات البيئة والتلوث"]
["تايرارحلا كيناكيم تاينقت ةسدنه مسق/ةرصبلا/ةيسدنهلا ةينقتلا ةيلكلا/ةيبونجلا ةينقتلا ةعماجلا","الجامعة التقنية الجنوبية/الكلية التقنية الهندسية/البصرة/قسم هندسة تقنيات ميكانيك الحراريات"]
["تايرارحلا كيناكيم تاينقت ةسدنه مسق/ةرصبلا/ةيسدنهلا ةينقتلا ةيلكلا/ةيبونجلا ةينقتلا ةعماجلا","الجامعة التقنية الجنوبية/الكلية التقنية الهندسية/البصرة/قسم هندسة تقنيات ميكانيك الحراريات"]
[null,""]
["ةيئايميكورتبلاو ةيئايميكلا تاينقتلا ةسدنه مسق/ةرصبلا/ةيسدنهلا ةينقتلا ةيلكلا/ةيبونجلا ةينقتلا ةعماجلا","الجامعة التقنية الجنوبية/الكلية التقنية الهندسية/البصرة/قسم هندسة التقنيات الكيميائية والبتروكيميائية"]
["ةيئايميكورتبلاو ةيئايميكلا تاينقتلا ةسدنه مسق/ةرصبلا/ةيسدنهلا ةينقتلا ةيلكلا/ةيبونجلا ةينقتلا ةعماجلا","الجامعة التقنية الجنوبية/الكلية التقنية الهندسية/البصرة/قسم هندسة التقنيات الكيميائية والبتروكيميائية"]
["ةرصبلا/ةيرادلاا ةينقتلا ةيلكلا/ةيبونجلا ةينقتلا ةعماجلا","الجامعة التقنية الجنوبية/الكلية التقنية االدارية/البصرة"]
["ةرصبلا/ةيرادلاا ةينقتلا ةيلكلا/ةيبونجلا ةينقتلا ةعماجلا","الجامعة التقنية الجنوبية/الكلية التقنية االدارية/البصرة"]
["ةبساحملا تاينقت مسق/راق يذ/ةينقتلا ةيلكلا/ةيبونجلا ةينقتلا ةعماجلا","الجامعة التقنية الجنوبية/الكلية التقنية/ذي قار/قسم تقنيات المحاسبة"]
["ةبساحملا تاينقت مسق/راق يذ/ةينقتلا ةيلكلا/ةيبونجلا ةينقتلا ةعماجلا",{"$f":"Reversestr(A1411)","v":"الجامعة التقنية الجنوبية/الكلية التقنية/ذي قار/قسم تقنيات المحاسبة"}]
["ةرصبلا/يبطلا ينقتلا دهعملا/ةيبونجلا ةينقتلا ةعماجلا","الجامعة التقنية الجنوبية/المعهد التقني الطبي/البصرة"]
["ضيرمتلا تاينقت مسق/ةرصبلا/يبطلا ينقتلا دهعملا/ةيبونجلا ةينقتلا ةعماجلا","الجامعة التقنية الجنوبية/المعهد التقني الطبي/البصرة/قسم تقنيات التمريض"]
["ضيرمتلا تاينقت مسق/ةرصبلا/يبطلا ينقتلا دهعملا/ةيبونجلا ةينقتلا ةعماجلا","الجامعة التقنية الجنوبية/المعهد التقني الطبي/البصرة/قسم تقنيات التمريض"]
["ةيضرملا تلايلحتلا تاينقت مسق/ةرامعلا/يبطلا ينقتلا دهعملا/ةيبونجلا ةينقتلا ةعماجلا","الجامعة التقنية الجنوبية/المعهد التقني الطبي/العمارة/قسم تقنيات التحليالت المرضية"]
["ضيرمتلا تاينقت مسق/ةرامعلا/يبطلا ينقتلا دهعملا/ةيبونجلا ةينقتلا ةعماجلا","الجامعة التقنية الجنوبية/المعهد التقني الطبي/العمارة/قسم تقنيات التمريض"]
["ضيرمتلا تاينقت مسق/ةرامعلا/يبطلا ينقتلا دهعملا/ةيبونجلا ةينقتلا ةعماجلا","الجامعة التقنية الجنوبية/المعهد التقني الطبي/العمارة/قسم تقنيات التمريض"]
["ةيرصانلا/يبطلا ينقتلا دهعملا/ةيبونجلا ةينقتلا ةعماجلا","الجامعة التقنية الجنوبية/المعهد التقني الطبي/الناصرية"]
["ضيرمتلا تاينقت مسق/ ةيرصانلا/يبطلا ينقتلا دهعملا/ةيبونجلا ةينقتلا ةعماجلا","الجامعة التقنية الجنوبية/المعهد التقني الطبي/الناصرية /قسم تقنيات التمريض"]
["ضيرمتلا تاينقت مسق/ ةيرصانلا/يبطلا ينقتلا دهعملا/ةيبونجلا ةينقتلا ةعماجلا","الجامعة التقنية الجنوبية/المعهد التقني الطبي/الناصرية /قسم تقنيات التمريض"]
["ةرصبلا/يجولنكتلا ينقتلا دهعملا/ةيبونجلا ةينقتلا ةعماجلا","الجامعة التقنية الجنوبية/المعهد التقني التكنلوجي/البصرة"]
["ةرصبلا/يجولنكتلا ينقتلا دهعملا/ةيبونجلا ةينقتلا ةعماجلا","الجامعة التقنية الجنوبية/المعهد التقني التكنلوجي/البصرة"]
["ةيئابرهكلا تاينقتلا مسق/ةنرقلا/يجولنكتلا ينقتلا دهعملا/ةيبونجلا ةينقتلا ةعماجلا","الجامعة التقنية الجنوبية/المعهد التقني التكنلوجي/القرنة/قسم التقنيات الكهربائية"]
["ةيئابرهكلا تاينقتلا مسق/ةنرقلا/يجولنكتلا ينقتلا دهعملا/ةيبونجلا ةينقتلا ةعماجلا","الجامعة التقنية الجنوبية/المعهد التقني التكنلوجي/القرنة/قسم التقنيات الكهربائية"]
["ةرامعلا/يجولنكتلا ينقتلا دهعملا/ةيبونجلا ةينقتلا ةعماجلا","الجامعة التقنية الجنوبية/المعهد التقني التكنلوجي/العمارة"]
["ةرامعلا/يجولنكتلا ينقتلا دهعملا/ةيبونجلا ةينقتلا ةعماجلا","الجامعة التقنية الجنوبية/المعهد التقني التكنلوجي/العمارة"]
["ةيرصانلا/يجولنكتلا ينقتلا دهعملا/ةيبونجلا ةينقتلا ةعماجلا","الجامعة التقنية الجنوبية/المعهد التقني التكنلوجي/الناصرية"]
["ةيرصانلا/يجولنكتلا ينقتلا دهعملا/ةيبونجلا ةينقتلا ةعماجلا","الجامعة التقنية الجنوبية/المعهد التقني التكنلوجي/الناصرية"]
["ةرطشلا/يجولنكتلا ينقتلا دهعملا/ةيبونجلا ةينقتلا ةعماجلا","الجامعة التقنية الجنوبية/المعهد التقني التكنلوجي/الشطرة"]
["ةرطشلا/يجولنكتلا ينقتلا دهعملا/ةيبونجلا ةينقتلا ةعماجلا","الجامعة التقنية الجنوبية/المعهد التقني التكنلوجي/الشطرة"]
["ةرطشلا/يعارزلا ينقتلا دهعملا/ةيبونجلا ةينقتلا ةعماجلا","الجامعة التقنية الجنوبية/المعهد التقني الزراعي/الشطرة"]
["ةرطشلا/يعارزلا ينقتلا دهعملا/ةيبونجلا ةينقتلا ةعماجلا","الجامعة التقنية الجنوبية/المعهد التقني الزراعي/الشطرة"]
["ةرصبلا/يرادلاا ينقتلا دهعملا/ةيبونجلا ةينقتلا ةعماجلا","الجامعة التقنية الجنوبية/المعهد التقني االداري/البصرة"]
["ةرصبلا/يرادلاا ينقتلا دهعملا/ةيبونجلا ةينقتلا ةعماجلا","الجامعة التقنية الجنوبية/المعهد التقني االداري/البصرة"]
["ةرصبلا/يرادلاا ينقتلا دهعملا/ةيبونجلا ةينقتلا ةعماجلا","الجامعة التقنية الجنوبية/المعهد التقني االداري/البصرة"]
["تابساحلا ةمظنا تاينقت مسق/ةنرقلا/يرادلاا ينقتلا دهعملا/ةيبونجلا ةينقتلا ةعماجلا","الجامعة التقنية الجنوبية/المعهد التقني االداري/القرنة/قسم تقنيات انظمة الحاسبات"]
["تابساحلا ةمظنا تاينقت مسق/ةنرقلا/يرادلاا ينقتلا دهعملا/ةيبونجلا ةينقتلا ةعماجلا","الجامعة التقنية الجنوبية/المعهد التقني االداري/القرنة/قسم تقنيات انظمة الحاسبات"]
["ةرامعلا/يرادلاا ينقتلا دهعملا/ةيبونجلا ةينقتلا ةعماجلا","الجامعة التقنية الجنوبية/المعهد التقني االداري/العمارة"]
["ةرامعلا/يرادلاا ينقتلا دهعملا/ةيبونجلا ةينقتلا ةعماجلا","الجامعة التقنية الجنوبية/المعهد التقني االداري/العمارة"]
["ةرامعلا/يرادلاا ينقتلا دهعملا/ةيبونجلا ةينقتلا ةعماجلا","الجامعة التقنية الجنوبية/المعهد التقني االداري/العمارة"]
["ةيرصانلا/يرادلاا ينقتلا دهعملا/ةيبونجلا ةينقتلا ةعماجلا","الجامعة التقنية الجنوبية/المعهد التقني االداري/الناصرية"]
["ةيرصانلا/يرادلاا ينقتلا دهعملا/ةيبونجلا ةينقتلا ةعماجلا","الجامعة التقنية الجنوبية/المعهد التقني االداري/الناصرية"]
["ةيرصانلا/يرادلاا ينقتلا دهعملا/ةيبونجلا ةينقتلا ةعماجلا","الجامعة التقنية الجنوبية/المعهد التقني االداري/الناصرية"]
["داوملا ةرادا تاينقت مسق/ةرطشلا/يرادلاا ينقتلا دهعملا/ةيبونجلا ةينقتلا ةعماجلا","الجامعة التقنية الجنوبية/المعهد التقني االداري/الشطرة/قسم تقنيات ادارة المواد"]
["داوملا ةرادا تاينقت مسق/ةرطشلا/يرادلاا ينقتلا دهعملا/ةيبونجلا ةينقتلا ةعماجلا","الجامعة التقنية الجنوبية/المعهد التقني االداري/الشطرة/قسم تقنيات ادارة المواد"]
["داوملا ةرادا تاينقت مسق/ةرطشلا/يرادلاا ينقتلا دهعملا/ةيبونجلا ةينقتلا ةعماجلا","الجامعة التقنية الجنوبية/المعهد التقني االداري/الشطرة/قسم تقنيات ادارة المواد"]
["سبلاملا ةعانص تاينقت مسق/ةيرصانلا/ نونف ينقتلا دهعملا/ةيبونجلا ةينقتلا ةعماجلا","الجامعة التقنية الجنوبية/المعهد التقني فنون /الناصرية/قسم تقنيات صناعة المالبس"]
["سبلاملا ةعانص تاينقت مسق/ةيرصانلا/ نونف ينقتلا دهعملا/ةيبونجلا ةينقتلا ةعماجلا","الجامعة التقنية الجنوبية/المعهد التقني فنون /الناصرية/قسم تقنيات صناعة المالبس"]
["سبلاملا ةعانص تاينقت مسق/ةيرصانلا/ نونف ينقتلا دهعملا/ةيبونجلا ةينقتلا ةعماجلا","الجامعة التقنية الجنوبية/المعهد التقني فنون /الناصرية/قسم تقنيات صناعة المالبس"]

{"sheet":"ورقة2","index":1,"n_rows":0,"n_cols":0,"rows_kept":0,"cut":false,"hidden":false,"merged":[]}

{"sheet":"ورقة3","index":2,"n_rows":0,"n_cols":0,"rows_kept":0,"cut":false,"hidden":false,"merged":[]}